Workbook

Sheet User Input
A1: Study Area | J1: #Jobs & Earnings (by NAICS ) | AA1: Housing Stock - Number of Dwelling Units by Value
A2: Local Research | J2: LED Industry Focus | AA2: County Assessor
A3: Link to Data Source | J3: Link to Data Source | AA3: Link to Data Source
A4: Study Area (City name) | E4: Test City | J4: Geography | L4: =$E$7 -> Test County | AA4: Geography | AC4: =E4 -> Test City
A5: Analyst Name | E5: Analyst | J5: Data Year | L5: 2007 | S5: Average earnings for these jobs is estimaated | AA5: Data Year | AC5: 2007
A6: Study Date | E6: 2011-10-01 | J6: Link to NAICS Code info | S6: based on local research
A7: County Name | E7: Test County | J7: NAICS Number & Name | O7: # Primary Jobs | P7: Avg Earnings (per month) | S7: Other Job Catagories | X7: Avg Earnings (per year)
AA8: ="Housing Stock (" & YEAR(E6) &")" -> Housing Stock (2011) | AE8: # Dwelling Units | AF8: Data Source
A9: HUD Median Income | J9: All NAICS subsectors | O9: 141719 | P9: 3199 | S9: Local Government and Emergency Response Workers
A10: HUD User | I10: 1 | J10: 722 Food Services and Drinking Places | O10: 9994 | P10: 1192 | S10: Police Officer | X10: 47084 | AA10: Single Family (market value) | AF10: Assessor's Office
A11: Link to Data Source | I11: 2 | J11: 238 Specialty Trade Contractors | O11: 8927 | P11: 3080 | R11: 1 | S11: Fire Fighter or EMT | X11: 51008 | Z11: 1 | AA11: =Summary!G6 -> 68000 | AE11: 39
A12: Geography | G12: =$E$7 -> Test County | I12: 3 | J12: 541 Professional, Scientific, and Technical Services | O12: 11171 | P12: 4285 | R12: 2 | S12: Public Works (wastewater worker) | X12: 42449 | Z12: 2 | AA12: =Summary!G7 -> 123000 | AE12: 1230
A13: Data Year | G13: 2009 | I13: 4 | J13: 561 Administrative and Support Services | O13: 9060 | P13: 2575 | R13: 3 | S13: Local Government Staff - Administrator | X13: 98000 | Z13: 3 | AA13: =Summary!G8 -> 151000 | AE13: 6813
A14: Median Income | G14: 62900 | I14: 5 | J14: 621 Ambulatory Health Care Services | O14: 6899 | P14: 3757 | R14: 4 | S14: Local Government Staff - Executive | X14: 79000 | Z14: 4 | AA14: =Summary!G9 -> 205000 | AE14: 31034
I15: 6 | J15: 452 General Merchandise Stores | O15: 4280 | P15: 1771 | R15: 5 | S15: Local Government Staff - Clerical | X15: 36904 | Z15: 5 | AA15: =Summary!G10 -> 260000 | AE15: 24938
I16: 7 | J16: 339 Miscellaneous Manufacturing | O16: 819 | P16: 3161 | R16: 6 | Z16: 6 | AA16: =Summary!G11 -> 315000 | AE16: 12460
A17: Mortgage and Shelter Cost Assumptions | I17: 8 | J17: 236 Construction of Buildings | O17: 1957 | P17: 3095 | S17: Basic Local Employment | Z17: 7 | AA17: ="Greater than " &TEXT(AA16,"$0,0") -> Greater than $315,000 | AE17: 20035
A18: Local Research | I18: 9 | J18: 623 Nursing and Residential Care Facilities | O18: 3466 | P18: 1993 | S18: Teacher (public school, entry level) | X18: 26950
A19: Link to Data Source | I19: 10 | J19: 336 Transportation Equipment Manufacturing | O19: 459 | P19: 3419 | R19: 1 | S19: Social Worker | X19: 32860 | AA19: Multi Family (market value)
A20: Homeowners Insurance per Month | G20: 80 | I20: 11 | J20: 445 Food and Bevarage Stores | O20: 3486 | P20: 1752 | R20: 2 | S20: Nurse (LPN) | X20: 28740 | Z20: 1 | AA20: =Summary!H6 -> 25000 | AE20: 162
A21: Real Estate Tax Rate (% of market value) | G21: 0.0075 | I21: 12 | J21: 441 Motor Vehicle and Parts Dealers | O21: 2465 | P21: 2975 | R21: 3 | S21: Retail (general merchandise) | X21: 15550 | Z21: 2 | AA21: =Summary!H7 -> 80000 | AE21: 663
A22: Mortgage Ins (% of principal) | G22: 0.0066 | I22: 13 | J22: 522 Credit Intermediation and Related Activies | O22: 2630 | P22: 3619 | R22: 4 | S22: Housekeeping | X22: 16720 | Z22: 3 | AA22: =Summary!H8 -> 107000 | AE22: 857
A23: Condo Fee (per month) | G23: 200 | I23: 14 | J23: 332 Fabricated Metal Product Manufacturing | O23: 2196 | P23: 3856 | R23: 5 | S23: Food Service (restaurant) | X23: 20020 | Z23: 4 | AA23: =Summary!H9 -> 162000 | AE23: 7794
A24: Down Payment | G24: 0.1 | I24: 15 | J24: 713 Amusement, Gambling, and Recreation Industries | O24: 1184 | P24: 1417 | R24: 6 | S24: Mid-Level Manager (private sector) | X24: 46120 | Z24: 5 | AA24: =Summary!H10 -> 217000 | AE24: 6659
A25: Mortgage Rate | G25: 0.046 | I25: 16 | J25: 484 Truck Transprortation | O25: 660 | P25: 3423 | R25: 7 | S25: Agricultural Worker (farming) | X25: 32350 | Z25: 6 | AA25: =Summary!H11 -> 272000 | AE25: 2022
A26: Mortgage Term (years) | G26: 30 | I26: 17 | J26: 493 Warehousing and Storage | O26: 281 | P26: 2685 | R26: 8 | S26: Construction Worker | X26: 20920 | Z26: 7 | AA26: ="Greater than " &TEXT(AA25,"$0,0") -> Greater than $272,000 | AE26: 1027
A27: Shelter Cost % of Gross income | G27: 0.3 | I27: 18 | J27: 622 Hospitals | O27: 5262 | P27: 3303
I28: 19 | J28: 423 Merchant Wholesalers, Durable Goods | O28: 2504 | P28: 3989 | AD28: Market | AE28: Subsidized | AF28: Local Research
I29: 20 | J29: 811 Repair and Maintenance | O29: 1679 | P29: 2472 | AA29: Rental Units | AE29: 790
A30: Number of Jobs per Worker | I30: 21 | J30: 237 Heavy and Civil Engineering Construction | O30: 1410 | P30: 3957
A31: LED On The Map | I31: 22 | J31: 444 Building Material and Garden Equipment and Supplies Dealers | O31: 1676 | P31: 2694
A32: Link to Data Source | I32: 23 | J32: 424 Merchant Wholesalers, nondurable Goods | O32: 2657 | P32: 4596 | AA32: Total
A33: Geography | G33: =$E$7 -> Test County | I33: 24 | J33: 812 Personal and Laundry Services | O33: 1418 | P33: 1445 | AA33: 1 | AE33: ='Reg2'!I24:I30 -> 484.3215017
A34: Data Year | G34: 2008 | I34: 25 | J34: 624 Social Assistance | O34: 2056 | P34: 1589 | AA34: 2 | AE34: 2041.617065
A35: All Jobs | G35: 50238 | I35: 26 | J35: 551 Management of Companies and Enterprises | O35: 1668 | P35: 2970 | AA35: 3 | AE35: 7725.380887
A36: All Primary Jobs | G36: 46125 | I36: 27 | J36: 488 Support Activities for Transportation | O36: 175 | P36: 3110 | AA36: 4 | AE36: 38907.59317
A37: Jobs per Worker | G37: =G35/G36 -> 1.089170732 | I37: 28 | J37: 448 Clothing and Clothing Accessories Stores | O37: 1926 | P37: 1413 | AA37: 5 | AE37: 31651.59898
I38: 29 | J38: 311 Food Manufacturing | O38: 2852 | P38: 3279 | AA38: 6 | AE38: 14521.47304
I39: 30 | J39: 451 Sporting Goods, Hobby, Book, and Music Stores | O39: 1736 | P39: 1650 | AA39: 7 | AE39: 21191.01536
A40: Workers per Household | I40: 31 | J40: 447 Gasoline Stations | O40: 1240 | P40: 1574 | AA40: Total | AE40: =SUM(AE33:AE39) -> 116523
A41: 2000 Census - Summary File 3 | I41: 32 | J41: 531 Real Estate | O41: 1367 | P41: 4062
A42: Link to Data Source | I42: 33 | J42: 611 Educational Services | O42: 10823 | P42: 4100
A43: Geography | G43: =$E$7 -> Test County | I43: 34 | J43: 524 Insurance Carriers and Related Activities | O43: 1133 | P43: 3550 | AA43: Housing Stock Growth Rates (estimate)
A44: Workers 16+ | F44: sf3 - P8 | G44: 77275 | I44: 35 | J44: 453 Miscellaneous Store Retailers | O44: 1005 | P44: 1786 | AA44: County Assessor
A45: Adjustment - % Workers 21+ | G45: =G67 -> 0.8614395716 | I45: 36 | J45: 446 Health and Personal Care Stores | O45: 897 | P45: 2801 | AA45: Link to Data Source
A46: Workers 21+ | G46: =G44*G45 -> 66567.7429 | I46: 37 | J46: 326 Plastics and Rubber Products Manufacturing | O46: 247 | P46: 2634 | AA46: Geography | AC46: =G55 -> Test County
A47: Number of Households | F47: sf3 - H16 | G47: 30275 | I47: 38 | J47: 325 Chemical Manufacturing | O47: 2042 | P47: 4146 | AA47: Data Year | AC47: 2007
A48: Workers per Household | G48: =G46/G47 -> 2.198769377 | I48: 39 | J48: 492 Couriers and Messengers | O48: 299 | P48: 3217
A49: Jobs per Household | G49: =G48*G37 -> 2.394835252 | I49: 40 | J49: 337 Furniture and Related Product Manufacturing | O49: 903 | P49: 2946 | AA49: Housing Stock Growth Estimated average annual % increase in the number of dwelling units | AE49: ="Avg. Ann. Increase (%)" -> Avg. Ann. Increase (%)
I50: 41 | J50: 511 Publishing Industries (except Internet) | O50: 3598 | P50: 6013 | AE50: =TEXT('Reg2'!G5,"00")&" to " &TEXT('Reg2'!H5,"00") -> 2010 to 2015 | AF50: =TEXT('Reg2'!H5,"00")&" to " &TEXT('Reg2'!I5,"00") -> 2015 to 2020
I51: 42 | J51: 323 Printing and Related Support Activities | O51: 1107 | P51: 3105
A52: Estimated Workers 21+ | I52: 43 | J52: 314 Textile Product Mills | O52: 152 | P52: 3070
A53: 2000 Census - Summary File 3 | I53: 44 | J53: 425 Wholesale Electonic Market and Agents and Brokers | O53: 458 | P53: 5879 | AA53: Single Family | AC53: Multi Family
A54: Link to Data Source | I54: 45 | J54: 721 Accomodations | O54: 1089 | P54: 1504 | AA54: =AA11 -> 68000 | AC54: =AA20 -> 25000 | AE54: 0.02 | AF54: 0.02
A55: Geography | G55: =$E$7 -> Test County | I55: 46 | J55: 532 Rental and Leasing Services | O55: 519 | P55: 2441 | AA55: 123000 | AC55: 80000 | AE55: 0.02 | AF55: 0.02
A56: Population | F56: sf3-p1 | G56: 105258 | I56: 47 | J56: 442 Furniture and Home Furnishings Stores | O56: 724 | P56: 2388 | AA56: 151000 | AC56: 107000 | AE56: 0.02 | AF56: 0.02
A57: Population by Age | D57: sf3-p8 | E57: Male | F57: Female | G57: Total | I57: 48 | J57: 327 Nonmetallic Mineral Product Manufacturing | O57: 1616 | P57: 4441 | AA57: 205000 | AC57: 162000 | AE57: 0.02 | AF57: 0.02
A58: 16 | E58: 742 | F58: 600 | G58: =SUM(E58:F58) -> 1342 | I58: 49 | J58: 443 Electronics and Appliance Stores | O58: 729 | P58: 3055 | AA58: 260000 | AC58: 217000 | AE58: 0.02 | AF58: 0.02
A59: 17 | E59: 620 | F59: 649 | G59: =SUM(E59:F59) -> 1269 | I59: 50 | J59: 562 Waste Management and Remediation Services | O59: 131 | P59: 3295 | AA59: 315000 | AC59: 272000 | AE59: 0.02 | AF59: 0.02
A60: 18 | E60: 1624 | F60: 2701 | G60: =SUM(E60:F60) -> 4325 | I60: 51 | J60: 111 Crop Production | O60: 532 | P60: 2038 | AA60: Greater than $315,000 | AC60: Greater than $272,000 | AE60: 0.02 | AF60: 0.02
A61: 19 | E61: 2538 | F61: 4693 | G61: =SUM(E61:F61) -> 7231 | I61: 52 | J61: 518 Data Processing, Hosting and Related Services | O61: 1410 | P61: 5244
A62: 20 | E62: 891 | F62: 4808 | G62: =SUM(E62:F62) -> 5699 | I62: 53 | J62: 322 Paper Manufacturing | O62: 563 | P62: 2091 | AA62: Rental Units - Market Rate
A63: Total (16 to 20) | G63: =SUM(G58:G62) -> 19866 | I63: 54 | J63: 333 Machinery Manufacturing | O63: 758 | P63: 4320 | AA63: =Summary!I6 -> 471.75 | AE63: 0.02 | AF63: 0.02
A64: Share (16 to 20) of Total | G64: =G63/G56 -> 0.1887362481 | I64: 55 | J64: 454 Nonstore Retailers | O64: 1509 | P64: 3573 | AA64: =Summary!I7 -> 786.25 | AE64: 0.02 | AF64: 0.02
A65: Workers 16+ % of Total | G65: =G44/G56 -> 0.7341484733 | I65: 56 | J65: 334 Computer and Electronic Product Manufacturing | O65: 2491 | P65: 5107 | AA65: =Summary!I8 -> 943.5 | AE65: 0.02 | AF65: 0.02
A66: Estimated Workers 16 to 20 | G66: =G64*G65 -> 0.1385604284 | I66: 57 | J66: 314 Textile Product Mills | O66: 152 | P66: 3070 | AA66: =Summary!I9 -> 1258 | AE66: 0.02 | AF66: 0.02
A67: Estimated Workers 21+ - Share of Total Workers | G67: =1-G66 -> 0.8614395716 | I67: 58 | J67: 523 Securities, Commodity Contracts, and other Financial Investments and Related Activities | O67: 349 | P67: 7071 | AA67: =Summary!I10 -> 1572.5 | AE67: 0.02 | AF67: 0.02
I68: 59 | J68: 512 Motion Picture and Sound Recording Industries | O68: 509 | P68: 1709 | AA68: =Summary!I11 -> 1887 | AE68: 0.02 | AF68: 0.02
I69: 60 | J69: 221 Utilities | O69: 311 | P69: 6241 | AA69: ="Greater than " &TEXT(AA68,"$0,0") -> Greater than $1,887 | AE69: 0.02 | AF69: 0.02
A70: Non-primary Job - Earnings (per month per job) | I70: 61 | J70: 711 Performing Arts, Spectator Sports, and Related Industries | O70: 134 | P70: 2397
A71: QWI Online | I71: 62 | J71: 321 Wood Product Manufacturing | O71: 349 | P71: 2545 | AA71: Rental Units - Subsidized
A72: Link to Data Source | I72: 63 | J72: 112 Animal Production | O72: 232 | P72: 2731 | AA72: =AA63 -> 471.75 | AE72: 0.02 | AF72: 0.02
A73: Relative Earnings per Worker | I73: 64 | J73: 115 Support Activities for Agriculture and Forest | O73: 127 | P73: 2252 | AA73: =AA64 -> 786.25 | AE73: 0.02 | AF73: 0.02
A74: Geography | G74: =$E$7 -> Test County | I74: 65 | J74: 315 Apparel Manufacturing | O74: 114 | P74: 1433 | AA74: 943.5 | AE74: 0.02 | AF74: 0.02
A75: Data Year/Q | G75: 2009 - 2 | I75: 66 | J75: 331 Primary Metal Manufacturing | O75: 923 | P75: 3518 | AA75: 1258 | AE75: 0.02 | AF75: 0.02
A76: Male - Average Monthly Earnings | G76: 3949 | I76: 67 | J76: 335 Electrical Equipment, Appliance, and Component Manuf | O76: 260 | P76: 4223 | AA76: 1572.5 | AE76: 0.02 | AF76: 0.02
A77: Female - Average Monthly Earnings | G77: 2221 | I77: 68 | J77: 485 Transit and Ground Passenger Transportation | O77: 225 | P77: 1868 | AA77: 1887 | AE77: 0.02 | AF77: 0.02
I78: 69 | J78: 515 Broadcasting (except internet) | O78: 123 | P78: 4150 | AA78: Greater than $1,887 | AE78: 0.02 | AF78: 0.02
I79: 70 | J79: 517 Teleconnumications | O79: 1080 | P79: 3899
A80: Estimated Household "Other" Income | I80: 71 | J80: 519 Other Information Services | O80: 1329 | P80: 4262
A81: Local Research | I81: 72 | J81: 712 Museums, Historical Sites, and Similar Institutions | O81: 432 | P81: 2611
A82: Link to Data Source | I82: 73 | J82: 813 Religious, Grantmaking, Civic, Professional and Similar Organizations | O82: 523 | P82: 3080
A83: Disposable income in addition to wages | G83: 0.02 | I83: 74 | J83: 914 Private Households | O83: 412 | P83: 603
I84: 75
I85: 76
A86: ="Number of Households ("&YEAR(E6) & ", or as available)" -> Number of Households (2011, or as available) | I86: 77
A87: Geography | G87: =$E$7 -> Test County | I87: 78
A88: Household Size (persons per DU) | E88: Link to Data Source | G88: 3.64 | I88: 79
A89: Geography (study area) | G89: =E4 -> Test City | I89: 80
A90: Population (number of persons) | E90: Link to Data Source | G90: 113984 | I90: 81
A91: Geography (study area) | G91: =E4 -> Test City | I91: 82
A92: # Households | G92: =G90/G88 -> 31314.28571 | I92: 83
I93: 84
I94: 85
A95: ="Future Number of Households (+5 and +10 years)" -> Future Number of Households (+5 and +10 years) | I95: 86 | M95: `
A96: Governor's Office of Planning and Budget, "Household projections by area" | I96: 87
A97: Link to Data Source | I97: 88
A98: Geography | G98: =$E$7 -> Test County | I98: 89
A99: ="Number of Households - " & YEAR($E$6) -> Number of Households - 2011 | G99: 158203
A100: ="Number of Households - " & YEAR($E$6)+5 & " (and AARC)" -> Number of Households - 2016 (and AARC) | F100: =NOMINAL(G100/G99-1,5)/5 -> 0.03533850354 | G100: 188203
A101: ="Number of Households - " & YEAR($E$6)+10& " (and AARC)" -> Number of Households - 2021 (and AARC) | F101: =NOMINAL(G100/G99-1,5)/5 -> 0.03533850354 | G101: 220036
A104: Number of Households by Income
A105: Utah State Tax Comission Data Summary
A106: Link to Data Source
A107: Geography | G107: =E4 -> Test City
A108: Data Year | G108: ='#Households by Income Group'!F1 -> 2010
A109: Number of Households by Income Group
A110: ='Reg2'!W12 -> Up to $18,870 | G110: 10508
A111: ='Reg2'!W13 -> Between $18,870 and $31,450 | G111: 5512
A112: ='Reg2'!W14 -> Between $31,450 and $37,740 | G112: 2054
A113: ='Reg2'!W15 -> Between $37,740 and $50,320 | G113: 2952
A114: ='Reg2'!W16 -> Between $50,320 and $62,900 (median) | G114: 2025
A115: ='Reg2'!W17 -> Between $62,900 and $75,480 | G115: 1464
A116: ='Reg2'!W18 -> More than $75,480 | G116: 4785
A119: HUD Median Rent (includes utilities)
A120: HUD User
A121: Link to Data Source
A122: Geography | G122: =$E$7 -> Test County
A123: Data Year | G123: 2010
A124: Median Rent (50th percentile) | G124: 735
A125: # bedrooms | G125: 2
A128: Median Unit Price - Single and Multi Family
A129: Link to Data Source
A130: Single Family Price | G130: 149950
A131: Number of Bedrooms | G131: 2
A132: Web Data Acquisition Date | G132: 2010-07-21
A134: Multi Family
A135: Number of Bedrooms | G135: 2
A136: =A132 -> Web Data Acquisition Date | G136: 2010-07-21
A139: Graphs - Summary2
A140: ="Trend in Rent - "&'User Input'!E7&" - "&" HUD 50th percentile - "&'User Input'!G125 & " bedroom" -> Trend in Rent - Test County - HUD 50th percentile - 2 bedroom
A141: HUD User
A142: Link to Data Source
A143: Geography | G143: ='User Input'!E7 -> Test County
F144: Year | G144: Rent
F145: 2001 | G145: 598
F146: 2002 | G146: 618
F147: 2003 | G147: 638
F148: 2004 | G148: 648
F149: 2005 | G149: 663
F150: 2006 | G150: 685
F151: 2007 | G151: 709
F152: 2008 | G152: 701
F153: 2009 | G153: 704
F154: 2010 | G154: 735
A157: Trend in Vacancy and Home Ownwership Rate, and Personal Income
A158: St. Louis Federal Reserve Bank
A159: Link to Dtat Source
A160: Geography | C160: State
C162: Year | D162: Home Vacancy Rate | E162: Rental Vacancy Rate | F162: Home Own Rate | G162: Per Capita Personal Oncome
C166: 1990 | D166: 0.019 | E166: 0.15 | F166: 0.707 | G166: 15000
C167: 1991 | D167: 0.017 | E167: 0.15 | F167: 0.7 | G167: 15500
C168: 1992 | D168: 0.011 | E168: 0.15 | F168: 0.691 | G168: 16000
C169: 1993 | D169: 0.01 | E169: 0.16 | F169: 0.688 | G169: 16500
C170: 1994 | D170: 0.013 | E170: 0.08 | F170: 0.69 | G170: 17000
C171: 1995 | D171: 0.012 | E171: 0.12 | F171: 0.72 | G171: 18000
C172: 1996 | D172: 0.01 | E172: 0.139 | F172: 0.722 | G172: 19800
C173: 1997 | D173: 0.02 | E173: 0.141 | F173: 0.725 | G173: 21500
C174: 1998 | D174: 0.016 | E174: 0.145 | F174: 0.735 | G174: 22500
C175: 1999 | D175: 0.0175 | E175: 0.088 | F175: 0.745 | G175: 22500
C176: 2000 | D176: 0.0175 | E176: 0.078 | F176: 0.727 | G176: 23750
C177: 2001 | D177: 0.02 | E177: 0.07 | F177: 0.724 | G177: 2480
C178: 2002 | D178: 0.019 | E178: 0.065 | F178: 0.728 | G178: 25000
C179: 2003 | D179: 0.0275 | E179: 0.081 | F179: 0.731 | G179: 25900
C180: 2004 | D180: 0.019 | E180: 0.088 | F180: 0.749 | G180: 25800
C181: 2005 | D181: 0.016 | E181: 0.07 | F181: 0.739 | G181: 27500
C182: 2006 | D182: 0.021 | E182: 0.058 | F182: 0.735 | G182: 29000
C183: 2007 | D183: 0.02 | E183: 0.055 | F183: 0.748 | G183: 31800
C184: 2008 | D184: 0.02 | E184: 0.074 | F184: 0.762 | G184: 31900
C185: 2009 | D185: 0.019 | E185: 0.083 | F185: 0.741 | G185: 31900
C186: 2010
A188: MODEL ESTIMATING NOTES

Sheet Data Links
A1: Data Source Name | J1: Web Link
A3: Study Area
B4: Name of the City for which the analysis is undertaken. County name is the name
B5: of the county. Much of the data used for this analysis is derived from county-level information
B6: (in many cases, the only data source available), so you will see the county name repeated, for
B7: reference, in other areas of the data input page.
A9: HUD Median Income by County | J9: http://www.huduser.org/portal/datasets/il/index_il2010.html
B10: Median income by County and a description of median income calculation methodology.
A12: Mortgage and Shelter Cost Assumptions
B13: Mortgage assumptions are estimated by the analyst based on local conditions.
B14: Telephone research and interviews with housing market participants (realtors,
B15: mortgage brokers, etc.) is the typical approach. Shelter Cost % of Income refers to
B16: the share of gross household income devoted to housing (earnings plus any other
B17: disposable income, here estimated to be about 2% of earnings). Shelter cost equal
B18: to no more than 30% of income is a common guideline.
A20: Number of Jobs per Worker
B21: "LED on the Map." The interface is a guided, and well documented. To start, enter the name of the study area in search box on left side,. When the map appears click 'perform analysis on selection area'. Select "Work", "Area Profile", and "Primary Jobs". | J21: http://onthemap.ces.census.gov/
B23: You may choose to use an estimate in the range of 1.05 to 1.15.
A26: Workers per Household and Estimated Workers 21+ - Census 2000 - SF3 | O26: US Census Bureau Local Employment Dynamics (LED) - Data tools
B27: At the Census Bureau Gateway, select the tab Labeled "Census 2000." Then select Summary File 3, and click on "Detailed Tables." | O27: Select "Industry Focus"
C28: http://factfinder.census.gov/servlet/DatasetMainPageServlet?_program=DEC&_submenuId=&_lang=en&_ts= | O28: Use the following as parameters for this query:
B29: Table numbers needed to complete this section of the model are shown adjacent to user input cells on the User Input page of this model. | P29: List the top 100 industries
C30: This Census data is used to estimate the average number of workers and number | P30: Ranking Indicator = "rank by employment"
C31: of jobs per household. The basic assumption is that there is one primary job, and | P31: Include in report = "employment" & "average monthly earnings for all workers"
C32: slightly more than one non-primary job per household. (As can be seen from the | P32: Age & Sex = "14-99" and "Male & Female"
C33: analysis, number of jobs per worker and number of workers per household is, on | P33: Geography = "Utah"
C34: average, greater than one.) Workers less | P34: Entity = "County"
P35: Select Industry Level = "Industries"
A36: QWI Online | J36: http://lehd.did.census.gov/led/datatools/qwi-online.html | P36: Industry Sector = "All Sectors"
B37: Select "Access QWI Online". On the next screen select "Utah." Select the most recent year for which data is available, select Q4, and "Age Group "14 - 99." Geography Grouping is "County." Select your county. Industry is "All NAICS Sectors." Ownership is "All (1 - 5)." Run this report two times - first, select "Sex" as male. Then run the report again for Female. | P37: Select County name
O38: Click "View Report"
O39: Copy the data to the user input section "# Jobs & Earnings
C40: This dataset defines average monthly earnings by county, for male and female workers. Average
C41: non-primary earnings are here estimated to be the average rate for female workers,
A43: Estimated Household "Other" Income
B44: Some households have sources of income other than wages. This parameter is an
B45: estimate of that other income, as a percent of wages, made under the assumption that
B46: this added income is likely to be spent and is ongoing In the absence of other data, a
B47: baseline modeling assumption could be 4% – which is an appropriately conservative
B48: estimate for most households
A50: Household Size and Number of Households by County | J50: http://www.governor.utah.gov/dea/projections.html
B51: Governor's Office of Planning and Budget, Baseline Projections
B52: select - "Household projections by area"
A54: US Census Sub County Population Estimates | I54: http://www.census.gov/popest/cities/SUB-EST2006-states.html
B55: US Census Bureau
B56: Click on "Utah". Save page as "text". Open in Excel and save as
B57: excel workbook
A59: # Households by Income - Utah State Tax Commission Summary Data | J59: Data Source
B60: Contact Name: | D60: Tom Williams
B61: Data source link (model page)
B62: Data summary must be updated periodically, by Tax
B63: Commission personnel
A65: HUD Median Rent (50th percentile) by County | J65: http://www.huduser.org/datasets/50per.html
B66: Select rent for # bedrooms, as appropriate for your analysis - 2 bedroom is typical if
B67: average household size is , for example, 3.4
A69: Median Single Family & Multi Family Listing Price | J69: http://www.realtor.com
B70: Realtor.com is a potential source for median price information. Check with
B71: them as to use of data for research purposes. Go to the site. Select city and
B72: state. (The data is available for cities only. Do this selection process
B73: multiple times, so as to include all cities, if your study area is a county.
B74: cities.) Select single family or multi-family, number of bedrooms, and then
B75: "view as list". Make a list of the all the prices shown. Use the Excel
B76: "Median" function to calculate median price
A78: Trend in Vacancy and Home Ownership Rate, and Personal Income | J78: http://alfred.stlouisfed.org/categories
C79: Statewide trends reported by the economic research
C80: department of the St. Louis Fed.
A82: Number of Jobs and Earnings | J82: http://lehd.did.census.gov/led/datatools/datatools.html
B83: US Census Bureau Local Employment Dynamics (LED) - Data tools
B84: Select "Industry Focus"
B85: Use the following as parameters for this query:
C86: List the top 100 industries
C87: Ranking Indicator = "rank by employment"
C88: Include in report = "employment" & "average monthly earnings for all workers"
C89: Age & Sex = "14-99" and "Male & Female"
C90: Geography = "Utah"
C91: Entity = "County"
C92: Select Industry Level = "Industries"
C93: Industry Sector = "All Sectors"
C94: Select County name
B95: Click "View Report"
B96: Copy the data to the user input section "# Jobs & Earnings
A98: Housing Stock - Number of Units by Value | J98: Sample Data Request form for County Assessor
B99: Single Family & Multi Family | J99: Assessor & Assoc. of Governments Contact Info
C100: Number of dwelling units by value is obtained from the County Assessor's office, and may also
C101: may be available through your local AOG office (Association of Governments office). A sample
C102: data request form is included as part of this model. Use this form with assessor's office staff to
C103: request a count of single-family, and all other residential units, by value category (value categories
C104: for your study area are shown in the sample data request form).
B106: Rental Units
C107: You may be able to obtain account of total rental units, from the city or county clerk,
C108: from business licenses. (Rental units by the monthly rent is estimated based on the
C109: income profile for the study area.)
A112: Housing Stock Growth Rate
B113: Building permit history and projections as may be available from the local building official, are a
B114: preferred means of estimating the trend in the residential growth rate. The objective is to define an
B115: annual average percentage increase for owner units (single family and multifamily), market rate, and
B116: subsidized rentals.
B118: These residential growth rates are compared in the model, against average population growth
B119: (from Household Size and Number of Households by County, above) to estimate the potential
B120: affordability trend in the study area.
B122: Growth rate projection is not necessary for the model to function. It is optional. The model will
B123: show the current net affordable housing supply without the need to research and project growth
B124: rates. To complete the analysis without growth projection, set the growth rate cells to 0% if no
B125: projection will be made.
A127: Population | J127: http://www.governor.utah.gov/dea/projections.html
A129: Other Useful Data Sets
B130: BLS Consumer Expenditure Survey | J130: http://www.bls.gov/cex/
B131: HUD Data Sets | J131: http://www.huduser.org/datasets/pdrdatas.html
B132: USPS Vacancy Data | J132: http://www.huduser.org/datasets/usps.html
B133: HUD Fair Market Rents | J133: http://www.huduser.org/datasets/fmr.html
B134: Section 8 income limits | J134: http://www.huduser.org/DATASETS/il/il07/index.html
B135: Fed housing report and state rental vacancy rate | J135: http://alfred.stlouisfed.org/source?soid=19
B137: Economic & Labor Market Information | J137: http://jobs.utah.gov/opencms/wi
B138: 2002 NAICS Code List (text) | J138: http://www.census.gov/epcd/naics02/naicod02.txt
B139: 2002 NAICS Code List | J139: http://www.census.gov/epcd/naics02/naicod02.htm
B140: NAICS Tables | J140: http://www.census.gov/epcd/naics02/

Sheet Summary
A1: ="Affordable Housing Supply & Affordability Gap by HUD AMI - "& 'User Input'!E4 &" ("&TEXT('User Input'!E6,"MMM, YYY") &")" -> Affordable Housing Supply & Affordability Gap by HUD AMI - Test City (Oct, 2011) | G1: Affordable Shelter Cost | J1: ="Number of Households ("&TEXT( 'User Input'!$E$6,"yyyy") &")" -> Number of Households (2011) | K1: ="Number of DU ("&TEXT( 'User Input'!$E$6,"yyyy") &")" -> Number of DU (2011) | L1: Affordable Housing Supply | O1: Price "Gap"
O2: Owned Unit (single family) | Q2: Owned Unit (multi family) | S2: ="Rental ("& 'User Input'!G125 & " bedroom)" -> Rental (2 bedroom)
G3: Owned | I3: Rent | L3: ="Current (" & YEAR('User Input'!E6) & ")" -> Current (2011) | M3: ="5 Years ("&YEAR('User Input'!E6)+5&")" -> 5 Years (2016) | N3: ="10 Years ("&YEAR('User Input'!E6)+10&")" -> 10 Years (2021) | O3: Median Price | P3: "Gap" | Q3: =O3 -> Median Price | R3: =P3 -> "Gap" | S3: Median Rent | T3: =R3 -> "Gap"
G4: Single Family | H4: Multi Family
A6: =Reg!A4:A10 -> 30% of Median | C6: ='Reg2'!W12 -> Up to $18,870 | G6: =Reg!T4:T9 -> 68000 | H6: =Reg!W4:W9 -> 25000 | I6: =Reg!H4:H9 -> 471.75 | J6: ='User Input'!G110:G116/SUM('User Input'!G110:G116)*'User Input'!G92 -> 11230.39298 | K6: ='Reg2'!I24:I30 -> 484.3215017 | L6: ='Reg2'!S24 -> -10746.07148 | M6: ='Reg2'!T24 -> -12825.27985 | N6: ='Reg2'!U24 -> -15303.08045 | O6: ='User Input'!$G$130 -> 149950 | P6: =MIN($G6-O6,0) -> -81950 | Q6: ='User Input'!$G$134 -> 0 | R6: =MIN($H6-Q6,0) -> 0 | S6: ='User Input'!$G$124 -> 735 | T6: =MIN(I6-S6,0) -> -263.25
A7: 50% of Median | C7: ='Reg2'!W13 -> Between $18,870 and $31,450 | G7: 123000 | H7: 80000 | I7: 786.25 | J7: 5890.933203 | K7: 2041.617065 | L7: ='Reg2'!S25 -> -3849.316138 | M7: ='Reg2'!T25 -> -4753.919359 | N7: ='Reg2'!U25 -> -5848.240859 | O7: ='User Input'!$G$130 -> 149950 | P7: -26950 | Q7: ='User Input'!$G$134 -> 0 | R7: 0 | S7: ='User Input'!$G$124 -> 735 | T7: 0
A8: 60% of Median | C8: ='Reg2'!W14 -> Between $31,450 and $37,740 | G8: 151000 | H8: 107000 | I8: 943.5 | J8: 2195.206241 | K8: 7725.380887 | L8: ='Reg2'!S26 -> 5530.174647 | M8: ='Reg2'!T26 -> 5917.962019 | N8: ='Reg2'!U26 -> 6310.498586 | O8: ='User Input'!$G$130 -> 149950 | P8: 0 | Q8: ='User Input'!$G$134 -> 0 | R8: 0 | S8: ='User Input'!$G$124 -> 735 | T8: 0
A9: 80% of Median | C9: ='Reg2'!W15 -> Between $37,740 and $50,320 | G9: 205000 | H9: 162000 | I9: 1258 | J9: 3154.941004 | K9: 38907.59317 | L9: ='Reg2'!S27 -> 35752.65217 | M9: ='Reg2'!T27 -> 39203.91495 | N9: ='Reg2'!U27 -> 42963.20648 | O9: ='User Input'!$G$130 -> 149950 | P9: 0 | Q9: ='User Input'!$G$134 -> 0 | R9: 0 | S9: ='User Input'!$G$124 -> 735 | T9: 0
A10: MEDIAN | C10: ='Reg2'!W16 -> Between $50,320 and $62,900 (median) | G10: 260000 | H10: 217000 | I10: 1572.5 | J10: 2164.212579 | K10: 31651.59898 | L10: ='Reg2'!S28 -> 29487.3864 | M10: ='Reg2'!T28 -> 32371.31109 | N10: ='Reg2'!U28 -> 35520.28775 | O10: ='User Input'!$G$130 -> 149950 | P10: 0 | Q10: ='User Input'!$G$134 -> 0 | R10: 0 | S10: ='User Input'!$G$124 -> 735 | T10: 0
A11: 120% of Median | C11: ='Reg2'!W17 -> Between $62,900 and $75,480 | G11: 315000 | H11: 272000 | I11: 1887 | J11: 1564.645539 | K11: 14521.47304 | L11: ='Reg2'!S29 -> 12956.8275 | M11: ='Reg2'!T29 -> 14171.53069 | N11: ='Reg2'!U29 -> 15487.27849 | O11: ='User Input'!$G$130 -> 149950 | P11: 0 | Q11: ='User Input'!$G$134 -> 0 | R11: 0 | S11: ='User Input'!$G$124 -> 735 | T11: 0
A12: More than 120% | C12: ='Reg2'!W18 -> More than $75,480 | J12: 5113.954169 | K12: 21191.01536 | L12: ='Reg2'!S30 -> 16077.06119 | M12: ='Reg2'!T30 -> 17312.88109 | N12: ='Reg2'!U30 -> 18594.36431
A13: Total | J13: =SUM(J6:J12) -> 31314.28571 | K13: =SUM(K6:K12) -> 116523 | L13: =SUM(L6:L12) -> 85208.71429 | M13: =IF('Reg2'!N36,"",SUM(M6:M12)) -> 91398.40062 | N13: =IF('Reg2'!N48,"",SUM(N6:N12)) -> 97724.31431
A16: ="Housing Affordability Gap by Job Type - " & 'User Input'!E4&" ("&TEXT('User Input'!E6,"MMM, YYY") &")" -> Housing Affordability Gap by Job Type - Test City (Oct, 2011) | F16: Household Income | M16: =G1 -> Affordable Shelter Cost | P16: =O1 -> Price "Gap"
F17: Primary Job | H17: Non-Primary Jobs | J17: Total Earnings | K17: Other Disposable Income (% of total) | L17: Total Income (per year) | P17: =O2 -> Owned Unit (single family) | R17: =S2 -> Rental (2 bedroom)
F18: # Jobs (% of total) | G18: Earnings (per year) | H18: # Jobs (per household) | I18: =G18 -> Earnings (per year) | M18: Rent | N18: Own (single family) | O18: Own (multi family) | P18: =O3 -> Median Price | Q18: =P3 -> "Gap" | R18: =S3 -> Median Rent | S18: =T3 -> "Gap"
A22: Local Government and Emergency Response Workers
B23: ='User Input'!S10 -> Police Officer | G23: ='User Input'!X10 -> 47084 | H23: =IF(ISNUMBER(G23),'User Input'!$G$49-1,"") -> 1.394835252 | I23: =IF(ISNUMBER(G23),'User Input'!$G$77*12*H23,"") -> 37175.14912 | J23: =IF(ISNUMBER(G23),SUM(I23,G23),"") -> 84259.14912 | K23: =IF(ISNUMBER(G23),'User Input'!$G$83,"") -> 0.02 | L23: =IF(ISNUMBER(G23),J23/(1-K23),"") -> 85978.7236 | M23: =IF(ISNUMBER(G23),Reg!H13,"") -> 1177.1 | N23: =IF(ISNUMBER(G23),Reg!T13,"") -> 191000 | O23: =IF(ISNUMBER(G23),Reg!W13,"") -> 148000 | P23: =IF(ISNUMBER(G23),'User Input'!$G$130,"") -> 149950 | Q23: =IF(ISNUMBER(G23),MIN(0,N23-P23),"") -> 0 | R23: =IF(ISNUMBER(G23),'User Input'!$G$124,"") -> 735 | S23: =IF(ISNUMBER(G23),MIN(M23-R23,0),"") -> 0
B24: ='User Input'!S11 -> Fire Fighter or EMT | G24: ='User Input'!X11 -> 51008 | H24: =IF(ISNUMBER(G24),'User Input'!$G$49-1,"") -> 1.394835252 | I24: =IF(ISNUMBER(G24),'User Input'!$G$77*12*H24,"") -> 37175.14912 | J24: 88183.14912 | K24: =IF(ISNUMBER(G24),'User Input'!$G$83,"") -> 0.02 | L24: 89982.80523 | M24: =IF(ISNUMBER(G24),Reg!H14,"") -> 1275.2 | N24: =IF(ISNUMBER(G24),Reg!T14,"") -> 208000 | O24: =IF(ISNUMBER(G24),Reg!W14,"") -> 165000 | P24: =IF(ISNUMBER(G24),'User Input'!$G$130,"") -> 149950 | Q24: 0 | R24: =IF(ISNUMBER(G24),'User Input'!$G$124,"") -> 735 | S24: 0
B25: ='User Input'!S12 -> Public Works (wastewater worker) | G25: ='User Input'!X12 -> 42449 | H25: =IF(ISNUMBER(G25),'User Input'!$G$49-1,"") -> 1.394835252 | I25: =IF(ISNUMBER(G25),'User Input'!$G$77*12*H25,"") -> 37175.14912 | J25: 79624.14912 | K25: =IF(ISNUMBER(G25),'User Input'!$G$83,"") -> 0.02 | L25: 81249.13176 | M25: =IF(ISNUMBER(G25),Reg!H15,"") -> 1061.225 | N25: =IF(ISNUMBER(G25),Reg!T15,"") -> 171000 | O25: =IF(ISNUMBER(G25),Reg!W15,"") -> 128000 | P25: =IF(ISNUMBER(G25),'User Input'!$G$130,"") -> 149950 | Q25: 0 | R25: =IF(ISNUMBER(G25),'User Input'!$G$124,"") -> 735 | S25: 0
B26: ='User Input'!S13 -> Local Government Staff - Administrator | G26: ='User Input'!X13 -> 98000 | H26: =IF(ISNUMBER(G26),'User Input'!$G$49-1,"") -> 1.394835252 | I26: =IF(ISNUMBER(G26),'User Input'!$G$77*12*H26,"") -> 37175.14912 | J26: 135175.1491 | K26: =IF(ISNUMBER(G26),'User Input'!$G$83,"") -> 0.02 | L26: 137933.8256 | M26: =IF(ISNUMBER(G26),Reg!H16,"") -> 2450 | N26: =IF(ISNUMBER(G26),Reg!T16,"") -> 413000 | O26: =IF(ISNUMBER(G26),Reg!W16,"") -> 370000 | P26: =IF(ISNUMBER(G26),'User Input'!$G$130,"") -> 149950 | Q26: 0 | R26: =IF(ISNUMBER(G26),'User Input'!$G$124,"") -> 735 | S26: 0
B27: ='User Input'!S14 -> Local Government Staff - Executive | G27: ='User Input'!X14 -> 79000 | H27: =IF(ISNUMBER(G27),'User Input'!$G$49-1,"") -> 1.394835252 | I27: =IF(ISNUMBER(G27),'User Input'!$G$77*12*H27,"") -> 37175.14912 | J27: 116175.1491 | K27: =IF(ISNUMBER(G27),'User Input'!$G$83,"") -> 0.02 | L27: 118546.0705 | M27: =IF(ISNUMBER(G27),Reg!H17,"") -> 1975 | N27: =IF(ISNUMBER(G27),Reg!T17,"") -> 330000 | O27: =IF(ISNUMBER(G27),Reg!W17,"") -> 287000 | P27: =IF(ISNUMBER(G27),'User Input'!$G$130,"") -> 149950 | Q27: 0 | R27: =IF(ISNUMBER(G27),'User Input'!$G$124,"") -> 735 | S27: 0
B28: ='User Input'!S15 -> Local Government Staff - Clerical | G28: ='User Input'!X15 -> 36904 | H28: =IF(ISNUMBER(G28),'User Input'!$G$49-1,"") -> 1.394835252 | I28: =IF(ISNUMBER(G28),'User Input'!$G$77*12*H28,"") -> 37175.14912 | J28: 74079.14912 | K28: =IF(ISNUMBER(G28),'User Input'!$G$83,"") -> 0.02 | L28: 75590.96849 | M28: =IF(ISNUMBER(G28),Reg!H18,"") -> 922.6 | N28: =IF(ISNUMBER(G28),Reg!T18,"") -> 147000 | O28: =IF(ISNUMBER(G28),Reg!W18,"") -> 104000 | P28: =IF(ISNUMBER(G28),'User Input'!$G$130,"") -> 149950 | Q28: -2950 | R28: =IF(ISNUMBER(G28),'User Input'!$G$124,"") -> 735 | S28: 0
M29: =IF(ISNUMBER(G29),Reg!H19,"") ->  | N29: =IF(ISNUMBER(G29),Reg!T19,"") ->  | O29: =IF(ISNUMBER(G29),Reg!W19,"") -> 
A30: Basic Local Employment | H30: =IF(ISNUMBER(G30),'User Input'!$G$49-1,"") ->  | I30: =IF(ISNUMBER(G30),'User Input'!$G$77*H30,"") ->  | J30: =IF(ISNUMBER(G30),SUM(I30,G30),"") ->  | K30: =IF(ISNUMBER(G30),'User Input'!$G$83,"") ->  | M30: =IF(ISNUMBER(G30),Reg!H20,"") ->  | N30: =IF(ISNUMBER(G30),Reg!T20,"") ->  | O30: =IF(ISNUMBER(G30),Reg!W20,"") ->  | P30: =IF(ISNUMBER(I30),#REF!,"") ->  | Q30: =IF(ISNUMBER(J30),#REF!,"") ->  | R30: =IF(ISNUMBER(K30),#REF!,"") ->  | S30: =IF(ISNUMBER(#REF!),#REF!,"") -> 
B31: ='User Input'!S18 -> Teacher (public school, entry level) | G31: ='User Input'!X18 -> 26950 | H31: =IF(ISNUMBER(G31),'User Input'!$G$49-1,"") -> 1.394835252 | I31: =IF(ISNUMBER(G31),'User Input'!$G$77*12*H31,"") -> 37175.14912 | J31: 64125.14912 | K31: =IF(ISNUMBER(G31),'User Input'!$G$83,"") -> 0.02 | L31: =IF(ISNUMBER(G31),J31/(1-K31),"") -> 65433.82564 | M31: =IF(ISNUMBER(G31),Reg!H21,"") -> 673.75 | N31: =IF(ISNUMBER(G31),Reg!T21,"") -> 104000 | O31: =IF(ISNUMBER(G31),Reg!W21,"") -> 60000 | P31: =IF(ISNUMBER(G31),'User Input'!$G$130,"") -> 149950 | Q31: =IF(ISNUMBER(G31),MIN(0,N31-P31),"") -> -45950 | R31: =IF(ISNUMBER(G31),'User Input'!$G$124,"") -> 735 | S31: =IF(ISNUMBER(G31),MIN(M31-R31,0),"") -> -61.25
B32: ='User Input'!S19 -> Social Worker | G32: ='User Input'!X19 -> 32860 | H32: =IF(ISNUMBER(G32),'User Input'!$G$49-1,"") -> 1.394835252 | I32: =IF(ISNUMBER(G32),'User Input'!$G$77*12*H32,"") -> 37175.14912 | J32: 70035.14912 | K32: =IF(ISNUMBER(G32),'User Input'!$G$83,"") -> 0.02 | L32: 71464.43788 | M32: =IF(ISNUMBER(G32),Reg!H22,"") -> 821.5 | N32: =IF(ISNUMBER(G32),Reg!T22,"") -> 129000 | O32: =IF(ISNUMBER(G32),Reg!W22,"") -> 86000 | P32: =IF(ISNUMBER(G32),'User Input'!$G$130,"") -> 149950 | Q32: -20950 | R32: =IF(ISNUMBER(G32),'User Input'!$G$124,"") -> 735 | S32: 0
B33: ='User Input'!S20 -> Nurse (LPN) | G33: ='User Input'!X20 -> 28740 | H33: =IF(ISNUMBER(G33),'User Input'!$G$49-1,"") -> 1.394835252 | I33: =IF(ISNUMBER(G33),'User Input'!$G$77*12*H33,"") -> 37175.14912 | J33: 65915.14912 | K33: =IF(ISNUMBER(G33),'User Input'!$G$83,"") -> 0.02 | L33: 67260.35625 | M33: =IF(ISNUMBER(G33),Reg!H23,"") -> 718.5 | N33: =IF(ISNUMBER(G33),Reg!T23,"") -> 111000 | O33: =IF(ISNUMBER(G33),Reg!W23,"") -> 68000 | P33: =IF(ISNUMBER(G33),'User Input'!$G$130,"") -> 149950 | Q33: -38950 | R33: =IF(ISNUMBER(G33),'User Input'!$G$124,"") -> 735 | S33: -16.5
B34: ='User Input'!S21 -> Retail (general merchandise) | G34: ='User Input'!X21 -> 15550 | H34: =IF(ISNUMBER(G34),'User Input'!$G$49-1,"") -> 1.394835252 | I34: =IF(ISNUMBER(G34),'User Input'!$G$77*12*H34,"") -> 37175.14912 | J34: 52725.14912 | K34: =IF(ISNUMBER(G34),'User Input'!$G$83,"") -> 0.02 | L34: 53801.17257 | M34: =IF(ISNUMBER(G34),Reg!H24,"") -> 388.75 | N34: =IF(ISNUMBER(G34),Reg!T24,"") -> 54000 | O34: =IF(ISNUMBER(G34),Reg!W24,"") -> 10000 | P34: =IF(ISNUMBER(G34),'User Input'!$G$130,"") -> 149950 | Q34: -95950 | R34: =IF(ISNUMBER(G34),'User Input'!$G$124,"") -> 735 | S34: -346.25
B35: ='User Input'!S22 -> Housekeeping | G35: ='User Input'!X22 -> 16720 | H35: =IF(ISNUMBER(G35),'User Input'!$G$49-1,"") -> 1.394835252 | I35: =IF(ISNUMBER(G35),'User Input'!$G$77*12*H35,"") -> 37175.14912 | J35: 53895.14912 | K35: =IF(ISNUMBER(G35),'User Input'!$G$83,"") -> 0.02 | L35: 54995.05013 | M35: =IF(ISNUMBER(G35),Reg!H25,"") -> 418 | N35: =IF(ISNUMBER(G35),Reg!T25,"") -> 59000 | O35: =IF(ISNUMBER(G35),Reg!W25,"") -> 16000 | P35: =IF(ISNUMBER(G35),'User Input'!$G$130,"") -> 149950 | Q35: -90950 | R35: =IF(ISNUMBER(G35),'User Input'!$G$124,"") -> 735 | S35: -317
B36: ='User Input'!S23 -> Food Service (restaurant) | G36: ='User Input'!X23 -> 20020 | H36: =IF(ISNUMBER(G36),'User Input'!$G$49-1,"") -> 1.394835252 | I36: =IF(ISNUMBER(G36),'User Input'!$G$77*12*H36,"") -> 37175.14912 | J36: 57195.14912 | K36: =IF(ISNUMBER(G36),'User Input'!$G$83,"") -> 0.02 | L36: 58362.39706 | M36: =IF(ISNUMBER(G36),Reg!H26,"") -> 500.5 | N36: =IF(ISNUMBER(G36),Reg!T26,"") -> 73000 | O36: =IF(ISNUMBER(G36),Reg!W26,"") -> 30000 | P36: =IF(ISNUMBER(G36),'User Input'!$G$130,"") -> 149950 | Q36: -76950 | R36: =IF(ISNUMBER(G36),'User Input'!$G$124,"") -> 735 | S36: -234.5
B37: ='User Input'!S24 -> Mid-Level Manager (private sector) | G37: ='User Input'!X24 -> 46120 | H37: =IF(ISNUMBER(G37),'User Input'!$G$49-1,"") -> 1.394835252 | I37: =IF(ISNUMBER(G37),'User Input'!$G$77*12*H37,"") -> 37175.14912 | J37: 83295.14912 | K37: =IF(ISNUMBER(G37),'User Input'!$G$83,"") -> 0.02 | L37: 84995.05013 | M37: =IF(ISNUMBER(G37),Reg!H27,"") -> 1153 | N37: =IF(ISNUMBER(G37),Reg!T27,"") -> 187000 | O37: =IF(ISNUMBER(G37),Reg!W27,"") -> 144000 | P37: =IF(ISNUMBER(G37),'User Input'!$G$130,"") -> 149950 | Q37: 0 | R37: =IF(ISNUMBER(G37),'User Input'!$G$124,"") -> 735 | S37: 0
B38: ='User Input'!S25 -> Agricultural Worker (farming) | G38: ='User Input'!X25 -> 32350 | H38: =IF(ISNUMBER(G38),'User Input'!$G$49-1,"") -> 1.394835252 | I38: =IF(ISNUMBER(G38),'User Input'!$G$77*12*H38,"") -> 37175.14912 | J38: 69525.14912 | K38: =IF(ISNUMBER(G38),'User Input'!$G$83,"") -> 0.02 | L38: 70944.02972 | M38: =IF(ISNUMBER(G38),Reg!H28,"") -> 808.75 | N38: =IF(ISNUMBER(G38),Reg!T28,"") -> 127000 | O38: =IF(ISNUMBER(G38),Reg!W28,"") -> 84000 | P38: =IF(ISNUMBER(G38),'User Input'!$G$130,"") -> 149950 | Q38: -22950 | R38: =IF(ISNUMBER(G38),'User Input'!$G$124,"") -> 735 | S38: 0
B39: ='User Input'!S26 -> Construction Worker | G39: ='User Input'!X26 -> 20920 | H39: =IF(ISNUMBER(G39),'User Input'!$G$49-1,"") -> 1.394835252 | I39: =IF(ISNUMBER(G39),'User Input'!$G$77*12*H39,"") -> 37175.14912 | J39: 58095.14912 | K39: =IF(ISNUMBER(G39),'User Input'!$G$83,"") -> 0.02 | L39: 59280.76441 | M39: =IF(ISNUMBER(G39),Reg!H29,"") -> 523 | N39: =IF(ISNUMBER(G39),Reg!T29,"") -> 77000 | O39: =IF(ISNUMBER(G39),Reg!W29,"") -> 34000 | P39: =IF(ISNUMBER(G39),'User Input'!$G$130,"") -> 149950 | Q39: -72950 | R39: =IF(ISNUMBER(G39),'User Input'!$G$124,"") -> 735 | S39: -212
M40: =IF(ISNUMBER(G40),Reg!H30,"") ->  | N40: =IF(ISNUMBER(G40),Reg!T30,"") ->  | O40: =IF(ISNUMBER(G40),Reg!W30,"") -> 
A41: ="Jobs by NAICS Code - "&'User Input'!L4 & ")" -> Jobs by NAICS Code - Test County) | M41: =IF(ISNUMBER(G41),Reg!H31,"") ->  | N41: =IF(ISNUMBER(G41),Reg!T31,"") ->  | O41: =IF(ISNUMBER(G41),Reg!W31,"") -> 
A42: Link to NAICS Code info | M42: =IF(ISNUMBER(G42),Reg!H32,"") ->  | N42: =IF(ISNUMBER(G42),Reg!T32,"") ->  | O42: =IF(ISNUMBER(G42),Reg!W32,"") -> 
A43: 1 | B43: =IF(ISNUMBER(G43),'User Input'!J9,"") -> All NAICS subsectors | F43: =IF(ISNUMBER('User Input'!$O$9:$O$98),'User Input'!O9:O98/SUM('User Input'!O9:O98),"") -> 0.4997179106 | G43: =IF(ISNUMBER('User Input'!$P$9:$P$98),'User Input'!$P$9:$P$98*12,"") -> 38388 | H43: =IF(ISNUMBER(G43),'User Input'!$G$49-1,"") -> 1.394835252 | I43: =IF(ISNUMBER(G43),'User Input'!$G$77*12*H43,"") -> 37175.14912 | J43: =IF(ISNUMBER(G43),SUM(I43,G43),"") -> 75563.14912 | K43: =IF(ISNUMBER(G43),'User Input'!$G$83,"") -> 0.02 | L43: =IF(ISNUMBER(G43),J43/(1-K43),"") -> 77105.25421 | M43: =IF(ISNUMBER(G43),Reg!H31,"") -> 1927.631355 | N43: =IF(ISNUMBER(G43),Reg!T31,"") -> 322000 | O43: =IF(ISNUMBER(G43),Reg!W31,"") -> 279000 | P43: =IF(ISNUMBER(G43),'User Input'!$G$130,"") -> 149950 | Q43: =IF(ISNUMBER(G43),MIN(0,N43-P43),"") -> 0 | R43: =IF(ISNUMBER(G43),'User Input'!$G$124,"") -> 735 | S43: =IF(ISNUMBER(G43),MIN(M43-R43,0),"") -> 0
A44: 2 | B44: =IF(ISNUMBER(G44),'User Input'!J10,"") -> 722 Food Services and Drinking Places | F44: 0.03524002285 | G44: 14304 | H44: =IF(ISNUMBER(G44),'User Input'!$G$49-1,"") -> 1.394835252 | I44: =IF(ISNUMBER(G44),'User Input'!$G$77*12*H44,"") -> 37175.14912 | J44: 51479.14912 | K44: =IF(ISNUMBER(G44),'User Input'!$G$83,"") -> 0.02 | L44: 52529.744 | M44: =IF(ISNUMBER(G44),Reg!H32,"") -> 1313.2436 | N44: =IF(ISNUMBER(G44),Reg!T32,"") -> 215000 | O44: =IF(ISNUMBER(G44),Reg!W32,"") -> 172000 | P44: =IF(ISNUMBER(G44),'User Input'!$G$130,"") -> 149950 | Q44: 0 | R44: =IF(ISNUMBER(G44),'User Input'!$G$124,"") -> 735 | S44: 0
A45: 3 | B45: =IF(ISNUMBER(G45),'User Input'!J11,"") -> 238 Specialty Trade Contractors | F45: 0.03147765499 | G45: 36960 | H45: =IF(ISNUMBER(G45),'User Input'!$G$49-1,"") -> 1.394835252 | I45: =IF(ISNUMBER(G45),'User Input'!$G$77*12*H45,"") -> 37175.14912 | J45: 74135.14912 | K45: =IF(ISNUMBER(G45),'User Input'!$G$83,"") -> 0.02 | L45: 75648.11135 | M45: =IF(ISNUMBER(G45),Reg!H33,"") -> 1891.202784 | N45: =IF(ISNUMBER(G45),Reg!T33,"") -> 316000 | O45: =IF(ISNUMBER(G45),Reg!W33,"") -> 273000 | P45: =IF(ISNUMBER(G45),'User Input'!$G$130,"") -> 149950 | Q45: 0 | R45: =IF(ISNUMBER(G45),'User Input'!$G$124,"") -> 735 | S45: 0
A46: 4 | B46: =IF(ISNUMBER(G46),'User Input'!J12,"") -> 541 Professional, Scientific, and Technical Services | F46: 0.03939026368 | G46: 51420 | H46: =IF(ISNUMBER(G46),'User Input'!$G$49-1,"") -> 1.394835252 | I46: =IF(ISNUMBER(G46),'User Input'!$G$77*12*H46,"") -> 37175.14912 | J46: 88595.14912 | K46: =IF(ISNUMBER(G46),'User Input'!$G$83,"") -> 0.02 | L46: 90403.21339 | M46: =IF(ISNUMBER(G46),Reg!H34,"") -> 2260.080335 | N46: =IF(ISNUMBER(G46),Reg!T34,"") -> 380000 | O46: =IF(ISNUMBER(G46),Reg!W34,"") -> 337000 | P46: =IF(ISNUMBER(G46),'User Input'!$G$130,"") -> 149950 | Q46: 0 | R46: =IF(ISNUMBER(G46),'User Input'!$G$124,"") -> 735 | S46: 0
A47: 5 | B47: =IF(ISNUMBER(G47),'User Input'!J13,"") -> 561 Administrative and Support Services | F47: 0.03194662868 | G47: 30900 | H47: =IF(ISNUMBER(G47),'User Input'!$G$49-1,"") -> 1.394835252 | I47: =IF(ISNUMBER(G47),'User Input'!$G$77*12*H47,"") -> 37175.14912 | J47: 68075.14912 | K47: =IF(ISNUMBER(G47),'User Input'!$G$83,"") -> 0.02 | L47: 69464.43788 | M47: =IF(ISNUMBER(G47),Reg!H35,"") -> 1736.610947 | N47: =IF(ISNUMBER(G47),Reg!T35,"") -> 289000 | O47: =IF(ISNUMBER(G47),Reg!W35,"") -> 246000 | P47: =IF(ISNUMBER(G47),'User Input'!$G$130,"") -> 149950 | Q47: 0 | R47: =IF(ISNUMBER(G47),'User Input'!$G$124,"") -> 735 | S47: 0
A48: 6 | B48: =IF(ISNUMBER(G48),'User Input'!J14,"") -> 621 Ambulatory Health Care Services | F48: 0.02432668778 | G48: 45084 | H48: =IF(ISNUMBER(G48),'User Input'!$G$49-1,"") -> 1.394835252 | I48: =IF(ISNUMBER(G48),'User Input'!$G$77*12*H48,"") -> 37175.14912 | J48: 82259.14912 | K48: =IF(ISNUMBER(G48),'User Input'!$G$83,"") -> 0.02 | L48: 83937.90727 | M48: =IF(ISNUMBER(G48),Reg!H36,"") -> 2098.447682 | N48: =IF(ISNUMBER(G48),Reg!T36,"") -> 352000 | O48: =IF(ISNUMBER(G48),Reg!W36,"") -> 309000 | P48: =IF(ISNUMBER(G48),'User Input'!$G$130,"") -> 149950 | Q48: 0 | R48: =IF(ISNUMBER(G48),'User Input'!$G$124,"") -> 735 | S48: 0
A49: 7 | B49: =IF(ISNUMBER(G49),'User Input'!J15,"") -> 452 General Merchandise Stores | F49: 0.01509178485 | G49: 21252 | H49: =IF(ISNUMBER(G49),'User Input'!$G$49-1,"") -> 1.394835252 | I49: =IF(ISNUMBER(G49),'User Input'!$G$77*12*H49,"") -> 37175.14912 | J49: 58427.14912 | K49: =IF(ISNUMBER(G49),'User Input'!$G$83,"") -> 0.02 | L49: 59619.53992 | M49: =IF(ISNUMBER(G49),Reg!H37,"") -> 1490.488498 | N49: =IF(ISNUMBER(G49),Reg!T37,"") -> 246000 | O49: =IF(ISNUMBER(G49),Reg!W37,"") -> 203000 | P49: =IF(ISNUMBER(G49),'User Input'!$G$130,"") -> 149950 | Q49: 0 | R49: =IF(ISNUMBER(G49),'User Input'!$G$124,"") -> 735 | S49: 0
A50: 8 | B50: =IF(ISNUMBER(G50),'User Input'!J16,"") -> 339 Miscellaneous Manufacturing | F50: 0.002887890606 | G50: 37932 | H50: =IF(ISNUMBER(G50),'User Input'!$G$49-1,"") -> 1.394835252 | I50: =IF(ISNUMBER(G50),'User Input'!$G$77*12*H50,"") -> 37175.14912 | J50: 75107.14912 | K50: =IF(ISNUMBER(G50),'User Input'!$G$83,"") -> 0.02 | L50: 76639.94808 | M50: =IF(ISNUMBER(G50),Reg!H38,"") -> 1915.998702 | N50: =IF(ISNUMBER(G50),Reg!T38,"") -> 320000 | O50: =IF(ISNUMBER(G50),Reg!W38,"") -> 277000 | P50: =IF(ISNUMBER(G50),'User Input'!$G$130,"") -> 149950 | Q50: 0 | R50: =IF(ISNUMBER(G50),'User Input'!$G$124,"") -> 735 | S50: 0
A51: 9 | B51: =IF(ISNUMBER(G51),'User Input'!J17,"") -> 236 Construction of Buildings | F51: 0.006900612839 | G51: 37140 | H51: =IF(ISNUMBER(G51),'User Input'!$G$49-1,"") -> 1.394835252 | I51: =IF(ISNUMBER(G51),'User Input'!$G$77*12*H51,"") -> 37175.14912 | J51: 74315.14912 | K51: =IF(ISNUMBER(G51),'User Input'!$G$83,"") -> 0.02 | L51: 75831.78482 | M51: =IF(ISNUMBER(G51),Reg!H39,"") -> 1895.79462 | N51: =IF(ISNUMBER(G51),Reg!T39,"") -> 317000 | O51: =IF(ISNUMBER(G51),Reg!W39,"") -> 273000 | P51: =IF(ISNUMBER(G51),'User Input'!$G$130,"") -> 149950 | Q51: 0 | R51: =IF(ISNUMBER(G51),'User Input'!$G$124,"") -> 735 | S51: 0
A52: 10 | B52: =IF(ISNUMBER(G52),'User Input'!J18,"") -> 623 Nursing and Residential Care Facilities | F52: 0.01222152483 | G52: 23916 | H52: =IF(ISNUMBER(G52),'User Input'!$G$49-1,"") -> 1.394835252 | I52: =IF(ISNUMBER(G52),'User Input'!$G$77*12*H52,"") -> 37175.14912 | J52: 61091.14912 | K52: =IF(ISNUMBER(G52),'User Input'!$G$83,"") -> 0.02 | L52: 62337.90727 | M52: =IF(ISNUMBER(G52),Reg!H40,"") -> 1558.447682 | N52: =IF(ISNUMBER(G52),Reg!T40,"") -> 258000 | O52: =IF(ISNUMBER(G52),Reg!W40,"") -> 214000 | P52: =IF(ISNUMBER(G52),'User Input'!$G$130,"") -> 149950 | Q52: 0 | R52: =IF(ISNUMBER(G52),'User Input'!$G$124,"") -> 735 | S52: 0
A53: 11 | B53: =IF(ISNUMBER(G53),'User Input'!J19,"") -> 336 Transportation Equipment Manufacturing | F53: 0.001618488142 | G53: 41028 | H53: =IF(ISNUMBER(G53),'User Input'!$G$49-1,"") -> 1.394835252 | I53: =IF(ISNUMBER(G53),'User Input'!$G$77*12*H53,"") -> 37175.14912 | J53: 78203.14912 | K53: =IF(ISNUMBER(G53),'User Input'!$G$83,"") -> 0.02 | L53: 79799.13176 | M53: =IF(ISNUMBER(G53),Reg!H41,"") -> 1994.978294 | N53: =IF(ISNUMBER(G53),Reg!T41,"") -> 334000 | O53: =IF(ISNUMBER(G53),Reg!W41,"") -> 291000 | P53: =IF(ISNUMBER(G53),'User Input'!$G$130,"") -> 149950 | Q53: 0 | R53: =IF(ISNUMBER(G53),'User Input'!$G$124,"") -> 735 | S53: 0
A54: 12 | B54: =IF(ISNUMBER(G54),'User Input'!J20,"") -> 445 Food and Bevarage Stores | F54: 0.01229204719 | G54: 21024 | H54: =IF(ISNUMBER(G54),'User Input'!$G$49-1,"") -> 1.394835252 | I54: =IF(ISNUMBER(G54),'User Input'!$G$77*12*H54,"") -> 37175.14912 | J54: 58199.14912 | K54: =IF(ISNUMBER(G54),'User Input'!$G$83,"") -> 0.02 | L54: 59386.88686 | M54: =IF(ISNUMBER(G54),Reg!H42,"") -> 1484.672172 | N54: =IF(ISNUMBER(G54),Reg!T42,"") -> 245000 | O54: =IF(ISNUMBER(G54),Reg!W42,"") -> 202000 | P54: =IF(ISNUMBER(G54),'User Input'!$G$130,"") -> 149950 | Q54: 0 | R54: =IF(ISNUMBER(G54),'User Input'!$G$124,"") -> 735 | S54: 0
A55: 13 | B55: =IF(ISNUMBER(G55),'User Input'!J21,"") -> 441 Motor Vehicle and Parts Dealers | F55: 0.008691880761 | G55: 35700 | H55: =IF(ISNUMBER(G55),'User Input'!$G$49-1,"") -> 1.394835252 | I55: =IF(ISNUMBER(G55),'User Input'!$G$77*12*H55,"") -> 37175.14912 | J55: 72875.14912 | K55: =IF(ISNUMBER(G55),'User Input'!$G$83,"") -> 0.02 | L55: 74362.39706 | M55: =IF(ISNUMBER(G55),Reg!H43,"") -> 1859.059927 | N55: =IF(ISNUMBER(G55),Reg!T43,"") -> 310000 | O55: =IF(ISNUMBER(G55),Reg!W43,"") -> 267000 | P55: =IF(ISNUMBER(G55),'User Input'!$G$130,"") -> 149950 | Q55: 0 | R55: =IF(ISNUMBER(G55),'User Input'!$G$124,"") -> 735 | S55: 0
A56: 14 | B56: =IF(ISNUMBER(G56),'User Input'!J22,"") -> 522 Credit Intermediation and Related Activies | F56: 0.009273690223 | G56: 43428 | H56: =IF(ISNUMBER(G56),'User Input'!$G$49-1,"") -> 1.394835252 | I56: =IF(ISNUMBER(G56),'User Input'!$G$77*12*H56,"") -> 37175.14912 | J56: 80603.14912 | K56: =IF(ISNUMBER(G56),'User Input'!$G$83,"") -> 0.02 | L56: 82248.11135 | M56: =IF(ISNUMBER(G56),Reg!H44,"") -> 2056.202784 | N56: =IF(ISNUMBER(G56),Reg!T44,"") -> 345000 | O56: =IF(ISNUMBER(G56),Reg!W44,"") -> 301000 | P56: =IF(ISNUMBER(G56),'User Input'!$G$130,"") -> 149950 | Q56: 0 | R56: =IF(ISNUMBER(G56),'User Input'!$G$124,"") -> 735 | S56: 0
A57: 15 | B57: =IF(ISNUMBER(G57),'User Input'!J23,"") -> 332 Fabricated Metal Product Manufacturing | F57: 0.007743355031 | G57: 46272 | H57: =IF(ISNUMBER(G57),'User Input'!$G$49-1,"") -> 1.394835252 | I57: =IF(ISNUMBER(G57),'User Input'!$G$77*12*H57,"") -> 37175.14912 | J57: 83447.14912 | K57: =IF(ISNUMBER(G57),'User Input'!$G$83,"") -> 0.02 | L57: 85150.15217 | M57: =IF(ISNUMBER(G57),Reg!H45,"") -> 2128.753804 | N57: =IF(ISNUMBER(G57),Reg!T45,"") -> 357000 | O57: =IF(ISNUMBER(G57),Reg!W45,"") -> 314000 | P57: =IF(ISNUMBER(G57),'User Input'!$G$130,"") -> 149950 | Q57: 0 | R57: =IF(ISNUMBER(G57),'User Input'!$G$124,"") -> 735 | S57: 0
A58: 16 | B58: =IF(ISNUMBER(G58),'User Input'!J24,"") -> 713 Amusement, Gambling, and Recreation Industries | F58: 0.00417492366 | G58: 17004 | H58: =IF(ISNUMBER(G58),'User Input'!$G$49-1,"") -> 1.394835252 | I58: =IF(ISNUMBER(G58),'User Input'!$G$77*12*H58,"") -> 37175.14912 | J58: 54179.14912 | K58: =IF(ISNUMBER(G58),'User Input'!$G$83,"") -> 0.02 | L58: 55284.84604 | M58: =IF(ISNUMBER(G58),Reg!H46,"") -> 1382.121151 | N58: =IF(ISNUMBER(G58),Reg!T46,"") -> 227000 | O58: =IF(ISNUMBER(G58),Reg!W46,"") -> 184000 | P58: =IF(ISNUMBER(G58),'User Input'!$G$130,"") -> 149950 | Q58: 0 | R58: =IF(ISNUMBER(G58),'User Input'!$G$124,"") -> 735 | S58: 0
A59: 17 | B59: =IF(ISNUMBER(G59),'User Input'!J25,"") -> 484 Truck Transprortation | F59: 0.002327237851 | G59: 41076 | H59: =IF(ISNUMBER(G59),'User Input'!$G$49-1,"") -> 1.394835252 | I59: =IF(ISNUMBER(G59),'User Input'!$G$77*12*H59,"") -> 37175.14912 | J59: 78251.14912 | K59: =IF(ISNUMBER(G59),'User Input'!$G$83,"") -> 0.02 | L59: 79848.11135 | M59: =IF(ISNUMBER(G59),Reg!H47,"") -> 1996.202784 | N59: =IF(ISNUMBER(G59),Reg!T47,"") -> 334000 | O59: =IF(ISNUMBER(G59),Reg!W47,"") -> 291000 | P59: =IF(ISNUMBER(G59),'User Input'!$G$130,"") -> 149950 | R59: =IF(ISNUMBER(G59),'User Input'!$G$124,"") -> 735 | S59: 0
A60: 18 | B60: =IF(ISNUMBER(G60),'User Input'!J26,"") -> 493 Warehousing and Storage | F60: 0.0009908391456 | G60: 32220 | H60: =IF(ISNUMBER(G60),'User Input'!$G$49-1,"") -> 1.394835252 | I60: =IF(ISNUMBER(G60),'User Input'!$G$77*12*H60,"") -> 37175.14912 | J60: 69395.14912 | K60: =IF(ISNUMBER(G60),'User Input'!$G$83,"") -> 0.02 | L60: 70811.37666 | M60: =IF(ISNUMBER(G60),Reg!H48,"") -> 1770.284416 | N60: =IF(ISNUMBER(G60),Reg!T48,"") -> 295000 | O60: =IF(ISNUMBER(G60),Reg!W48,"") -> 251000 | P60: =IF(ISNUMBER(G60),'User Input'!$G$130,"") -> 149950 | R60: =IF(ISNUMBER(G60),'User Input'!$G$124,"") -> 735 | S60: 0
A61: 19 | B61: =IF(ISNUMBER(G61),'User Input'!J27,"") -> 622 Hospitals | F61: 0.01855443268 | G61: 39636 | H61: =IF(ISNUMBER(G61),'User Input'!$G$49-1,"") -> 1.394835252 | I61: =IF(ISNUMBER(G61),'User Input'!$G$77*12*H61,"") -> 37175.14912 | J61: 76811.14912 | K61: =IF(ISNUMBER(G61),'User Input'!$G$83,"") -> 0.02 | L61: 78378.7236 | M61: =IF(ISNUMBER(G61),Reg!H49,"") -> 1959.46809 | N61: =IF(ISNUMBER(G61),Reg!T49,"") -> 328000 | O61: =IF(ISNUMBER(G61),Reg!W49,"") -> 284000 | P61: =IF(ISNUMBER(G61),'User Input'!$G$130,"") -> 149950 | R61: =IF(ISNUMBER(G61),'User Input'!$G$124,"") -> 735 | S61: 0
A62: 20 | B62: =IF(ISNUMBER(G62),'User Input'!J28,"") -> 423 Merchant Wholesalers, Durable Goods | F62: 0.008829399361 | G62: 47868 | H62: =IF(ISNUMBER(G62),'User Input'!$G$49-1,"") -> 1.394835252 | I62: =IF(ISNUMBER(G62),'User Input'!$G$77*12*H62,"") -> 37175.14912 | J62: 85043.14912 | K62: =IF(ISNUMBER(G62),'User Input'!$G$83,"") -> 0.02 | L62: 86778.7236 | M62: =IF(ISNUMBER(G62),Reg!H50,"") -> 2169.46809 | N62: =IF(ISNUMBER(G62),Reg!T50,"") -> 364000 | O62: =IF(ISNUMBER(G62),Reg!W50,"") -> 321000 | P62: =IF(ISNUMBER(G62),'User Input'!$G$130,"") -> 149950 | R62: =IF(ISNUMBER(G62),'User Input'!$G$124,"") -> 735 | S62: 0
A63: 21 | B63: =IF(ISNUMBER(G63),'User Input'!J29,"") -> 811 Repair and Maintenance | F63: 0.005920352048 | G63: 29664 | H63: =IF(ISNUMBER(G63),'User Input'!$G$49-1,"") -> 1.394835252 | I63: =IF(ISNUMBER(G63),'User Input'!$G$77*12*H63,"") -> 37175.14912 | J63: 66839.14912 | K63: =IF(ISNUMBER(G63),'User Input'!$G$83,"") -> 0.02 | L63: 68203.21339 | M63: =IF(ISNUMBER(G63),Reg!H51,"") -> 1705.080335 | N63: =IF(ISNUMBER(G63),Reg!T51,"") -> 283000 | O63: =IF(ISNUMBER(G63),Reg!W51,"") -> 240000 | P63: =IF(ISNUMBER(G63),'User Input'!$G$130,"") -> 149950 | R63: =IF(ISNUMBER(G63),'User Input'!$G$124,"") -> 735 | S63: 0
A64: 22 | B64: =IF(ISNUMBER(G64),'User Input'!J30,"") -> 237 Heavy and Civil Engineering Construction | F64: 0.004971826318 | G64: 47484 | H64: =IF(ISNUMBER(G64),'User Input'!$G$49-1,"") -> 1.394835252 | I64: =IF(ISNUMBER(G64),'User Input'!$G$77*12*H64,"") -> 37175.14912 | J64: 84659.14912 | K64: =IF(ISNUMBER(G64),'User Input'!$G$83,"") -> 0.02 | L64: 86386.88686 | M64: =IF(ISNUMBER(G64),Reg!H52,"") -> 2159.672172 | N64: =IF(ISNUMBER(G64),Reg!T52,"") -> 363000 | O64: =IF(ISNUMBER(G64),Reg!W52,"") -> 319000 | P64: =IF(ISNUMBER(G64),'User Input'!$G$130,"") -> 149950 | R64: =IF(ISNUMBER(G64),'User Input'!$G$124,"") -> 735 | S64: 0
A65: 23 | B65: =IF(ISNUMBER(G65),'User Input'!J31,"") -> 444 Building Material and Garden Equipment and Supplies Dealers | F65: 0.005909773694 | G65: 32328 | H65: =IF(ISNUMBER(G65),'User Input'!$G$49-1,"") -> 1.394835252 | I65: =IF(ISNUMBER(G65),'User Input'!$G$77*12*H65,"") -> 37175.14912 | J65: 69503.14912 | K65: =IF(ISNUMBER(G65),'User Input'!$G$83,"") -> 0.02 | L65: 70921.58074 | M65: =IF(ISNUMBER(G65),Reg!H53,"") -> 1773.039518 | N65: =IF(ISNUMBER(G65),Reg!T53,"") -> 295000 | O65: =IF(ISNUMBER(G65),Reg!W53,"") -> 252000 | P65: =IF(ISNUMBER(G65),'User Input'!$G$130,"") -> 149950 | R65: =IF(ISNUMBER(G65),'User Input'!$G$124,"") -> 735 | S65: 0
A66: 24 | B66: =IF(ISNUMBER(G66),'User Input'!J32,"") -> 424 Merchant Wholesalers, nondurable Goods | F66: 0.009368895408 | G66: 55152 | H66: =IF(ISNUMBER(G66),'User Input'!$G$49-1,"") -> 1.394835252 | I66: =IF(ISNUMBER(G66),'User Input'!$G$77*12*H66,"") -> 37175.14912 | J66: 92327.14912 | K66: =IF(ISNUMBER(G66),'User Input'!$G$83,"") -> 0.02 | L66: 94211.37666 | M66: =IF(ISNUMBER(G66),Reg!H54,"") -> 2355.284416 | N66: =IF(ISNUMBER(G66),Reg!T54,"") -> 397000 | O66: =IF(ISNUMBER(G66),Reg!W54,"") -> 353000 | P66: =IF(ISNUMBER(G66),'User Input'!$G$130,"") -> 149950 | R66: =IF(ISNUMBER(G66),'User Input'!$G$124,"") -> 735 | S66: 0
A67: 25 | B67: =IF(ISNUMBER(G67),'User Input'!J33,"") -> 812 Personal and Laundry Services | F67: 0.005000035261 | G67: 17340 | H67: =IF(ISNUMBER(G67),'User Input'!$G$49-1,"") -> 1.394835252 | I67: =IF(ISNUMBER(G67),'User Input'!$G$77*12*H67,"") -> 37175.14912 | J67: 54515.14912 | K67: =IF(ISNUMBER(G67),'User Input'!$G$83,"") -> 0.02 | L67: 55627.70319 | M67: =IF(ISNUMBER(G67),Reg!H55,"") -> 1390.69258 | N67: =IF(ISNUMBER(G67),Reg!T55,"") -> 229000 | O67: =IF(ISNUMBER(G67),Reg!W55,"") -> 185000 | P67: =IF(ISNUMBER(G67),'User Input'!$G$130,"") -> 149950 | R67: =IF(ISNUMBER(G67),'User Input'!$G$124,"") -> 735 | S67: 0
A68: 26 | B68: =IF(ISNUMBER(G68),'User Input'!J34,"") -> 624 Social Assistance | F68: 0.007249698517 | G68: 19068 | H68: =IF(ISNUMBER(G68),'User Input'!$G$49-1,"") -> 1.394835252 | I68: =IF(ISNUMBER(G68),'User Input'!$G$77*12*H68,"") -> 37175.14912 | J68: 56243.14912 | K68: =IF(ISNUMBER(G68),'User Input'!$G$83,"") -> 0.02 | L68: 57390.96849 | M68: =IF(ISNUMBER(G68),Reg!H56,"") -> 1434.774212 | N68: =IF(ISNUMBER(G68),Reg!T56,"") -> 236000 | O68: =IF(ISNUMBER(G68),Reg!W56,"") -> 193000 | P68: =IF(ISNUMBER(G68),'User Input'!$G$130,"") -> 149950 | R68: =IF(ISNUMBER(G68),'User Input'!$G$124,"") -> 735 | S68: 0
A69: 27 | B69: =IF(ISNUMBER(G69),'User Input'!J35,"") -> 551 Management of Companies and Enterprises | F69: 0.00588156475 | G69: 35640 | H69: =IF(ISNUMBER(G69),'User Input'!$G$49-1,"") -> 1.394835252 | I69: =IF(ISNUMBER(G69),'User Input'!$G$77*12*H69,"") -> 37175.14912 | J69: 72815.14912 | K69: =IF(ISNUMBER(G69),'User Input'!$G$83,"") -> 0.02 | L69: 74301.17257 | M69: =IF(ISNUMBER(G69),Reg!H57,"") -> 1857.529314 | N69: =IF(ISNUMBER(G69),Reg!T57,"") -> 310000 | O69: =IF(ISNUMBER(G69),Reg!W57,"") -> 267000 | P69: =IF(ISNUMBER(G69),'User Input'!$G$130,"") -> 149950 | R69: =IF(ISNUMBER(G69),'User Input'!$G$124,"") -> 735 | S69: 0
A70: 28 | B70: =IF(ISNUMBER(G70),'User Input'!J36,"") -> 488 Support Activities for Transportation | F70: 0.0006170706422 | G70: 37320 | H70: =IF(ISNUMBER(G70),'User Input'!$G$49-1,"") -> 1.394835252 | I70: =IF(ISNUMBER(G70),'User Input'!$G$77*12*H70,"") -> 37175.14912 | J70: 74495.14912 | K70: =IF(ISNUMBER(G70),'User Input'!$G$83,"") -> 0.02 | L70: 76015.45829 | M70: =IF(ISNUMBER(G70),Reg!H58,"") -> 1900.386457 | N70: =IF(ISNUMBER(G70),Reg!T58,"") -> 317000 | O70: =IF(ISNUMBER(G70),Reg!W58,"") -> 274000 | P70: =IF(ISNUMBER(G70),'User Input'!$G$130,"") -> 149950 | R70: =IF(ISNUMBER(G70),'User Input'!$G$124,"") -> 735 | S70: 0
A71: 29 | B71: =IF(ISNUMBER(G71),'User Input'!J37,"") -> 448 Clothing and Clothing Accessories Stores | F71: 0.006791303183 | G71: 16956 | H71: =IF(ISNUMBER(G71),'User Input'!$G$49-1,"") -> 1.394835252 | I71: =IF(ISNUMBER(G71),'User Input'!$G$77*12*H71,"") -> 37175.14912 | J71: 54131.14912 | K71: =IF(ISNUMBER(G71),'User Input'!$G$83,"") -> 0.02 | L71: 55235.86645 | M71: =IF(ISNUMBER(G71),Reg!H59,"") -> 1380.896661 | N71: =IF(ISNUMBER(G71),Reg!T59,"") -> 227000 | O71: =IF(ISNUMBER(G71),Reg!W59,"") -> 184000 | P71: =IF(ISNUMBER(G71),'User Input'!$G$130,"") -> 149950 | R71: =IF(ISNUMBER(G71),'User Input'!$G$124,"") -> 735 | S71: 0
A72: 30 | B72: =IF(ISNUMBER(G72),'User Input'!J38,"") -> 311 Food Manufacturing | F72: 0.01005648841 | G72: 39348 | H72: =IF(ISNUMBER(G72),'User Input'!$G$49-1,"") -> 1.394835252 | I72: =IF(ISNUMBER(G72),'User Input'!$G$77*12*H72,"") -> 37175.14912 | J72: 76523.14912 | K72: =IF(ISNUMBER(G72),'User Input'!$G$83,"") -> 0.02 | L72: 78084.84604 | M72: =IF(ISNUMBER(G72),Reg!H60,"") -> 1952.121151 | N72: =IF(ISNUMBER(G72),Reg!T60,"") -> 327000 | O72: =IF(ISNUMBER(G72),Reg!W60,"") -> 283000 | P72: =IF(ISNUMBER(G72),'User Input'!$G$130,"") -> 149950 | R72: =IF(ISNUMBER(G72),'User Input'!$G$124,"") -> 735 | S72: 0
A73: 31 | B73: =IF(ISNUMBER(G73),'User Input'!J39,"") -> 451 Sporting Goods, Hobby, Book, and Music Stores | F73: 0.006121340771 | G73: 19800 | H73: =IF(ISNUMBER(G73),'User Input'!$G$49-1,"") -> 1.394835252 | I73: =IF(ISNUMBER(G73),'User Input'!$G$77*12*H73,"") -> 37175.14912 | J73: 56975.14912 | K73: =IF(ISNUMBER(G73),'User Input'!$G$83,"") -> 0.02 | L73: 58137.90727 | M73: =IF(ISNUMBER(G73),Reg!H61,"") -> 1453.447682 | N73: =IF(ISNUMBER(G73),Reg!T61,"") -> 240000 | O73: =IF(ISNUMBER(G73),Reg!W61,"") -> 196000 | P73: =IF(ISNUMBER(G73),'User Input'!$G$130,"") -> 149950 | R73: =IF(ISNUMBER(G73),'User Input'!$G$124,"") -> 735 | S73: 0
A74: 32 | B74: =IF(ISNUMBER(G74),'User Input'!J40,"") -> 447 Gasoline Stations | F74: 0.004372386265 | G74: 18888 | H74: =IF(ISNUMBER(G74),'User Input'!$G$49-1,"") -> 1.394835252 | I74: =IF(ISNUMBER(G74),'User Input'!$G$77*12*H74,"") -> 37175.14912 | J74: 56063.14912 | K74: =IF(ISNUMBER(G74),'User Input'!$G$83,"") -> 0.02 | L74: 57207.29502 | M74: =IF(ISNUMBER(G74),Reg!H62,"") -> 1430.182376 | N74: =IF(ISNUMBER(G74),Reg!T62,"") -> 235000 | O74: =IF(ISNUMBER(G74),Reg!W62,"") -> 192000 | P74: =IF(ISNUMBER(G74),'User Input'!$G$130,"") -> 149950 | R74: =IF(ISNUMBER(G74),'User Input'!$G$124,"") -> 735 | S74: 0
A75: 33 | B75: =IF(ISNUMBER(G75),'User Input'!J41,"") -> 531 Real Estate | F75: 0.004820203245 | G75: 48744 | H75: =IF(ISNUMBER(G75),'User Input'!$G$49-1,"") -> 1.394835252 | I75: =IF(ISNUMBER(G75),'User Input'!$G$77*12*H75,"") -> 37175.14912 | J75: 85919.14912 | K75: =IF(ISNUMBER(G75),'User Input'!$G$83,"") -> 0.02 | L75: =IF(ISNUMBER(G75),J75/(1-K75),"") -> 87672.60115 | M75: =IF(ISNUMBER(G75),Reg!H63,"") -> 2191.815029 | N75: =IF(ISNUMBER(G75),Reg!T63,"") -> 368000 | O75: =IF(ISNUMBER(G75),Reg!W63,"") -> 325000 | P75: =IF(ISNUMBER(G75),'User Input'!$G$130,"") -> 149950 | R75: =IF(ISNUMBER(G75),'User Input'!$G$124,"") -> 735 | S75: =IF(ISNUMBER(G75),MIN(M75-R75,0),"") -> 0
A76: 34 | B76: =IF(ISNUMBER(G76),'User Input'!J42,"") -> 611 Educational Services | F76: 0.03816317463 | G76: 49200 | H76: =IF(ISNUMBER(G76),'User Input'!$G$49-1,"") -> 1.394835252 | I76: =IF(ISNUMBER(G76),'User Input'!$G$77*12*H76,"") -> 37175.14912 | J76: 86375.14912 | K76: =IF(ISNUMBER(G76),'User Input'!$G$83,"") -> 0.02 | L76: 88137.90727 | M76: =IF(ISNUMBER(G76),Reg!H64,"") -> 2203.447682 | N76: =IF(ISNUMBER(G76),Reg!T64,"") -> 370000 | O76: =IF(ISNUMBER(G76),Reg!W64,"") -> 327000 | P76: =IF(ISNUMBER(G76),'User Input'!$G$130,"") -> 149950 | R76: =IF(ISNUMBER(G76),'User Input'!$G$124,"") -> 735 | S76: 0
A77: 35 | B77: =IF(ISNUMBER(G77),'User Input'!J43,"") -> 524 Insurance Carriers and Related Activities | F77: 0.003995091644 | G77: 42600 | H77: =IF(ISNUMBER(G77),'User Input'!$G$49-1,"") -> 1.394835252 | I77: =IF(ISNUMBER(G77),'User Input'!$G$77*12*H77,"") -> 37175.14912 | J77: 79775.14912 | K77: =IF(ISNUMBER(G77),'User Input'!$G$83,"") -> 0.02 | L77: 81403.21339 | M77: =IF(ISNUMBER(G77),Reg!H65,"") -> 2035.080335 | N77: =IF(ISNUMBER(G77),Reg!T65,"") -> 341000 | O77: =IF(ISNUMBER(G77),Reg!W65,"") -> 298000 | P77: =IF(ISNUMBER(G77),'User Input'!$G$130,"") -> 149950 | R77: =IF(ISNUMBER(G77),'User Input'!$G$124,"") -> 735 | S77: 0
A78: 36 | B78: =IF(ISNUMBER(G78),'User Input'!J44,"") -> 453 Miscellaneous Store Retailers | F78: 0.003543748545 | G78: 21432 | H78: =IF(ISNUMBER(G78),'User Input'!$G$49-1,"") -> 1.394835252 | I78: =IF(ISNUMBER(G78),'User Input'!$G$77*12*H78,"") -> 37175.14912 | J78: 58607.14912 | K78: =IF(ISNUMBER(G78),'User Input'!$G$83,"") -> 0.02 | L78: 59803.21339 | M78: =IF(ISNUMBER(G78),Reg!H66,"") -> 1495.080335 | N78: =IF(ISNUMBER(G78),Reg!T66,"") -> 247000 | O78: =IF(ISNUMBER(G78),Reg!W66,"") -> 203000 | P78: =IF(ISNUMBER(G78),'User Input'!$G$130,"") -> 149950 | R78: =IF(ISNUMBER(G78),'User Input'!$G$124,"") -> 735 | S78: 0
A79: 37 | B79: =IF(ISNUMBER(G79),'User Input'!J45,"") -> 446 Health and Personal Care Stores | F79: 0.003162927806 | G79: 33612 | H79: =IF(ISNUMBER(G79),'User Input'!$G$49-1,"") -> 1.394835252 | I79: =IF(ISNUMBER(G79),'User Input'!$G$77*12*H79,"") -> 37175.14912 | J79: 70787.14912 | K79: =IF(ISNUMBER(G79),'User Input'!$G$83,"") -> 0.02 | L79: 72231.78482 | M79: =IF(ISNUMBER(G79),Reg!H67,"") -> 1805.79462 | N79: =IF(ISNUMBER(G79),Reg!T67,"") -> 301000 | O79: =IF(ISNUMBER(G79),Reg!W67,"") -> 258000 | P79: =IF(ISNUMBER(G79),'User Input'!$G$130,"") -> 149950 | R79: =IF(ISNUMBER(G79),'User Input'!$G$124,"") -> 735 | S79: 0
A80: 38 | B80: =IF(ISNUMBER(G80),'User Input'!J46,"") -> 326 Plastics and Rubber Products Manufacturing | F80: 0.0008709511351 | G80: 31608 | H80: =IF(ISNUMBER(G80),'User Input'!$G$49-1,"") -> 1.394835252 | I80: =IF(ISNUMBER(G80),'User Input'!$G$77*12*H80,"") -> 37175.14912 | J80: 68783.14912 | K80: =IF(ISNUMBER(G80),'User Input'!$G$83,"") -> 0.02 | L80: 70186.88686 | M80: =IF(ISNUMBER(G80),Reg!H68,"") -> 1754.672172 | N80: =IF(ISNUMBER(G80),Reg!T68,"") -> 292000 | O80: =IF(ISNUMBER(G80),Reg!W68,"") -> 249000 | P80: =IF(ISNUMBER(G80),'User Input'!$G$130,"") -> 149950 | R80: =IF(ISNUMBER(G80),'User Input'!$G$124,"") -> 735 | S80: 0
A81: 39 | B81: =IF(ISNUMBER(G81),'User Input'!J47,"") -> 325 Chemical Manufacturing | F81: 0.007200332866 | G81: 49752 | H81: =IF(ISNUMBER(G81),'User Input'!$G$49-1,"") -> 1.394835252 | I81: =IF(ISNUMBER(G81),'User Input'!$G$77*12*H81,"") -> 37175.14912 | J81: 86927.14912 | K81: =IF(ISNUMBER(G81),'User Input'!$G$83,"") -> 0.02 | L81: 88701.17257 | M81: =IF(ISNUMBER(G81),Reg!H69,"") -> 2217.529314 | N81: =IF(ISNUMBER(G81),Reg!T69,"") -> 373000 | O81: =IF(ISNUMBER(G81),Reg!W69,"") -> 329000 | P81: =IF(ISNUMBER(G81),'User Input'!$G$130,"") -> 149950 | R81: =IF(ISNUMBER(G81),'User Input'!$G$124,"") -> 735 | S81: 0
A82: 40 | B82: =IF(ISNUMBER(G82),'User Input'!J48,"") -> 492 Couriers and Messengers | F82: 0.001054309269 | G82: 38604 | H82: =IF(ISNUMBER(G82),'User Input'!$G$49-1,"") -> 1.394835252 | I82: =IF(ISNUMBER(G82),'User Input'!$G$77*12*H82,"") -> 37175.14912 | J82: 75779.14912 | K82: =IF(ISNUMBER(G82),'User Input'!$G$83,"") -> 0.02 | L82: 77325.66237 | M82: =IF(ISNUMBER(G82),Reg!H70,"") -> 1933.141559 | N82: =IF(ISNUMBER(G82),Reg!T70,"") -> 323000 | O82: =IF(ISNUMBER(G82),Reg!W70,"") -> 280000 | P82: =IF(ISNUMBER(G82),'User Input'!$G$130,"") -> 149950 | R82: =IF(ISNUMBER(G82),'User Input'!$G$124,"") -> 735 | S82: 0
A83: 41 | B83: =IF(ISNUMBER(G83),'User Input'!J49,"") -> 337 Furniture and Related Product Manufacturing | F83: 0.003184084514 | G83: 35352 | H83: =IF(ISNUMBER(G83),'User Input'!$G$49-1,"") -> 1.394835252 | I83: =IF(ISNUMBER(G83),'User Input'!$G$77*12*H83,"") -> 37175.14912 | J83: 72527.14912 | K83: =IF(ISNUMBER(G83),'User Input'!$G$83,"") -> 0.02 | L83: 74007.29502 | M83: =IF(ISNUMBER(G83),Reg!H71,"") -> 1850.182376 | N83: =IF(ISNUMBER(G83),Reg!T71,"") -> 309000 | O83: =IF(ISNUMBER(G83),Reg!W71,"") -> 265000 | P83: =IF(ISNUMBER(G83),'User Input'!$G$130,"") -> 149950 | R83: =IF(ISNUMBER(G83),'User Input'!$G$124,"") -> 735 | S83: 0
A84: 42 | B84: =IF(ISNUMBER(G84),'User Input'!J50,"") -> 511 Publishing Industries (except Internet) | F84: 0.0126869724 | G84: 72156 | H84: =IF(ISNUMBER(G84),'User Input'!$G$49-1,"") -> 1.394835252 | I84: =IF(ISNUMBER(G84),'User Input'!$G$77*12*H84,"") -> 37175.14912 | J84: 109331.1491 | K84: =IF(ISNUMBER(G84),'User Input'!$G$83,"") -> 0.02 | L84: 111562.3971 | M84: =IF(ISNUMBER(G84),Reg!H72,"") -> 2789.059927 | N84: =IF(ISNUMBER(G84),Reg!T72,"") -> 472000 | O84: =IF(ISNUMBER(G84),Reg!W72,"") -> 429000 | P84: =IF(ISNUMBER(G84),'User Input'!$G$130,"") -> 149950 | R84: =IF(ISNUMBER(G84),'User Input'!$G$124,"") -> 735 | S84: 0
A85: 43 | B85: =IF(ISNUMBER(G85),'User Input'!J51,"") -> 323 Printing and Related Support Activities | F85: 0.003903412577 | G85: 37260 | H85: =IF(ISNUMBER(G85),'User Input'!$G$49-1,"") -> 1.394835252 | I85: =IF(ISNUMBER(G85),'User Input'!$G$77*12*H85,"") -> 37175.14912 | J85: 74435.14912 | K85: =IF(ISNUMBER(G85),'User Input'!$G$83,"") -> 0.02 | L85: 75954.2338 | M85: =IF(ISNUMBER(G85),Reg!H73,"") -> 1898.855845 | N85: =IF(ISNUMBER(G85),Reg!T73,"") -> 317000 | O85: =IF(ISNUMBER(G85),Reg!W73,"") -> 274000 | P85: =IF(ISNUMBER(G85),'User Input'!$G$130,"") -> 149950 | R85: =IF(ISNUMBER(G85),'User Input'!$G$124,"") -> 735 | S85: 0
A86: 44 | B86: =IF(ISNUMBER(G86),'User Input'!J52,"") -> 314 Textile Product Mills | F86: 0.0005359699293 | G86: 36840 | H86: =IF(ISNUMBER(G86),'User Input'!$G$49-1,"") -> 1.394835252 | I86: =IF(ISNUMBER(G86),'User Input'!$G$77*12*H86,"") -> 37175.14912 | J86: 74015.14912 | K86: =IF(ISNUMBER(G86),'User Input'!$G$83,"") -> 0.02 | L86: 75525.66237 | M86: =IF(ISNUMBER(G86),Reg!H74,"") -> 1888.141559 | N86: =IF(ISNUMBER(G86),Reg!T74,"") -> 315000 | O86: =IF(ISNUMBER(G86),Reg!W74,"") -> 272000 | P86: =IF(ISNUMBER(G86),'User Input'!$G$130,"") -> 149950 | R86: =IF(ISNUMBER(G86),'User Input'!$G$124,"") -> 735 | S86: 0
A87: 45 | B87: =IF(ISNUMBER(G87),'User Input'!J53,"") -> 425 Wholesale Electonic Market and Agents and Brokers | F87: 0.001614962024 | G87: 70548 | H87: =IF(ISNUMBER(G87),'User Input'!$G$49-1,"") -> 1.394835252 | I87: =IF(ISNUMBER(G87),'User Input'!$G$77*12*H87,"") -> 37175.14912 | J87: 107723.1491 | K87: =IF(ISNUMBER(G87),'User Input'!$G$83,"") -> 0.02 | L87: 109921.5807 | M87: =IF(ISNUMBER(G87),Reg!H75,"") -> 2748.039518 | N87: =IF(ISNUMBER(G87),Reg!T75,"") -> 465000 | O87: =IF(ISNUMBER(G87),Reg!W75,"") -> 422000 | P87: =IF(ISNUMBER(G87),'User Input'!$G$130,"") -> 149950 | R87: =IF(ISNUMBER(G87),'User Input'!$G$124,"") -> 735 | S87: 0
A88: 46 | B88: =IF(ISNUMBER(G88),'User Input'!J54,"") -> 721 Accomodations | F88: 0.003839942454 | G88: 18048 | H88: =IF(ISNUMBER(G88),'User Input'!$G$49-1,"") -> 1.394835252 | I88: =IF(ISNUMBER(G88),'User Input'!$G$77*12*H88,"") -> 37175.14912 | J88: 55223.14912 | K88: =IF(ISNUMBER(G88),'User Input'!$G$83,"") -> 0.02 | L88: 56350.15217 | M88: =IF(ISNUMBER(G88),Reg!H76,"") -> 1408.753804 | N88: =IF(ISNUMBER(G88),Reg!T76,"") -> 232000 | O88: =IF(ISNUMBER(G88),Reg!W76,"") -> 188000 | P88: =IF(ISNUMBER(G88),'User Input'!$G$130,"") -> 149950 | R88: =IF(ISNUMBER(G88),'User Input'!$G$124,"") -> 735 | S88: 0
A89: 47 | B89: =IF(ISNUMBER(G89),'User Input'!J55,"") -> 532 Rental and Leasing Services | F89: 0.001830055219 | G89: 29292 | H89: =IF(ISNUMBER(G89),'User Input'!$G$49-1,"") -> 1.394835252 | I89: =IF(ISNUMBER(G89),'User Input'!$G$77*12*H89,"") -> 37175.14912 | J89: 66467.14912 | K89: =IF(ISNUMBER(G89),'User Input'!$G$83,"") -> 0.02 | L89: 67823.62155 | M89: =IF(ISNUMBER(G89),Reg!H77,"") -> 1695.590539 | N89: =IF(ISNUMBER(G89),Reg!T77,"") -> 282000 | O89: =IF(ISNUMBER(G89),Reg!W77,"") -> 238000 | P89: =IF(ISNUMBER(G89),'User Input'!$G$130,"") -> 149950 | R89: =IF(ISNUMBER(G89),'User Input'!$G$124,"") -> 735 | S89: 0
A90: 48 | B90: =IF(ISNUMBER(G90),'User Input'!J56,"") -> 442 Furniture and Home Furnishings Stores | F90: 0.0025529094 | G90: 28656 | H90: =IF(ISNUMBER(G90),'User Input'!$G$49-1,"") -> 1.394835252 | I90: =IF(ISNUMBER(G90),'User Input'!$G$77*12*H90,"") -> 37175.14912 | J90: 65831.14912 | K90: =IF(ISNUMBER(G90),'User Input'!$G$83,"") -> 0.02 | L90: 67174.64196 | M90: =IF(ISNUMBER(G90),Reg!H78,"") -> 1679.366049 | N90: =IF(ISNUMBER(G90),Reg!T78,"") -> 279000 | O90: =IF(ISNUMBER(G90),Reg!W78,"") -> 236000 | P90: =IF(ISNUMBER(G90),'User Input'!$G$130,"") -> 149950 | R90: =IF(ISNUMBER(G90),'User Input'!$G$124,"") -> 735 | S90: 0
A91: 49 | B91: =IF(ISNUMBER(G91),'User Input'!J57,"") -> 327 Nonmetallic Mineral Product Manufacturing | F91: 0.005698206616 | G91: 53292 | H91: =IF(ISNUMBER(G91),'User Input'!$G$49-1,"") -> 1.394835252 | I91: =IF(ISNUMBER(G91),'User Input'!$G$77*12*H91,"") -> 37175.14912 | J91: 90467.14912 | K91: =IF(ISNUMBER(G91),'User Input'!$G$83,"") -> 0.02 | L91: 92313.41747 | M91: =IF(ISNUMBER(G91),Reg!H79,"") -> 2307.835437 | N91: =IF(ISNUMBER(G91),Reg!T79,"") -> 389000 | O91: =IF(ISNUMBER(G91),Reg!W79,"") -> 345000 | P91: =IF(ISNUMBER(G91),'User Input'!$G$130,"") -> 149950 | R91: =IF(ISNUMBER(G91),'User Input'!$G$124,"") -> 735 | S91: 0
A92: 50 | B92: =IF(ISNUMBER(G92),'User Input'!J58,"") -> 443 Electronics and Appliance Stores | F92: 0.00257053999 | G92: 36660 | H92: =IF(ISNUMBER(G92),'User Input'!$G$49-1,"") -> 1.394835252 | I92: =IF(ISNUMBER(G92),'User Input'!$G$77*12*H92,"") -> 37175.14912 | J92: 73835.14912 | K92: =IF(ISNUMBER(G92),'User Input'!$G$83,"") -> 0.02 | L92: 75341.9889 | M92: =IF(ISNUMBER(G92),Reg!H80,"") -> 1883.549723 | N92: =IF(ISNUMBER(G92),Reg!T80,"") -> 315000 | O92: =IF(ISNUMBER(G92),Reg!W80,"") -> 271000 | P92: =IF(ISNUMBER(G92),'User Input'!$G$130,"") -> 149950 | R92: =IF(ISNUMBER(G92),'User Input'!$G$124,"") -> 735 | S92: 0
A93: 51 | B93: =IF(ISNUMBER(G93),'User Input'!J59,"") -> 562 Waste Management and Remediation Services | F93: 0.0004619214522 | G93: 39540 | H93: =IF(ISNUMBER(G93),'User Input'!$G$49-1,"") -> 1.394835252 | I93: =IF(ISNUMBER(G93),'User Input'!$G$77*12*H93,"") -> 37175.14912 | J93: 76715.14912 | K93: =IF(ISNUMBER(G93),'User Input'!$G$83,"") -> 0.02 | L93: 78280.76441 | M93: =IF(ISNUMBER(G93),Reg!H81,"") -> 1957.01911 | N93: =IF(ISNUMBER(G93),Reg!T81,"") -> 327000 | O93: =IF(ISNUMBER(G93),Reg!W81,"") -> 284000 | P93: =IF(ISNUMBER(G93),'User Input'!$G$130,"") -> 149950 | R93: =IF(ISNUMBER(G93),'User Input'!$G$124,"") -> 735 | S93: 0
A94: 52 | B94: =IF(ISNUMBER(G94),'User Input'!J60,"") -> 111 Crop Production | F94: 0.001875894752 | G94: 24456 | H94: =IF(ISNUMBER(G94),'User Input'!$G$49-1,"") -> 1.394835252 | I94: =IF(ISNUMBER(G94),'User Input'!$G$77*12*H94,"") -> 37175.14912 | J94: 61631.14912 | K94: =IF(ISNUMBER(G94),'User Input'!$G$83,"") -> 0.02 | L94: 62888.92768 | M94: =IF(ISNUMBER(G94),Reg!H82,"") -> 1572.223192 | N94: =IF(ISNUMBER(G94),Reg!T82,"") -> 260000 | O94: =IF(ISNUMBER(G94),Reg!W82,"") -> 217000 | P94: =IF(ISNUMBER(G94),'User Input'!$G$130,"") -> 149950 | R94: =IF(ISNUMBER(G94),'User Input'!$G$124,"") -> 735 | S94: 0
A95: 53 | B95: =IF(ISNUMBER(G95),'User Input'!J61,"") -> 518 Data Processing, Hosting and Related Services | F95: 0.004971826318 | G95: 62928 | H95: =IF(ISNUMBER(G95),'User Input'!$G$49-1,"") -> 1.394835252 | I95: =IF(ISNUMBER(G95),'User Input'!$G$77*12*H95,"") -> 37175.14912 | J95: 100103.1491 | K95: =IF(ISNUMBER(G95),'User Input'!$G$83,"") -> 0.02 | L95: 102146.0705 | M95: =IF(ISNUMBER(G95),Reg!H83,"") -> 2553.651763 | N95: =IF(ISNUMBER(G95),Reg!T83,"") -> 431000 | O95: =IF(ISNUMBER(G95),Reg!W83,"") -> 388000 | P95: =IF(ISNUMBER(G95),'User Input'!$G$130,"") -> 149950 | R95: =IF(ISNUMBER(G95),'User Input'!$G$124,"") -> 735 | S95: 0
A96: 54 | B96: =IF(ISNUMBER(G96),'User Input'!J62,"") -> 322 Paper Manufacturing | F96: 0.001985204409 | G96: 25092 | H96: =IF(ISNUMBER(G96),'User Input'!$G$49-1,"") -> 1.394835252 | I96: =IF(ISNUMBER(G96),'User Input'!$G$77*12*H96,"") -> 37175.14912 | J96: 62267.14912 | K96: =IF(ISNUMBER(G96),'User Input'!$G$83,"") -> 0.02 | L96: 63537.90727 | M96: =IF(ISNUMBER(G96),Reg!H84,"") -> 1588.447682 | N96: =IF(ISNUMBER(G96),Reg!T84,"") -> 263000 | O96: =IF(ISNUMBER(G96),Reg!W84,"") -> 220000 | P96: =IF(ISNUMBER(G96),'User Input'!$G$130,"") -> 149950 | R96: =IF(ISNUMBER(G96),'User Input'!$G$124,"") -> 735 | S96: 0
A97: 55 | B97: =IF(ISNUMBER(G97),'User Input'!J63,"") -> 333 Machinery Manufacturing | F97: 0.00267279741 | G97: 51840 | H97: =IF(ISNUMBER(G97),'User Input'!$G$49-1,"") -> 1.394835252 | I97: =IF(ISNUMBER(G97),'User Input'!$G$77*12*H97,"") -> 37175.14912 | J97: 89015.14912 | K97: =IF(ISNUMBER(G97),'User Input'!$G$83,"") -> 0.02 | L97: 90831.78482 | M97: =IF(ISNUMBER(G97),Reg!H85,"") -> 2270.79462 | N97: =IF(ISNUMBER(G97),Reg!T85,"") -> 382000 | O97: =IF(ISNUMBER(G97),Reg!W85,"") -> 339000 | P97: =IF(ISNUMBER(G97),'User Input'!$G$130,"") -> 149950 | R97: =IF(ISNUMBER(G97),'User Input'!$G$124,"") -> 735 | S97: 0
A98: 56 | B98: =IF(ISNUMBER(G98),'User Input'!J64,"") -> 454 Nonstore Retailers | F98: 0.005320911995 | G98: 42876 | H98: =IF(ISNUMBER(G98),'User Input'!$G$49-1,"") -> 1.394835252 | I98: =IF(ISNUMBER(G98),'User Input'!$G$77*12*H98,"") -> 37175.14912 | J98: 80051.14912 | K98: =IF(ISNUMBER(G98),'User Input'!$G$83,"") -> 0.02 | L98: 81684.84604 | M98: =IF(ISNUMBER(G98),Reg!H86,"") -> 2042.121151 | N98: =IF(ISNUMBER(G98),Reg!T86,"") -> 342000 | O98: =IF(ISNUMBER(G98),Reg!W86,"") -> 299000 | P98: =IF(ISNUMBER(G98),'User Input'!$G$130,"") -> 149950 | R98: =IF(ISNUMBER(G98),'User Input'!$G$124,"") -> 735 | S98: 0
A99: 57 | B99: =IF(ISNUMBER(G99),'User Input'!J65,"") -> 334 Computer and Electronic Product Manufacturing | F99: 0.008783559828 | G99: 61284 | H99: =IF(ISNUMBER(G99),'User Input'!$G$49-1,"") -> 1.394835252 | I99: =IF(ISNUMBER(G99),'User Input'!$G$77*12*H99,"") -> 37175.14912 | J99: 98459.14912 | K99: =IF(ISNUMBER(G99),'User Input'!$G$83,"") -> 0.02 | L99: 100468.5195 | M99: =IF(ISNUMBER(G99),Reg!H87,"") -> 2511.712988 | N99: =IF(ISNUMBER(G99),Reg!T87,"") -> 424000 | O99: =IF(ISNUMBER(G99),Reg!W87,"") -> 381000 | P99: =IF(ISNUMBER(G99),'User Input'!$G$130,"") -> 149950 | R99: =IF(ISNUMBER(G99),'User Input'!$G$124,"") -> 735 | S99: 0
A100: 58 | B100: =IF(ISNUMBER(G100),'User Input'!J66,"") -> 314 Textile Product Mills | F100: 0.0005359699293 | G100: 36840 | H100: =IF(ISNUMBER(G100),'User Input'!$G$49-1,"") -> 1.394835252 | I100: =IF(ISNUMBER(G100),'User Input'!$G$77*12*H100,"") -> 37175.14912 | J100: 74015.14912 | K100: =IF(ISNUMBER(G100),'User Input'!$G$83,"") -> 0.02 | L100: 75525.66237 | M100: =IF(ISNUMBER(G100),Reg!H88,"") -> 1888.141559 | N100: =IF(ISNUMBER(G100),Reg!T88,"") -> 315000 | O100: =IF(ISNUMBER(G100),Reg!W88,"") -> 272000 | P100: =IF(ISNUMBER(G100),'User Input'!$G$130,"") -> 149950 | R100: =IF(ISNUMBER(G100),'User Input'!$G$124,"") -> 735 | S100: 0
A101: 59 | B101: =IF(ISNUMBER(G101),'User Input'!J67,"") -> 523 Securities, Commodity Contracts, and other Financial Investments and Related Activities | F101: 0.001230615167 | G101: 84852 | H101: =IF(ISNUMBER(G101),'User Input'!$G$49-1,"") -> 1.394835252 | I101: =IF(ISNUMBER(G101),'User Input'!$G$77*12*H101,"") -> 37175.14912 | J101: 122027.1491 | K101: =IF(ISNUMBER(G101),'User Input'!$G$83,"") -> 0.02 | L101: 124517.4991 | M101: =IF(ISNUMBER(G101),Reg!H89,"") -> 3112.937478 | N101: =IF(ISNUMBER(G101),Reg!T89,"") -> 529000 | O101: =IF(ISNUMBER(G101),Reg!W89,"") -> 486000 | P101: =IF(ISNUMBER(G101),'User Input'!$G$130,"") -> 149950 | R101: =IF(ISNUMBER(G101),'User Input'!$G$124,"") -> 735 | S101: 0
A102: 60 | B102: =IF(ISNUMBER(G102),'User Input'!J68,"") -> 512 Motion Picture and Sound Recording Industries | F102: 0.001794794039 | G102: 20508 | H102: =IF(ISNUMBER(G102),'User Input'!$G$49-1,"") -> 1.394835252 | I102: =IF(ISNUMBER(G102),'User Input'!$G$77*12*H102,"") -> 37175.14912 | J102: 57683.14912 | K102: =IF(ISNUMBER(G102),'User Input'!$G$83,"") -> 0.02 | L102: 58860.35625 | M102: =IF(ISNUMBER(G102),Reg!H90,"") -> 1471.508906 | N102: =IF(ISNUMBER(G102),Reg!T90,"") -> 243000 | O102: =IF(ISNUMBER(G102),Reg!W90,"") -> 199000 | P102: =IF(ISNUMBER(G102),'User Input'!$G$130,"") -> 149950 | R102: =IF(ISNUMBER(G102),'User Input'!$G$124,"") -> 735 | S102: 0
A103: 61 | B103: =IF(ISNUMBER(G103),'User Input'!J69,"") -> 221 Utilities | F103: 0.001096622684 | G103: 74892 | H103: =IF(ISNUMBER(G103),'User Input'!$G$49-1,"") -> 1.394835252 | I103: =IF(ISNUMBER(G103),'User Input'!$G$77*12*H103,"") -> 37175.14912 | J103: 112067.1491 | K103: =IF(ISNUMBER(G103),'User Input'!$G$83,"") -> 0.02 | L103: 114354.2338 | M103: =IF(ISNUMBER(G103),Reg!H91,"") -> 2858.855845 | N103: =IF(ISNUMBER(G103),Reg!T91,"") -> 485000 | O103: =IF(ISNUMBER(G103),Reg!W91,"") -> 441000 | P103: =IF(ISNUMBER(G103),'User Input'!$G$130,"") -> 149950 | R103: =IF(ISNUMBER(G103),'User Input'!$G$124,"") -> 735 | S103: 0
A104: 62 | B104: =IF(ISNUMBER(G104),'User Input'!J70,"") -> 711 Performing Arts, Spectator Sports, and Related Industries | F104: 0.0004724998061 | G104: 28764 | H104: =IF(ISNUMBER(G104),'User Input'!$G$49-1,"") -> 1.394835252 | I104: =IF(ISNUMBER(G104),'User Input'!$G$77*12*H104,"") -> 37175.14912 | J104: 65939.14912 | K104: =IF(ISNUMBER(G104),'User Input'!$G$83,"") -> 0.02 | L104: 67284.84604 | M104: =IF(ISNUMBER(G104),Reg!H92,"") -> 1682.121151 | N104: =IF(ISNUMBER(G104),Reg!T92,"") -> 279000 | O104: =IF(ISNUMBER(G104),Reg!W92,"") -> 236000 | P104: =IF(ISNUMBER(G104),'User Input'!$G$130,"") -> 149950 | R104: =IF(ISNUMBER(G104),'User Input'!$G$124,"") -> 735 | S104: 0
A105: 63 | B105: =IF(ISNUMBER(G105),'User Input'!J71,"") -> 321 Wood Product Manufacturing | F105: 0.001230615167 | G105: 30540 | H105: =IF(ISNUMBER(G105),'User Input'!$G$49-1,"") -> 1.394835252 | I105: =IF(ISNUMBER(G105),'User Input'!$G$77*12*H105,"") -> 37175.14912 | J105: 67715.14912 | K105: =IF(ISNUMBER(G105),'User Input'!$G$83,"") -> 0.02 | L105: 69097.09094 | M105: =IF(ISNUMBER(G105),Reg!H93,"") -> 1727.427274 | N105: =IF(ISNUMBER(G105),Reg!T93,"") -> 287000 | O105: =IF(ISNUMBER(G105),Reg!W93,"") -> 244000 | P105: =IF(ISNUMBER(G105),'User Input'!$G$130,"") -> 149950 | R105: =IF(ISNUMBER(G105),'User Input'!$G$124,"") -> 735 | S105: 0
A106: 64 | B106: =IF(ISNUMBER(G106),'User Input'!J72,"") -> 112 Animal Production | F106: 0.0008180593657 | G106: 32772 | H106: =IF(ISNUMBER(G106),'User Input'!$G$49-1,"") -> 1.394835252 | I106: =IF(ISNUMBER(G106),'User Input'!$G$77*12*H106,"") -> 37175.14912 | J106: 69947.14912 | K106: =IF(ISNUMBER(G106),'User Input'!$G$83,"") -> 0.02 | L106: 71374.64196 | M106: =IF(ISNUMBER(G106),Reg!H94,"") -> 1784.366049 | N106: =IF(ISNUMBER(G106),Reg!T94,"") -> 297000 | O106: =IF(ISNUMBER(G106),Reg!W94,"") -> 254000 | P106: =IF(ISNUMBER(G106),'User Input'!$G$130,"") -> 149950 | R106: =IF(ISNUMBER(G106),'User Input'!$G$124,"") -> 735 | S106: 0
A107: 65 | B107: =IF(ISNUMBER(G107),'User Input'!J73,"") -> 115 Support Activities for Agriculture and Forest | F107: 0.0004478169804 | G107: 27024 | H107: =IF(ISNUMBER(G107),'User Input'!$G$49-1,"") -> 1.394835252 | I107: =IF(ISNUMBER(G107),'User Input'!$G$77*12*H107,"") -> 37175.14912 | J107: =IF(ISNUMBER(G107),SUM(I107,G107),"") -> 64199.14912 | K107: =IF(ISNUMBER(G107),'User Input'!$G$83,"") -> 0.02 | L107: =IF(ISNUMBER(G107),J107/(1-K107),"") -> 65509.33584 | M107: =IF(ISNUMBER(G107),Reg!H95,"") -> 1637.733396 | N107: =IF(ISNUMBER(G107),Reg!T95,"") -> 272000 | O107: =IF(ISNUMBER(G107),Reg!W95,"") -> 228000 | P107: =IF(ISNUMBER(G107),'User Input'!$G$130,"") -> 149950 | R107: =IF(ISNUMBER(G107),'User Input'!$G$124,"") -> 735 | S107: =IF(ISNUMBER(G107),MIN(M107-R107,0),"") -> 0
A108: 66 | B108: =IF(ISNUMBER(G108),'User Input'!J74,"") -> 315 Apparel Manufacturing | F108: 0.0004019774469 | G108: 17196 | H108: =IF(ISNUMBER(G108),'User Input'!$G$49-1,"") -> 1.394835252 | I108: =IF(ISNUMBER(G108),'User Input'!$G$77*12*H108,"") -> 37175.14912 | J108: 54371.14912 | K108: =IF(ISNUMBER(G108),'User Input'!$G$83,"") -> 0.02 | L108: 55480.76441 | M108: =IF(ISNUMBER(G108),Reg!H96,"") -> 1387.01911 | N108: =IF(ISNUMBER(G108),Reg!T96,"") -> 228000 | O108: =IF(ISNUMBER(G108),Reg!W96,"") -> 185000 | P108: =IF(ISNUMBER(G108),'User Input'!$G$130,"") -> 149950 | R108: =IF(ISNUMBER(G108),'User Input'!$G$124,"") -> 735 | S108: 0
A109: 67 | B109: =IF(ISNUMBER(G109),'User Input'!J75,"") -> 331 Primary Metal Manufacturing | F109: 0.003254606873 | G109: 42216 | H109: =IF(ISNUMBER(G109),'User Input'!$G$49-1,"") -> 1.394835252 | I109: =IF(ISNUMBER(G109),'User Input'!$G$77*12*H109,"") -> 37175.14912 | J109: 79391.14912 | K109: =IF(ISNUMBER(G109),'User Input'!$G$83,"") -> 0.02 | L109: 81011.37666 | M109: =IF(ISNUMBER(G109),Reg!H97,"") -> 2025.284416 | N109: =IF(ISNUMBER(G109),Reg!T97,"") -> 339000 | O109: =IF(ISNUMBER(G109),Reg!W97,"") -> 296000 | P109: =IF(ISNUMBER(G109),'User Input'!$G$130,"") -> 149950 | R109: =IF(ISNUMBER(G109),'User Input'!$G$124,"") -> 735 | S109: 0
A110: 68 | B110: =IF(ISNUMBER(G110),'User Input'!J76,"") -> 335 Electrical Equipment, Appliance, and Component Manuf | F110: 0.0009167906685 | G110: 50676 | H110: =IF(ISNUMBER(G110),'User Input'!$G$49-1,"") -> 1.394835252 | I110: =IF(ISNUMBER(G110),'User Input'!$G$77*12*H110,"") -> 37175.14912 | J110: 87851.14912 | K110: =IF(ISNUMBER(G110),'User Input'!$G$83,"") -> 0.02 | L110: 89644.02972 | M110: =IF(ISNUMBER(G110),Reg!H98,"") -> 2241.100743 | N110: =IF(ISNUMBER(G110),Reg!T98,"") -> 377000 | O110: =IF(ISNUMBER(G110),Reg!W98,"") -> 334000 | P110: =IF(ISNUMBER(G110),'User Input'!$G$130,"") -> 149950 | R110: =IF(ISNUMBER(G110),'User Input'!$G$124,"") -> 735 | S110: 0
A111: 69 | B111: =IF(ISNUMBER(G111),'User Input'!J77,"") -> 485 Transit and Ground Passenger Transportation | F111: 0.00079337654 | G111: 22416 | H111: =IF(ISNUMBER(G111),'User Input'!$G$49-1,"") -> 1.394835252 | I111: =IF(ISNUMBER(G111),'User Input'!$G$77*12*H111,"") -> 37175.14912 | J111: 59591.14912 | K111: =IF(ISNUMBER(G111),'User Input'!$G$83,"") -> 0.02 | L111: 60807.29502 | M111: =IF(ISNUMBER(G111),Reg!H99,"") -> 1520.182376 | N111: =IF(ISNUMBER(G111),Reg!T99,"") -> 251000 | O111: =IF(ISNUMBER(G111),Reg!W99,"") -> 208000 | P111: =IF(ISNUMBER(G111),'User Input'!$G$130,"") -> 149950 | R111: =IF(ISNUMBER(G111),'User Input'!$G$124,"") -> 735 | S111: 0
A112: 70 | B112: =IF(ISNUMBER(G112),'User Input'!J78,"") -> 515 Broadcasting (except internet) | F112: 0.0004337125086 | G112: 49800 | H112: =IF(ISNUMBER(G112),'User Input'!$G$49-1,"") -> 1.394835252 | I112: =IF(ISNUMBER(G112),'User Input'!$G$77*12*H112,"") -> 37175.14912 | J112: 86975.14912 | K112: =IF(ISNUMBER(G112),'User Input'!$G$83,"") -> 0.02 | L112: 88750.15217 | M112: =IF(ISNUMBER(G112),Reg!H100,"") -> 2218.753804 | N112: =IF(ISNUMBER(G112),Reg!T100,"") -> 373000 | O112: =IF(ISNUMBER(G112),Reg!W100,"") -> 330000 | P112: =IF(ISNUMBER(G112),'User Input'!$G$130,"") -> 149950 | R112: =IF(ISNUMBER(G112),'User Input'!$G$124,"") -> 735 | S112: 0
A113: 71 | B113: =IF(ISNUMBER(G113),'User Input'!J79,"") -> 517 Teleconnumications | F113: 0.003808207392 | G113: 46788 | H113: =IF(ISNUMBER(G113),'User Input'!$G$49-1,"") -> 1.394835252 | I113: =IF(ISNUMBER(G113),'User Input'!$G$77*12*H113,"") -> 37175.14912 | J113: 83963.14912 | K113: =IF(ISNUMBER(G113),'User Input'!$G$83,"") -> 0.02 | L113: 85676.68278 | M113: =IF(ISNUMBER(G113),Reg!H101,"") -> 2141.917069 | N113: =IF(ISNUMBER(G113),Reg!T101,"") -> 360000 | O113: =IF(ISNUMBER(G113),Reg!W101,"") -> 316000 | P113: =IF(ISNUMBER(G113),'User Input'!$G$130,"") -> 149950 | R113: =IF(ISNUMBER(G113),'User Input'!$G$124,"") -> 735 | S113: 0
A114: 72 | B114: =IF(ISNUMBER(G114),'User Input'!J80,"") -> 519 Other Information Services | F114: 0.004686210763 | G114: 51144 | H114: =IF(ISNUMBER(G114),'User Input'!$G$49-1,"") -> 1.394835252 | I114: =IF(ISNUMBER(G114),'User Input'!$G$77*12*H114,"") -> 37175.14912 | J114: 88319.14912 | K114: =IF(ISNUMBER(G114),'User Input'!$G$83,"") -> 0.02 | L114: 90121.58074 | M114: =IF(ISNUMBER(G114),Reg!H102,"") -> 2253.039518 | N114: =IF(ISNUMBER(G114),Reg!T102,"") -> 379000 | O114: =IF(ISNUMBER(G114),Reg!W102,"") -> 336000 | P114: =IF(ISNUMBER(G114),'User Input'!$G$130,"") -> 149950 | R114: =IF(ISNUMBER(G114),'User Input'!$G$124,"") -> 735 | S114: 0
A115: 73 | B115: =IF(ISNUMBER(G115),'User Input'!J81,"") -> 712 Museums, Historical Sites, and Similar Institutions | F115: 0.001523282957 | G115: 31332 | H115: =IF(ISNUMBER(G115),'User Input'!$G$49-1,"") -> 1.394835252 | I115: =IF(ISNUMBER(G115),'User Input'!$G$77*12*H115,"") -> 37175.14912 | J115: 68507.14912 | K115: =IF(ISNUMBER(G115),'User Input'!$G$83,"") -> 0.02 | L115: 69905.25421 | M115: =IF(ISNUMBER(G115),Reg!H103,"") -> 1747.631355 | N115: =IF(ISNUMBER(G115),Reg!T103,"") -> 291000 | O115: =IF(ISNUMBER(G115),Reg!W103,"") -> 247000 | P115: =IF(ISNUMBER(G115),'User Input'!$G$130,"") -> 149950 | R115: =IF(ISNUMBER(G115),'User Input'!$G$124,"") -> 735 | S115: 0
A116: 74 | B116: =IF(ISNUMBER(G116),'User Input'!J82,"") -> 813 Religious, Grantmaking, Civic, Professional and Similar Organizations | F116: 0.001844159691 | G116: 36960 | H116: =IF(ISNUMBER(G116),'User Input'!$G$49-1,"") -> 1.394835252 | I116: =IF(ISNUMBER(G116),'User Input'!$G$77*12*H116,"") -> 37175.14912 | J116: 74135.14912 | K116: =IF(ISNUMBER(G116),'User Input'!$G$83,"") -> 0.02 | L116: 75648.11135 | M116: =IF(ISNUMBER(G116),Reg!H104,"") -> 1891.202784 | N116: =IF(ISNUMBER(G116),Reg!T104,"") -> 316000 | O116: =IF(ISNUMBER(G116),Reg!W104,"") -> 273000 | P116: =IF(ISNUMBER(G116),'User Input'!$G$130,"") -> 149950 | R116: =IF(ISNUMBER(G116),'User Input'!$G$124,"") -> 735 | S116: 0
A117: 75 | B117: =IF(ISNUMBER(G117),'User Input'!J83,"") -> 914 Private Households | F117: 0.001452760598 | G117: 7236 | H117: =IF(ISNUMBER(G117),'User Input'!$G$49-1,"") -> 1.394835252 | I117: =IF(ISNUMBER(G117),'User Input'!$G$77*12*H117,"") -> 37175.14912 | J117: 44411.14912 | K117: =IF(ISNUMBER(G117),'User Input'!$G$83,"") -> 0.02 | L117: 45317.49911 | M117: =IF(ISNUMBER(G117),Reg!H105,"") -> 1132.937478 | N117: =IF(ISNUMBER(G117),Reg!T105,"") -> 184000 | O117: =IF(ISNUMBER(G117),Reg!W105,"") -> 140000 | P117: =IF(ISNUMBER(G117),'User Input'!$G$130,"") -> 149950 | R117: =IF(ISNUMBER(G117),'User Input'!$G$124,"") -> 735 | S117: 0
A118: 76 | B118: =IF(ISNUMBER(G118),'User Input'!J84,"") ->  | H118: =IF(ISNUMBER(G118),'User Input'!$G$49-1,"") ->  | I118: =IF(ISNUMBER(G118),'User Input'!$G$77*12*H118,"") ->  | K118: =IF(ISNUMBER(G118),'User Input'!$G$83,"") ->  | M118: =IF(ISNUMBER(G118),Reg!H106,"") ->  | N118: =IF(ISNUMBER(G118),Reg!T106,"") ->  | O118: =IF(ISNUMBER(G118),Reg!W106,"") ->  | P118: =IF(ISNUMBER(G118),'User Input'!$G$130,"") ->  | R118: =IF(ISNUMBER(G118),'User Input'!$G$124,"") -> 
A119: 77 | B119: =IF(ISNUMBER(G119),'User Input'!J85,"") ->  | H119: =IF(ISNUMBER(G119),'User Input'!$G$49-1,"") ->  | I119: =IF(ISNUMBER(G119),'User Input'!$G$77*12*H119,"") ->  | K119: =IF(ISNUMBER(G119),'User Input'!$G$83,"") ->  | M119: =IF(ISNUMBER(G119),Reg!H107,"") ->  | N119: =IF(ISNUMBER(G119),Reg!T107,"") ->  | O119: =IF(ISNUMBER(G119),Reg!W107,"") ->  | P119: =IF(ISNUMBER(G119),'User Input'!$G$130,"") ->  | R119: =IF(ISNUMBER(G119),'User Input'!$G$124,"") -> 
A120: 78 | B120: =IF(ISNUMBER(G120),'User Input'!J86,"") ->  | H120: =IF(ISNUMBER(G120),'User Input'!$G$49-1,"") ->  | I120: =IF(ISNUMBER(G120),'User Input'!$G$77*12*H120,"") ->  | K120: =IF(ISNUMBER(G120),'User Input'!$G$83,"") ->  | M120: =IF(ISNUMBER(G120),Reg!H108,"") ->  | N120: =IF(ISNUMBER(G120),Reg!T108,"") ->  | O120: =IF(ISNUMBER(G120),Reg!W108,"") ->  | P120: =IF(ISNUMBER(G120),'User Input'!$G$130,"") ->  | R120: =IF(ISNUMBER(G120),'User Input'!$G$124,"") -> 
A121: 79 | B121: =IF(ISNUMBER(G121),'User Input'!J87,"") ->  | H121: =IF(ISNUMBER(G121),'User Input'!$G$49-1,"") ->  | I121: =IF(ISNUMBER(G121),'User Input'!$G$77*12*H121,"") ->  | K121: =IF(ISNUMBER(G121),'User Input'!$G$83,"") ->  | M121: =IF(ISNUMBER(G121),Reg!H109,"") ->  | N121: =IF(ISNUMBER(G121),Reg!T109,"") ->  | O121: =IF(ISNUMBER(G121),Reg!W109,"") ->  | P121: =IF(ISNUMBER(G121),'User Input'!$G$130,"") ->  | R121: =IF(ISNUMBER(G121),'User Input'!$G$124,"") -> 
A122: 80 | B122: =IF(ISNUMBER(G122),'User Input'!J88,"") ->  | H122: =IF(ISNUMBER(G122),'User Input'!$G$49-1,"") ->  | I122: =IF(ISNUMBER(G122),'User Input'!$G$77*12*H122,"") ->  | K122: =IF(ISNUMBER(G122),'User Input'!$G$83,"") ->  | M122: =IF(ISNUMBER(G122),Reg!H110,"") ->  | N122: =IF(ISNUMBER(G122),Reg!T110,"") ->  | O122: =IF(ISNUMBER(G122),Reg!W110,"") ->  | P122: =IF(ISNUMBER(G122),'User Input'!$G$130,"") ->  | R122: =IF(ISNUMBER(G122),'User Input'!$G$124,"") -> 
A123: 81 | B123: =IF(ISNUMBER(G123),'User Input'!J89,"") ->  | H123: =IF(ISNUMBER(G123),'User Input'!$G$49-1,"") ->  | I123: =IF(ISNUMBER(G123),'User Input'!$G$77*12*H123,"") ->  | K123: =IF(ISNUMBER(G123),'User Input'!$G$83,"") ->  | M123: =IF(ISNUMBER(G123),Reg!H111,"") ->  | N123: =IF(ISNUMBER(G123),Reg!T111,"") ->  | O123: =IF(ISNUMBER(G123),Reg!W111,"") ->  | P123: =IF(ISNUMBER(G123),'User Input'!$G$130,"") ->  | R123: =IF(ISNUMBER(G123),'User Input'!$G$124,"") -> 
A124: 82 | B124: =IF(ISNUMBER(G124),'User Input'!J90,"") ->  | H124: =IF(ISNUMBER(G124),'User Input'!$G$49-1,"") ->  | I124: =IF(ISNUMBER(G124),'User Input'!$G$77*12*H124,"") ->  | K124: =IF(ISNUMBER(G124),'User Input'!$G$83,"") ->  | M124: =IF(ISNUMBER(G124),Reg!H112,"") ->  | N124: =IF(ISNUMBER(G124),Reg!T112,"") ->  | O124: =IF(ISNUMBER(G124),Reg!W112,"") ->  | P124: =IF(ISNUMBER(G124),'User Input'!$G$130,"") ->  | R124: =IF(ISNUMBER(G124),'User Input'!$G$124,"") -> 
A125: 83 | B125: =IF(ISNUMBER(G125),'User Input'!J91,"") ->  | H125: =IF(ISNUMBER(G125),'User Input'!$G$49-1,"") ->  | I125: =IF(ISNUMBER(G125),'User Input'!$G$77*12*H125,"") ->  | K125: =IF(ISNUMBER(G125),'User Input'!$G$83,"") ->  | M125: =IF(ISNUMBER(G125),Reg!H113,"") ->  | N125: =IF(ISNUMBER(G125),Reg!T113,"") ->  | O125: =IF(ISNUMBER(G125),Reg!W113,"") ->  | P125: =IF(ISNUMBER(G125),'User Input'!$G$130,"") ->  | R125: =IF(ISNUMBER(G125),'User Input'!$G$124,"") -> 
A126: 84 | B126: =IF(ISNUMBER(G126),'User Input'!J92,"") ->  | H126: =IF(ISNUMBER(G126),'User Input'!$G$49-1,"") ->  | I126: =IF(ISNUMBER(G126),'User Input'!$G$77*12*H126,"") ->  | K126: =IF(ISNUMBER(G126),'User Input'!$G$83,"") ->  | M126: =IF(ISNUMBER(G126),Reg!H114,"") ->  | N126: =IF(ISNUMBER(G126),Reg!T114,"") ->  | O126: =IF(ISNUMBER(G126),Reg!W114,"") ->  | P126: =IF(ISNUMBER(G126),'User Input'!$G$130,"") ->  | R126: =IF(ISNUMBER(G126),'User Input'!$G$124,"") -> 
A127: 85 | B127: =IF(ISNUMBER(G127),'User Input'!J93,"") ->  | H127: =IF(ISNUMBER(G127),'User Input'!$G$49-1,"") ->  | I127: =IF(ISNUMBER(G127),'User Input'!$G$77*12*H127,"") ->  | K127: =IF(ISNUMBER(G127),'User Input'!$G$83,"") ->  | M127: =IF(ISNUMBER(G127),Reg!H115,"") ->  | N127: =IF(ISNUMBER(G127),Reg!T115,"") ->  | O127: =IF(ISNUMBER(G127),Reg!W115,"") ->  | P127: =IF(ISNUMBER(G127),'User Input'!$G$130,"") ->  | R127: =IF(ISNUMBER(G127),'User Input'!$G$124,"") -> 
A128: 86 | B128: =IF(ISNUMBER(G128),'User Input'!J94,"") ->  | H128: =IF(ISNUMBER(G128),'User Input'!$G$49-1,"") ->  | I128: =IF(ISNUMBER(G128),'User Input'!$G$77*12*H128,"") ->  | K128: =IF(ISNUMBER(G128),'User Input'!$G$83,"") ->  | M128: =IF(ISNUMBER(G128),Reg!H116,"") ->  | N128: =IF(ISNUMBER(G128),Reg!T116,"") ->  | O128: =IF(ISNUMBER(G128),Reg!W116,"") ->  | P128: =IF(ISNUMBER(G128),'User Input'!$G$130,"") ->  | R128: =IF(ISNUMBER(G128),'User Input'!$G$124,"") -> 
A129: 87 | B129: =IF(ISNUMBER(G129),'User Input'!J95,"") ->  | H129: =IF(ISNUMBER(G129),'User Input'!$G$49-1,"") ->  | I129: =IF(ISNUMBER(G129),'User Input'!$G$77*12*H129,"") ->  | K129: =IF(ISNUMBER(G129),'User Input'!$G$83,"") ->  | M129: =IF(ISNUMBER(G129),Reg!H117,"") ->  | N129: =IF(ISNUMBER(G129),Reg!T117,"") ->  | O129: =IF(ISNUMBER(G129),Reg!W117,"") ->  | P129: =IF(ISNUMBER(G129),'User Input'!$G$130,"") ->  | R129: =IF(ISNUMBER(G129),'User Input'!$G$124,"") -> 
A130: 88 | B130: =IF(ISNUMBER(G130),'User Input'!J96,"") ->  | H130: =IF(ISNUMBER(G130),'User Input'!$G$49-1,"") ->  | I130: =IF(ISNUMBER(G130),'User Input'!$G$77*12*H130,"") ->  | K130: =IF(ISNUMBER(G130),'User Input'!$G$83,"") ->  | M130: =IF(ISNUMBER(G130),Reg!H118,"") ->  | N130: =IF(ISNUMBER(G130),Reg!T118,"") ->  | O130: =IF(ISNUMBER(G130),Reg!W118,"") ->  | P130: =IF(ISNUMBER(G130),'User Input'!$G$130,"") ->  | R130: =IF(ISNUMBER(G130),'User Input'!$G$124,"") -> 
A131: 89 | B131: =IF(ISNUMBER(G131),'User Input'!J97,"") ->  | H131: =IF(ISNUMBER(G131),'User Input'!$G$49-1,"") ->  | I131: =IF(ISNUMBER(G131),'User Input'!$G$77*12*H131,"") ->  | K131: =IF(ISNUMBER(G131),'User Input'!$G$83,"") ->  | M131: =IF(ISNUMBER(G131),Reg!H119,"") ->  | N131: =IF(ISNUMBER(G131),Reg!T119,"") ->  | O131: =IF(ISNUMBER(G131),Reg!W119,"") ->  | P131: =IF(ISNUMBER(G131),'User Input'!$G$130,"") ->  | R131: =IF(ISNUMBER(G131),'User Input'!$G$124,"") -> 
A132: 90 | B132: =IF(ISNUMBER(G132),'User Input'!J98,"") ->  | H132: =IF(ISNUMBER(G132),'User Input'!$G$49-1,"") ->  | I132: =IF(ISNUMBER(G132),'User Input'!$G$77*12*H132,"") ->  | K132: =IF(ISNUMBER(G132),'User Input'!$G$83,"") ->  | M132: =IF(ISNUMBER(G132),Reg!H120,"") ->  | N132: =IF(ISNUMBER(G132),Reg!T120,"") ->  | O132: =IF(ISNUMBER(G132),Reg!W120,"") ->  | P132: =IF(ISNUMBER(G132),'User Input'!$G$130,"") ->  | R132: =IF(ISNUMBER(G132),'User Input'!$G$124,"") -> 

Sheet Summary2
A1: ="HOUSING & DEMOGRAPHIC TRENDS" -> HOUSING & DEMOGRAPHIC TRENDS
A2: ='User Input'!E4 -> Test City

Sheet NAICS Info
A1: NAICS Code Hierarchy
C2: 485 | D2: Transit and Ground Passenger Transportation | E2: 922120 | F2: =Summary!B23 -> Police Officer
A3: 11 | B3: Agriculture, Forestry, Fishing and Hunting | C3: 486 | D3: Pipeline Transportation | E3: 922160 | F3: =Summary!B24 -> Fire Fighter or EMT
A4: 111 | B4: Crop Production | C4: 487 | D4: Scenic and Sightseeing Transportation | E4: 221320 | F4: =Summary!B25 -> Public Works (wastewater worker)
A5: 112 | B5: Animal Production | C5: 488 | D5: Support Activities for Transportation | E5: 921190 | F5: =Summary!B26 -> Local Government Staff - Administrator
A6: 113 | B6: Forestry and Logging | C6: 491 | D6: Postal Service | E6: 921110 | F6: =Summary!B27 -> Local Government Staff - Executive
A7: 114 | B7: Fishing, Hunting and Trapping | C7: 492 | D7: Couriers and Messengers | E7: 921190 | F7: =Summary!B28 -> Local Government Staff - Clerical
A8: 115 | B8: Support Activities for Agriculture and Forestry | C8: 493 | D8: Warehousing and Storage
A9: 21 | B9: Mining | C9: 51 | D9: Information | F9: Basic Local Jobs
A10: 211 | B10: Oil and Gas Extraction | C10: 511 | D10: Publishing Industries (except Internet) | E10: 611110 | F10: =Summary!B31 -> Teacher (public school, entry level)
A11: 212 | B11: Mining (except Oil and Gas) | C11: 512 | D11: Motion Picture and Sound Recording Industries | E11: 621330 | F11: =Summary!B32 -> Social Worker
A12: 213 | B12: Support Activities for Mining | C12: 515 | D12: Broadcasting (except Internet) | E12: 621399 | F12: =Summary!B33 -> Nurse (LPN)
A13: 22 | B13: Utilities | C13: 516 | D13: Internet Publishing and Broadcasting | E13: 452111 | F13: =Summary!B34 -> Retail (general merchandise)
A14: 221 | B14: Utilities | C14: 517 | D14: Telecommunications | E14: 561720 | F14: =Summary!B35 -> Housekeeping
A15: 23 | B15: Construction | C15: 518 | D15: Internet Service Providers, Web Search Portals, and Data Processing Services | E15: 722110 | F15: =Summary!B36 -> Food Service (restaurant)
A16: 236 | B16: Construction of Buildings | C16: 519 | D16: Other Information Services | E16: 561110 | F16: =Summary!B37 -> Mid-Level Manager (private sector)
A17: 237 | B17: Heavy and Civil Engineering Construction | C17: 52 | D17: Finance and Insurance | E17: 111110 | F17: =Summary!B38 -> Agricultural Worker (farming)
A18: 238 | B18: Specialty Trade Contractors | C18: 521 | D18: Monetary Authorities - Central Bank | E18: 238130 | F18: =Summary!B39 -> Construction Worker
A19: 31-33 | B19: Manufacturing | C19: 522 | D19: Credit Intermediation and Related Activities
A20: 311 | B20: Food Manufacturing | C20: 523 | D20: Securities, Commodity Contracts, and Other Financial Investments and Related
A21: 312 | B21: Beverage and Tobacco Product Manufacturing | C21: 524 | D21: Insurance Carriers and Related Activities
A22: 313 | B22: Textile Mills | C22: 525 | D22: Funds, Trusts, and Other Financial Vehicles
A23: 314 | B23: Textile Product Mills | C23: 53 | D23: Real Estate and Rental and Leasing
A24: 315 | B24: Apparel Manufacturing | C24: 531 | D24: Real Estate
A25: 316 | B25: Leather and Allied Product Manufacturing | C25: 532 | D25: Rental and Leasing Services
A26: 321 | B26: Wood Product Manufacturing | C26: 533 | D26: Lessors of Nonfinancial Intangible Assets (except Copyrighted)
A27: 322 | B27: Paper Manufacturing | C27: 54 | D27: Professional, Scientific, and Technical Services
A28: 323 | B28: Printing and Related Support Activities | C28: 541 | D28: Professional, Scientific, and Technical Services
A29: 324 | B29: Petroleum and Coal Products Manufacturing | C29: 55 | D29: Management of Companies and Enterprises
A30: 325 | B30: Chemical Manufacturing | C30: 551 | D30: Management of Companies and Enterprises
A31: 326 | B31: Plastics and Rubber Products Manufacturing | C31: 56 | D31: Administrative and Support and Waste Management and Remediation Services
A32: 327 | B32: Nonmetallic Mineral Product Manufacturing | C32: 561 | D32: Administrative and Support Services
A33: 331 | B33: Primary Metal Manufacturing | C33: 562 | D33: Waste Management and Remediation Services
A34: 332 | B34: Fabricated Metal Product Manufacturing | C34: 61 | D34: Educational Services
A35: 333 | B35: Machinery Manufacturing | C35: 611 | D35: Educational Services
A36: 334 | B36: Computer and Electronic Product Manufacturing | C36: 62 | D36: Health Care and Social Assistance
A37: 335 | B37: Electrical Equipment, Appliance, and Component Manufacturing | C37: 621 | D37: Ambulatory Health Care Services
A38: 336 | B38: Transportation Equipment Manufacturing | C38: 622 | D38: Hospitals
A39: 337 | B39: Furniture and Related Product Manufacturing | C39: 623 | D39: Nursing and Residential Care Facilities
A40: 339 | B40: Miscellaneous Manufacturing | C40: 624 | D40: Social Assistance
A41: 42 | B41: Wholesale Trade | C41: 71 | D41: Arts, Entertainment, and Recreation
A42: 423 | B42: Merchant Wholesalers, Durable Goods | C42: 711 | D42: Performing Arts, Spectator Sports, and Related Industries
A43: 424 | B43: Merchant Wholesalers, Nondurable Goods | C43: 712 | D43: Museums, Historical Sites, and Similar Institutions
A44: 425 | B44: Wholesale Electronic Markets and Agents and Brokers | C44: 713 | D44: Amusement, Gambling, and Recreation Industries
A45: 44-45 | B45: Retail Trade | C45: 72 | D45: Accommodation and Food Services
A46: 441 | B46: Motor Vehicle and Parts Dealers | C46: 721 | D46: Accommodation
A47: 442 | B47: Furniture and Home Furnishings Stores | C47: 722 | D47: Food Services and Drinking Places
A48: 443 | B48: Electronics and Appliance Stores | C48: 81 | D48: Other Services (except Public Administration)
A49: 444 | B49: Building Material and Garden Equipment and Supplies Dealers | C49: 811 | D49: Repair and Maintenance
A50: 445 | B50: Food and Beverage Stores | C50: 812 | D50: Personal and Laundry Services
A51: 446 | B51: Health and Personal Care Stores | C51: 813 | D51: Religious, Grantmaking, Civic, Professional, and Similar Organizations
A52: 447 | B52: Gasoline Stations | C52: 814 | D52: Private Households
A53: 448 | B53: Clothing and Clothing Accessories Stores | C53: 92 | D53: Public Administration
A54: 451 | B54: Sporting Goods, Hobby, Book, and Music Stores | C54: 921 | D54: Executive, Legislative, and Other General Government Support
A55: 452 | B55: General Merchandise Stores | C55: 922 | D55: Justice, Public Order, and Safety Activities
A56: 453 | B56: Miscellaneous Store Retailers | C56: 923 | D56: Administration of Human Resource Programs
A57: 454 | B57: Nonstore Retailers | C57: 924 | D57: Administration of Environmental Quality Programs
A58: 48-49 | B58: Transportation and Warehousing | C58: 925 | D58: Administration of Housing Programs, Urban Planning, and Community Devp
A59: 481 | B59: Air Transportation | C59: 926 | D59: Administration of Economic Programs
A60: 482 | B60: Rail Transportation | C60: 927 | D60: Space Research and Technology
A61: 483 | B61: Water Transportation | C61: 928 | D61: National Security and International Affairs

Sheet #Households by Income Group
A1: Number of Households by Income Catagory | E1: Year = | F1: 2010
A2: Utah State Tax Comission Data
A3: Seq | B3: CITY | C3: COUNTY | D3: AMI Lookup Name | E3: HUD AMI 2007 | F3: Income Group | L3: Number of Households
F4: 0.3 | G4: 0.5 | H4: 0.6 | I4: 0.8 | J4: 1 | K4: 1.2 | L4: ="Up to " & TEXT(F4,"0%") -> Up to 30% | M4: =TEXT(F4,"0%") & " to " & TEXT(G4,"0%") -> 30% to 50% | N4: =TEXT(G4,"0%") & " to " & TEXT(H4,"0%") -> 50% to 60% | O4: =TEXT(H4,"0%") & " to " & TEXT(I4,"0%") -> 60% to 80% | P4: =TEXT(I4,"0%") & " to " & TEXT(J4,"0%") -> 80% to 100% | Q4: =TEXT(J4,"0%") & " to " & TEXT(K4,"0%") -> 100% to 120% | R4: ="More than " & TEXT(K4,"0%") -> More than 120%
A5: 1 | B5: ALPINE UT | C5: UTAH COUNTY | D5: UTAH | E5: 65100 | F5: 19530 | G5: 32550 | H5: 39060 | I5: 52080 | J5: 65100 | K5: 78120 | L5: 454 | M5: 181 | N5: 93 | O5: 151 | P5: 123 | Q5: 134 | R5: 1019
A6: 2 | B6: ALTA UT | C6: SALT LAKE COUNTY | D6: SALT LAKE | E6: 70000 | F6: 21000 | G6: 35000 | H6: 42000 | I6: 56000 | J6: 70000 | K6: 84000 | L6: 45 | M6: 16 | N6: 13 | O6: 15 | R6: 15
A7: 3 | B7: AMERICAN FORK UT | C7: UTAH COUNTY | D7: UTAH | E7: 65100 | F7: 19530 | G7: 32550 | H7: 39060 | I7: 52080 | J7: 65100 | K7: 78120 | L7: 1647 | M7: 1147 | N7: 503 | O7: 939 | P7: 820 | Q7: 742 | R7: 2000
A8: 4 | B8: BEAVER UT | C8: BEAVER COUNTY | D8: BEAVER | E8: 50400 | F8: 15120 | G8: 25200 | H8: 30240 | I8: 40320 | J8: 50400 | K8: 60480 | L8: 157 | M8: 81 | N8: 46 | O8: 62 | P8: 68 | Q8: 44 | R8: 257
A9: 5 | B9: BLUFFDALE UT | C9: SALT LAKE COUNTY | D9: SALT LAKE | E9: 70000 | F9: 21000 | G9: 35000 | H9: 42000 | I9: 56000 | J9: 70000 | K9: 84000 | L9: 317 | M9: 164 | N9: 80 | O9: 131 | P9: 139 | Q9: 130 | R9: 558
A10: 6 | B10: BOUNTIFUL UT | C10: DAVIS COUNTY | D10: DAVIS | E10: 68800 | F10: 20640 | G10: 34400 | H10: 41280 | I10: 55040 | J10: 68800 | K10: 82560 | L10: 2958 | M10: 2131 | N10: 939 | O10: 1799 | P10: 1440 | Q10: 1180 | R10: 3910
A11: 7 | B11: BRIGHAM CITY UT | C11: BOX ELDER COUNTY | D11: BOX ELDER | E11: 61200 | F11: 18360 | G11: 30600 | H11: 36720 | I11: 48960 | J11: 61200 | K11: 73440 | L11: 1301 | M11: 962 | N11: 491 | O11: 795 | P11: 765 | Q11: 577 | R11: 1547
A12: 8 | B12: CEDAR CITY UT | C12: IRON COUNTY | D12: IRON | E12: 47400 | F12: 14220 | G12: 23700 | H12: 28440 | I12: 37920 | J12: 47400 | K12: 56880 | L12: 2530 | M12: 1605 | N12: 670 | O12: 1111 | P12: 949 | Q12: 738 | R12: 2821
A13: 9 | B13: CEDAR HILLS UT | C13: UTAH COUNTY | D13: UTAH | E13: 65100 | F13: 19530 | G13: 32550 | H13: 39060 | I13: 52080 | J13: 65100 | K13: 78120 | L13: 267 | M13: 164 | N13: 66 | O13: 136 | P13: 174 | Q13: 178 | R13: 901
A14: 10 | B14: CENTERVILLE UT | C14: DAVIS COUNTY | D14: DAVIS | E14: 68800 | F14: 20640 | G14: 34400 | H14: 41280 | I14: 55040 | J14: 68800 | K14: 82560 | L14: 792 | M14: 513 | N14: 275 | O14: 527 | P14: 517 | Q14: 470 | R14: 1789
A15: 11 | B15: CLEARFIELD UT | C15: DAVIS COUNTY | D15: DAVIS | E15: 68800 | F15: 20640 | G15: 34400 | H15: 41280 | I15: 55040 | J15: 68800 | K15: 82560 | L15: 2594 | M15: 1861 | N15: 872 | O15: 1500 | P15: 1198 | Q15: 831 | R15: 1349
A16: 12 | B16: CLINTON UT | C16: DAVIS COUNTY | D16: DAVIS | E16: 68800 | F16: 20640 | G16: 34400 | H16: 41280 | I16: 55040 | J16: 68800 | K16: 82560 | L16: 766 | M16: 691 | N16: 379 | O16: 856 | P16: 877 | Q16: 654 | R16: 1406
A17: 13 | B17: COALVILLE UT | C17: SUMMIT COUNTY | D17: SUMMIT | E17: 93300 | F17: 27990 | G17: 46650 | H17: 55980 | I17: 74640 | J17: 93300 | K17: 111960 | L17: 244 | M17: 153 | N17: 45 | O17: 99 | P17: 72 | Q17: 61 | R17: 129
A18: 14 | B18: DELTA UT | C18: MILLARD COUNTY | D18: MILLARD | E18: 53800 | F18: 16140 | G18: 26900 | H18: 32280 | I18: 43040 | J18: 53800 | K18: 64560 | L18: 358 | M18: 232 | N18: 104 | O18: 149 | P18: 130 | Q18: 111 | R18: 504
A19: 15 | B19: DRAPER UT | C19: SALT LAKE COUNTY | D19: SALT LAKE | E19: 70000 | F19: 21000 | G19: 35000 | H19: 42000 | I19: 56000 | J19: 70000 | K19: 84000 | L19: 1823 | M19: 1176 | N19: 543 | O19: 1126 | P19: 986 | Q19: 891 | R19: 4421
A20: 16 | B20: DUGWAY UT | C20: TOOELE COUNTY | D20: TOOELE | E20: 65600 | F20: 19680 | G20: 32800 | H20: 39360 | I20: 52480 | J20: 65600 | K20: 78720 | L20: 21 | M20: 37 | O20: 54 | P20: 47 | Q20: 50 | R20: 81
A21: 17 | B21: EAGLE MOUNTAIN UT | C21: UTAH COUNTY | D21: UTAH | E21: 65100 | F21: 19530 | G21: 32550 | H21: 39060 | I21: 52080 | J21: 65100 | K21: 78120 | L21: 617 | M21: 613 | N21: 466 | O21: 961 | P21: 906 | Q21: 617 | R21: 1080
A22: 18 | B22: EDEN UT | C22: WEBER COUNTY | D22: WEBER | E22: 68800 | F22: 20640 | G22: 34400 | H22: 41280 | I22: 55040 | J22: 68800 | K22: 82560 | L22: 216 | M22: 92 | N22: 36 | O22: 107 | P22: 85 | Q22: 66 | R22: 375
A23: 19 | B23: ENOCH UT | C23: IRON COUNTY | D23: IRON | E23: 47400 | F23: 14220 | G23: 23700 | H23: 28440 | I23: 37920 | J23: 47400 | K23: 56880 | L23: 166 | M23: 105 | N23: 49 | O23: 107 | P23: 99 | Q23: 114 | R23: 358
A24: 20 | B24: EPHRAIM UT | C24: SANPETE COUNTY | D24: SANPETE | E24: 48200 | F24: 14460 | G24: 24100 | H24: 28920 | I24: 38560 | J24: 48200 | K24: 57840 | L24: 238 | M24: 201 | N24: 80 | O24: 137 | P24: 121 | Q24: 80 | R24: 333
A25: 21 | B25: FARMINGTON UT | C25: DAVIS COUNTY | D25: DAVIS | E25: 68800 | F25: 20640 | G25: 34400 | H25: 41280 | I25: 55040 | J25: 68800 | K25: 82560 | L25: 705 | M25: 494 | N25: 228 | O25: 572 | P25: 558 | Q25: 479 | R25: 2012
A26: 22 | B26: FARR WEST UT | C26: WEBER COUNTY | D26: WEBER | E26: 68800 | F26: 20640 | G26: 34400 | H26: 41280 | I26: 55040 | J26: 68800 | K26: 82560 | L26: 181 | M26: 150 | N26: 74 | O26: 141 | P26: 153 | Q26: 194 | R26: 507
A27: 23 | B27: FRUIT HEIGHTS UT | C27: DAVIS COUNTY | D27: DAVIS | E27: 68800 | F27: 20640 | G27: 34400 | H27: 41280 | I27: 55040 | J27: 68800 | K27: 82560 | L27: 182 | M27: 102 | N27: 49 | O27: 105 | P27: 105 | Q27: 112 | R27: 595
A28: 24 | B28: GRANTSVILLE | C28: TOOELE COUNTY | D28: TOOELE | E28: 65600 | F28: 19680 | G28: 32800 | H28: 39360 | I28: 52480 | J28: 65600 | K28: 78720 | L28: 454 | M28: 310 | N28: 175 | O28: 324 | P28: 340 | Q28: 298 | R28: 807
A29: 25 | B29: HARRISVILLE UT | C29: WEBER COUNTY | D29: WEBER | E29: 68800 | F29: 20640 | G29: 34400 | H29: 41280 | I29: 55040 | J29: 68800 | K29: 82560 | L29: 148 | M29: 151 | N29: 80 | O29: 195 | P29: 163 | Q29: 127 | R29: 254
A30: 26 | B30: HEBER CITY UT | C30: WASATCH COUNTY | D30: WASATCH | E30: 66900 | F30: 20070 | G30: 33450 | H30: 40140 | I30: 53520 | J30: 66900 | K30: 80280 | L30: 1139 | M30: 785 | N30: 334 | O30: 591 | P30: 524 | Q30: 429 | R30: 1134
A31: 27 | B31: HELPER UT | C31: CARBON COUNTY | D31: CARBON | E31: 52600 | F31: 15780 | G31: 26300 | H31: 31560 | I31: 42080 | J31: 52600 | K31: 63120 | L31: 283 | M31: 193 | N31: 75 | O31: 128 | P31: 142 | Q31: 123 | R31: 441
A32: 28 | B32: HERRIMAN UT | C32: SALT LAKE COUNTY | D32: SALT LAKE | E32: 70000 | F32: 21000 | G32: 35000 | H32: 42000 | I32: 56000 | J32: 70000 | K32: 84000 | L32: 720 | M32: 564 | N32: 306 | O32: 730 | P32: 795 | Q32: 800 | R32: 2032
A33: 29 | B33: HIGHLAND UT | C33: UTAH COUNTY | D33: UTAH | E33: 65100 | F33: 19530 | G33: 32550 | H33: 39060 | I33: 52080 | J33: 65100 | K33: 78120 | L33: 518 | M33: 241 | N33: 93 | O33: 224 | P33: 216 | Q33: 237 | R33: 1754
A34: 30 | B34: HILL AFB UT | C34: DAVIS COUNTY | D34: DAVIS | E34: 68800 | F34: 20640 | G34: 34400 | H34: 41280 | I34: 55040 | J34: 68800 | K34: 82560 | L34: 531 | M34: 350 | N34: 106 | O34: 152 | P34: 62 | Q34: 41 | R34: 48
A35: 31 | B35: HOLLADAY UT | C35: SALT LAKE COUNTY | D35: SALT LAKE | E35: 70000 | F35: 21000 | G35: 35000 | H35: 42000 | I35: 56000 | J35: 70000 | K35: 84000 | L35: 759 | M35: 525 | N35: 223 | O35: 366 | P35: 279 | Q35: 212 | R35: 916
A36: 32 | B36: HOOPER UT | C36: WEBER COUNTY | D36: WEBER | E36: 68800 | F36: 20640 | G36: 34400 | H36: 41280 | I36: 55040 | J36: 68800 | K36: 82560 | L36: 339 | M36: 225 | N36: 138 | O36: 288 | P36: 310 | Q36: 297 | R36: 771
A37: 33 | B37: HUNTSVILLE UT | C37: WEBER COUNTY | D37: WEBER | E37: 68800 | F37: 20640 | G37: 34400 | H37: 41280 | I37: 55040 | J37: 68800 | K37: 82560 | L37: 126 | M37: 85 | N37: 31 | O37: 76 | P37: 66 | Q37: 58 | R37: 256
A38: 34 | B38: HURRICANE UT | C38: WASHINGTON COUNTY | D38: WASHINGTON | E38: 54900 | F38: 16470 | G38: 27450 | H38: 32940 | I38: 43920 | J38: 54900 | K38: 65880 | L38: 1028 | M38: 725 | N38: 307 | O38: 561 | P38: 434 | Q38: 366 | R38: 917
A39: 35 | B39: HYDE PARK UT | C39: CACHE COUNTY | D39: CACHE | E39: 57000 | F39: 17100 | G39: 28500 | H39: 34200 | I39: 45600 | J39: 57000 | K39: 68400 | L39: 165 | M39: 110 | N39: 49 | O39: 97 | P39: 102 | Q39: 97 | R39: 499
A40: 36 | B40: HYRUM UT | C40: CACHE COUNTY | D40: CACHE | E40: 57000 | F40: 17100 | G40: 28500 | H40: 34200 | I40: 45600 | J40: 57000 | K40: 68400 | L40: 364 | M40: 311 | N40: 177 | O40: 372 | P40: 291 | Q40: 252 | R40: 531
A41: 37 | B41: IVINS UT | C41: WASHINGTON COUNTY | D41: WASHINGTON | E41: 54900 | F41: 16470 | G41: 27450 | H41: 32940 | I41: 43920 | J41: 54900 | K41: 65880 | L41: 440 | M41: 299 | N41: 149 | O41: 248 | P41: 247 | Q41: 190 | R41: 593
A42: 38 | B42: KAMAS UT | C42: SUMMIT COUNTY | D42: SUMMIT | E42: 93300 | F42: 27990 | G42: 46650 | H42: 55980 | I42: 74640 | J42: 93300 | K42: 111960 | L42: 470 | M42: 260 | N42: 111 | O42: 167 | P42: 105 | Q42: 73 | R42: 162
A43: 39 | B43: KANAB UT | C43: KANE COUNTY | D43: KANE | E43: 51400 | F43: 15420 | G43: 25700 | H43: 30840 | I43: 41120 | J43: 51400 | K43: 61680 | L43: 390 | M43: 250 | N43: 109 | O43: 205 | P43: 179 | Q43: 149 | R43: 444
A44: 40 | B44: KAYSVILLE UT | C44: DAVIS COUNTY | D44: DAVIS | E44: 68800 | F44: 20640 | G44: 34400 | H44: 41280 | I44: 55040 | J44: 68800 | K44: 82560 | L44: 1085 | M44: 738 | N44: 406 | O44: 835 | P44: 822 | Q44: 746 | R44: 3219
A45: 41 | B45: KEARNS UT | C45: SALT LAKE COUNTY | D45: SALT LAKE | E45: 70000 | F45: 21000 | G45: 35000 | H45: 42000 | I45: 56000 | J45: 70000 | K45: 84000 | L45: 2096 | M45: 1898 | N45: 739 | O45: 1276 | P45: 880 | Q45: 600 | R45: 813
A46: 42 | B46: LAVERKIN UT | C46: WASHINGTON COUNTY | D46: WASHINGTON | E46: 54900 | F46: 16470 | G46: 27450 | H46: 32940 | I46: 43920 | J46: 54900 | K46: 65880 | L46: 284 | M46: 221 | N46: 94 | O46: 165 | P46: 140 | Q46: 85 | R46: 217
A47: 43 | B47: LAYTON UT | C47: DAVIS COUNTY | D47: DAVIS | E47: 68800 | F47: 20640 | G47: 34400 | H47: 41280 | I47: 55040 | J47: 68800 | K47: 82560 | L47: 4366 | M47: 3076 | N47: 1484 | O47: 2617 | P47: 2455 | Q47: 2055 | R47: 5711
A48: 44 | B48: LEEDS UT | C48: WASHINGTON COUNTY | D48: WASHINGTON | E48: 54900 | F48: 16470 | G48: 27450 | H48: 32940 | I48: 43920 | J48: 54900 | K48: 65880 | L48: 71 | M48: 61 | N48: 15 | O48: 30 | P48: 28 | Q48: 25 | R48: 107
A49: 45 | B49: LEHI UT | C49: UTAH COUNTY | D49: UTAH | E49: 65100 | F49: 19530 | G49: 32550 | H49: 39060 | I49: 52080 | J49: 65100 | K49: 78120 | L49: 1917 | M49: 1453 | N49: 734 | O49: 1579 | P49: 1681 | Q49: 1483 | R49: 4011
A50: 46 | B50: LINDON UT | C50: UTAH COUNTY | D50: UTAH | E50: 65100 | F50: 19530 | G50: 32550 | H50: 39060 | I50: 52080 | J50: 65100 | K50: 78120 | L50: 477 | M50: 275 | N50: 136 | O50: 248 | P50: 206 | Q50: 191 | R50: 935
A51: 47 | B51: LOGAN UT | C51: CACHE COUNTY | D51: CACHE | E51: 57000 | F51: 17100 | G51: 28500 | H51: 34200 | I51: 45600 | J51: 57000 | K51: 68400 | L51: 5031 | M51: 3200 | N51: 1243 | O51: 1885 | P51: 1266 | Q51: 951 | R51: 2581
A52: 48 | B52: MAGNA UT | C52: SALT LAKE COUNTY | D52: SALT LAKE | E52: 70000 | F52: 21000 | G52: 35000 | H52: 42000 | I52: 56000 | J52: 70000 | K52: 84000 | L52: 2035 | M52: 1940 | N52: 728 | O52: 1296 | P52: 1016 | Q52: 654 | R52: 1011
A53: 49 | B53: MAPLETON UT | C53: UTAH COUNTY | D53: UTAH | E53: 65100 | F53: 19530 | G53: 32550 | H53: 39060 | I53: 52080 | J53: 65100 | K53: 78120 | L53: 325 | M53: 213 | N53: 94 | O53: 187 | P53: 142 | Q53: 166 | R53: 803
A54: 50 | B54: MIDVALE UT | C54: SALT LAKE COUNTY | D54: SALT LAKE | E54: 70000 | F54: 21000 | G54: 35000 | H54: 42000 | I54: 56000 | J54: 70000 | K54: 84000 | L54: 4228 | M54: 2859 | N54: 1017 | O54: 1565 | P54: 1059 | Q54: 660 | R54: 1146
A55: 51 | B55: MIDWAY UT | C55: WASATCH COUNTY | D55: WASATCH | E55: 66900 | F55: 20070 | G55: 33450 | H55: 40140 | I55: 53520 | J55: 66900 | K55: 80280 | L55: 261 | M55: 166 | N55: 67 | O55: 137 | P55: 105 | Q55: 113 | R55: 381
A56: 52 | B56: MOAB UT | C56: GRAND COUNTY | D56: GRAND | E56: 50300 | F56: 15090 | G56: 25150 | H56: 30180 | I56: 40240 | J56: 50300 | K56: 60360 | L56: 869 | M56: 623 | N56: 237 | O56: 373 | P56: 294 | Q56: 251 | R56: 860
A57: 53 | B57: MONTICELLO UT | C57: SAN JUAN COUNTY | D57: SAN JUAN | E57: 40700 | F57: 12210 | G57: 20350 | H57: 24420 | I57: 32560 | J57: 40700 | K57: 48840 | L57: 77 | M57: 54 | N57: 37 | O57: 40 | P57: 42 | Q57: 35 | R57: 236
A58: 54 | B58: MORGAN UT | C58: MORGAN COUNTY | D58: MORGAN | E58: 68800 | F58: 20640 | G58: 34400 | H58: 41280 | I58: 55040 | J58: 68800 | K58: 82560 | L58: 322 | M58: 243 | N58: 127 | O58: 235 | P58: 250 | Q58: 251 | R58: 788
A59: 55 | B59: MOUNTAIN GREEN UT | C59: MORGAN COUNTY | D59: MORGAN | E59: 68800 | F59: 20640 | G59: 34400 | H59: 41280 | I59: 55040 | J59: 68800 | K59: 82560 | L59: 47 | M59: 15 | N59: 11 | O59: 24 | P59: 37 | Q59: 26 | R59: 196
A60: 56 | B60: MURRAY UT | C60: SALT LAKE COUNTY | D60: SALT LAKE | E60: 70000 | F60: 21000 | G60: 35000 | H60: 42000 | I60: 56000 | J60: 70000 | K60: 84000 | L60: 3078 | M60: 2283 | N60: 957 | O60: 1597 | P60: 1153 | Q60: 866 | R60: 2324
A61: 57 | B61: NEPHI UT | C61: JUAB COUNTY | D61: JUAB | E61: 65100 | F61: 19530 | G61: 32550 | H61: 39060 | I61: 52080 | J61: 65100 | K61: 78120 | L61: 362 | M61: 250 | N61: 121 | O61: 217 | P61: 199 | Q61: 165 | R61: 329
A62: 58 | B62: NIBLEY UT | C62: CACHE COUNTY | D62: CACHE | E62: 57000 | F62: 17100 | G62: 28500 | H62: 34200 | I62: 45600 | J62: 57000 | K62: 68400 | L62: 122 | M62: 118 | N62: 64 | O62: 138 | P62: 159 | Q62: 132 | R62: 398
A63: 59 | B63: NORTH LOGAN UT | C63: CACHE COUNTY | D63: CACHE | E63: 57000 | F63: 17100 | G63: 28500 | H63: 34200 | I63: 45600 | J63: 57000 | K63: 68400 | L63: 278 | M63: 199 | N63: 90 | O63: 172 | P63: 178 | Q63: 153 | R63: 704
A64: 60 | B64: NORTH OGDEN UT | C64: WEBER COUNTY | D64: WEBER | E64: 68800 | F64: 20640 | G64: 34400 | H64: 41280 | I64: 55040 | J64: 68800 | K64: 82560 | L64: 543 | M64: 431 | N64: 217 | O64: 491 | P64: 481 | Q64: 431 | R64: 1251
A65: 61 | B65: NORTH SALT LAKE UT | C65: DAVIS COUNTY | D65: DAVIS | E65: 68800 | F65: 20640 | G65: 34400 | H65: 41280 | I65: 55040 | J65: 68800 | K65: 82560 | L65: 982 | M65: 797 | N65: 365 | O65: 715 | P65: 586 | Q65: 386 | R65: 1387
A66: 62 | B66: OAKLEY UT | C66: SUMMIT COUNTY | D66: SUMMIT | E66: 93300 | F66: 27990 | G66: 46650 | H66: 55980 | I66: 74640 | J66: 93300 | K66: 111960 | L66: 98 | M66: 83 | N66: 28 | O66: 53 | P66: 35 | Q66: 35 | R66: 79
A67: 63 | B67: OGDEN UT | C67: WEBER COUNTY | D67: WEBER | E67: 68800 | F67: 20640 | G67: 34400 | H67: 41280 | I67: 55040 | J67: 68800 | K67: 82560 | L67: 12654 | M67: 8602 | N67: 3513 | O67: 5504 | P67: 3976 | Q67: 2724 | R67: 6665
A68: 64 | B68: OREM UT | C68: UTAH COUNTY | D68: UTAH | E68: 65100 | F68: 19530 | G68: 32550 | H68: 39060 | I68: 52080 | J68: 65100 | K68: 78120 | L68: 7296 | M68: 4901 | N68: 1975 | O68: 3107 | P68: 2307 | Q68: 1768 | R68: 5173
A69: 65 | B69: PARK CITY UT | C69: SUMMIT COUNTY | D69: SUMMIT | E69: 93300 | F69: 27990 | G69: 46650 | H69: 55980 | I69: 74640 | J69: 93300 | K69: 111960 | L69: 3850 | M69: 1398 | N69: 483 | O69: 773 | P69: 636 | Q69: 540 | R69: 2468
A70: 66 | B70: PAROWAN UT | C70: IRON COUNTY | D70: IRON | E70: 47400 | F70: 14220 | G70: 23700 | H70: 28440 | I70: 37920 | J70: 47400 | K70: 56880 | L70: 160 | M70: 82 | N70: 38 | O70: 69 | P70: 58 | Q70: 38 | R70: 224
A71: 67 | B71: PAYSON UT | C71: UTAH COUNTY | D71: UTAH | E71: 65100 | F71: 19530 | G71: 32550 | H71: 39060 | I71: 52080 | J71: 65100 | K71: 78120 | L71: 1207 | M71: 1016 | N71: 454 | O71: 805 | P71: 702 | Q71: 557 | R71: 1202
A72: 68 | B72: PERRY UT | C72: BOX ELDER COUNTY | D72: BOX ELDER | E72: 61200 | F72: 18360 | G72: 30600 | H72: 36720 | I72: 48960 | J72: 61200 | K72: 73440 | L72: 122 | M72: 106 | N72: 61 | O72: 125 | P72: 143 | Q72: 135 | R72: 507
A73: 69 | B73: PLEASANT GROVE UT | C73: UTAH COUNTY | D73: UTAH | E73: 65100 | F73: 19530 | G73: 32550 | H73: 39060 | I73: 52080 | J73: 65100 | K73: 78120 | L73: 1846 | M73: 1400 | N73: 646 | O73: 1172 | P73: 951 | Q73: 828 | R73: 2416
A74: 70 | B74: PLEASANT VIEW UT | C74: WEBER COUNTY | D74: WEBER | E74: 68800 | F74: 20640 | G74: 34400 | H74: 41280 | I74: 55040 | J74: 68800 | K74: 82560 | L74: 227 | M74: 147 | N74: 76 | O74: 134 | P74: 125 | Q74: 134 | R74: 695
A75: 71 | B75: PRICE UT | C75: CARBON COUNTY | D75: CARBON | E75: 52600 | F75: 15780 | G75: 26300 | H75: 31560 | I75: 42080 | J75: 52600 | K75: 63120 | L75: 976 | M75: 540 | N75: 227 | O75: 411 | P75: 394 | Q75: 336 | R75: 1482
A76: 72 | B76: PROVIDENCE UT | C76: CACHE COUNTY | D76: CACHE | E76: 57000 | F76: 17100 | G76: 28500 | H76: 34200 | I76: 45600 | J76: 57000 | K76: 68400 | L76: 301 | M76: 205 | N76: 97 | O76: 242 | P76: 209 | Q76: 214 | R76: 832
A77: 73 | B77: PROVO UT | C77: UTAH COUNTY | D77: UTAH | E77: 65100 | F77: 19530 | G77: 32550 | H77: 39060 | I77: 52080 | J77: 65100 | K77: 78120 | L77: 12860 | M77: 5614 | N77: 2039 | O77: 2836 | P77: 1863 | Q77: 1345 | R77: 3849
A78: 74 | B78: RICHFIELD UT | C78: SEVIER COUNTY | D78: SEVIER | E78: 51800 | F78: 15540 | G78: 25900 | H78: 31080 | I78: 41440 | J78: 51800 | K78: 62160 | L78: 562 | M78: 355 | N78: 138 | O78: 249 | P78: 228 | Q78: 225 | R78: 661
A79: 75 | B79: RIVERDALE UT | C79: WEBER COUNTY | D79: WEBER | E79: 68800 | F79: 20640 | G79: 34400 | H79: 41280 | I79: 55040 | J79: 68800 | K79: 82560 | L79: 470 | M79: 341 | N79: 167 | O79: 262 | P79: 227 | Q79: 176 | R79: 383
A80: 76 | B80: RIVERTON UT | C80: SALT LAKE COUNTY | D80: SALT LAKE | E80: 70000 | F80: 21000 | G80: 35000 | H80: 42000 | I80: 56000 | J80: 70000 | K80: 84000 | L80: 1766 | M80: 1303 | N80: 621 | O80: 1325 | P80: 1296 | Q80: 1316 | R80: 3921
A81: 77 | B81: ROOSEVELT UT | C81: DUCHESNE COUNTY | D81: DUCHESNE | E81: 45400 | F81: 13620 | G81: 22700 | H81: 27240 | I81: 36320 | J81: 45400 | K81: 54480 | L81: 388 | M81: 262 | N81: 116 | O81: 238 | P81: 224 | Q81: 235 | R81: 1358
A82: 78 | B82: ROY UT | C82: WEBER COUNTY | D82: WEBER | E82: 68800 | F82: 20640 | G82: 34400 | H82: 41280 | I82: 55040 | J82: 68800 | K82: 82560 | L82: 2544 | M82: 2219 | N82: 1109 | O82: 2096 | P82: 1700 | Q82: 1275 | R82: 2251
A83: 79 | B83: SALEM UT | C83: UTAH COUNTY | D83: UTAH | E83: 65100 | F83: 19530 | G83: 32550 | H83: 39060 | I83: 52080 | J83: 65100 | K83: 78120 | L83: 317 | M83: 180 | N83: 103 | O83: 185 | P83: 201 | Q83: 176 | R83: 582
A84: 80 | B84: SALT LAKE CITY UT | C84: SALT LAKE COUNTY | D84: SALT LAKE | E84: 70000 | F84: 21000 | G84: 35000 | H84: 42000 | I84: 56000 | J84: 70000 | K84: 84000 | L84: 45321 | M84: 29616 | N84: 11062 | O84: 16991 | P84: 11914 | Q84: 8617 | R84: 24944
A85: 81 | B85: SANDY UT | C85: SALT LAKE COUNTY | D85: SALT LAKE | E85: 70000 | F85: 21000 | G85: 35000 | H85: 42000 | I85: 56000 | J85: 70000 | K85: 84000 | L85: 6857 | M85: 4564 | N85: 1983 | O85: 3723 | P85: 3176 | Q85: 2832 | R85: 10792
A86: 82 | B86: SANTA CLARA UT | C86: WASHINGTON COUNTY | D86: WASHINGTON | E86: 54900 | F86: 16470 | G86: 27450 | H86: 32940 | I86: 43920 | J86: 54900 | K86: 65880 | L86: 322 | M86: 190 | N86: 88 | O86: 171 | P86: 139 | Q86: 151 | R86: 644
A87: 83 | B87: SANTAQUIN UT | C87: UTAH COUNTY | D87: UTAH | E87: 65100 | F87: 19530 | G87: 32550 | H87: 39060 | I87: 52080 | J87: 65100 | K87: 78120 | L87: 438 | M87: 324 | N87: 193 | O87: 333 | P87: 319 | Q87: 260 | R87: 458
A88: 84 | B88: SARATOGA SPRINGS UT | C88: UTAH COUNTY | D88: UTAH | E88: 65100 | F88: 19530 | G88: 32550 | H88: 39060 | I88: 52080 | J88: 65100 | K88: 78120 | L88: 503 | M88: 399 | N88: 288 | O88: 576 | P88: 633 | Q88: 587 | R88: 1253
A89: 85 | B89: SMITHFIELD UT | C89: CACHE COUNTY | D89: CACHE | E89: 57000 | F89: 17100 | G89: 28500 | H89: 34200 | I89: 45600 | J89: 57000 | K89: 68400 | L89: 492 | M89: 408 | N89: 179 | O89: 389 | P89: 383 | Q89: 320 | R89: 919
A90: 86 | B90: SOUTH JORDAN UT | C90: SALT LAKE COUNTY | D90: SALT LAKE | E90: 70000 | F90: 21000 | G90: 35000 | H90: 42000 | I90: 56000 | J90: 70000 | K90: 84000 | L90: 2293 | M90: 1567 | N90: 707 | O90: 1475 | P90: 1484 | Q90: 1479 | R90: 5846
A91: 87 | B91: SOUTH OGDEN UT | C91: WEBER COUNTY | D91: WEBER | E91: 68800 | F91: 20640 | G91: 34400 | H91: 41280 | I91: 55040 | J91: 68800 | K91: 82560 | L91: 358 | M91: 348 | N91: 158 | O91: 298 | P91: 224 | Q91: 156 | R91: 448
A92: 88 | B92: SOUTH SALT LAKE UT | C92: SALT LAKE COUNTY | D92: SALT LAKE | E92: 70000 | F92: 21000 | G92: 35000 | H92: 42000 | I92: 56000 | J92: 70000 | K92: 84000 | L92: 247 | M92: 194 | N92: 74 | O92: 96 | P92: 37 | Q92: 26 | R92: 29
A93: 89 | B93: SOUTH WEBER UT | C93: WEBER COUNTY | D93: WEBER | E93: 68800 | F93: 20640 | G93: 34400 | H93: 41280 | I93: 55040 | J93: 68800 | K93: 82560 | L93: 165 | M93: 110 | N93: 70 | O93: 141 | P93: 186 | Q93: 145 | R93: 593
A94: 90 | B94: SPANISH FORK UT | C94: UTAH COUNTY | D94: UTAH | E94: 65100 | F94: 19530 | G94: 32550 | H94: 39060 | I94: 52080 | J94: 65100 | K94: 78120 | L94: 1752 | M94: 1372 | N94: 681 | O94: 1406 | P94: 1365 | Q94: 991 | R94: 2402
A95: 91 | B95: SPRINGDALE UT | C95: WASHINGTON COUNTY | D95: WASHINGTON | E95: 54900 | F95: 16470 | G95: 27450 | H95: 32940 | I95: 43920 | J95: 54900 | K95: 65880 | L95: 80 | M95: 67 | N95: 23 | O95: 40 | P95: 27 | Q95: 17 | R95: 54
A96: 92 | B96: SPRINGVILLE UT | C96: UTAH COUNTY | D96: UTAH | E96: 65100 | F96: 19530 | G96: 32550 | H96: 39060 | I96: 52080 | J96: 65100 | K96: 78120 | L96: 1765 | M96: 1358 | N96: 642 | O96: 1165 | P96: 934 | Q96: 720 | R96: 1879
A97: 93 | B97: ST GEORGE UT | C97: WASHINGTON COUNTY | D97: WASHINGTON | E97: 54900 | F97: 16470 | G97: 27450 | H97: 32940 | I97: 43920 | J97: 54900 | K97: 65880 | L97: 5851 | M97: 4031 | N97: 1713 | O97: 2707 | P97: 2127 | Q97: 1688 | R97: 5371
A98: 94 | B98: STANSBURY PARK UT | C98: TOOELE COUNTY | D98: TOOELE | E98: 65600 | F98: 19680 | G98: 32800 | H98: 39360 | I98: 52480 | J98: 65600 | K98: 78720 | L98: 205 | M98: 176 | N98: 87 | O98: 215 | P98: 268 | Q98: 260 | R98: 773
A99: 95 | B99: SUNSET UT | C99: DAVIS COUNTY | D99: DAVIS | E99: 68800 | F99: 20640 | G99: 34400 | H99: 41280 | I99: 55040 | J99: 68800 | K99: 82560 | L99: 373 | M99: 284 | N99: 138 | O99: 267 | P99: 171 | Q99: 124 | R99: 135
A100: 96 | B100: SYRACUSE UT | C100: DAVIS COUNTY | D100: DAVIS | E100: 68800 | F100: 20640 | G100: 34400 | H100: 41280 | I100: 55040 | J100: 68800 | K100: 82560 | L100: 794 | M100: 578 | N100: 348 | O100: 804 | P100: 895 | Q100: 852 | R100: 2372
A101: 97 | B101: TAYLORSVILLE UT | C101: SALT LAKE COUNTY | D101: SALT LAKE | E101: 70000 | F101: 21000 | G101: 35000 | H101: 42000 | I101: 56000 | J101: 70000 | K101: 84000 | L101: 2705 | M101: 2135 | N101: 956 | O101: 1489 | P101: 1244 | Q101: 890 | R101: 1792
A102: 98 | B102: TOOELE UT | C102: TOOELE COUNTY | D102: TOOELE | E102: 65600 | F102: 19680 | G102: 32800 | H102: 39360 | I102: 52480 | J102: 65600 | K102: 78720 | L102: 2057 | M102: 1657 | N102: 793 | O102: 1542 | P102: 1388 | Q102: 1114 | R102: 2386
A103: 99 | B103: TREMONTON UT | C103: BOX ELDER COUNTY | D103: BOX ELDER | E103: 61200 | F103: 18360 | G103: 30600 | H103: 36720 | I103: 48960 | J103: 61200 | K103: 73440 | L103: 615 | M103: 451 | N103: 262 | O103: 480 | P103: 367 | Q103: 332 | R103: 844
A104: 100 | B104: VERNAL UT | C104: UINTAH COUNTY | D104: UINTAH | E104: 57400 | F104: 17220 | G104: 28700 | H104: 34440 | I104: 45920 | J104: 57400 | K104: 68880 | L104: 1284 | M104: 866 | N104: 451 | O104: 743 | P104: 724 | Q104: 701 | R104: 2680
A105: 101 | B105: WASHINGTON TERRACE UT | C105: WEBER COUNTY | D105: WEBER | E105: 68800 | F105: 20640 | G105: 34400 | H105: 41280 | I105: 55040 | J105: 68800 | K105: 82560 | L105: 214 | M105: 191 | N105: 110 | O105: 141 | P105: 122 | Q105: 72 | R105: 114
A106: 102 | B106: WASHINGTON UT | C106: WASHINGTON COUNTY | D106: WASHINGTON | E106: 54900 | F106: 16470 | G106: 27450 | H106: 32940 | I106: 43920 | J106: 54900 | K106: 65880 | L106: 1135 | M106: 822 | N106: 321 | O106: 659 | P106: 544 | Q106: 455 | R106: 1417
A107: 103 | B107: WEST BOUNTIFUL UT | C107: DAVIS COUNTY | D107: DAVIS | E107: 68800 | F107: 20640 | G107: 34400 | H107: 41280 | I107: 55040 | J107: 68800 | K107: 82560 | L107: 231 | M107: 171 | N107: 89 | O107: 193 | P107: 171 | Q107: 149 | R107: 516
A108: 104 | B108: WEST HAVEN UT | C108: WEBER COUNTY | D108: WEBER | E108: 68800 | F108: 20640 | G108: 34400 | H108: 41280 | I108: 55040 | J108: 68800 | K108: 82560 | L108: 398 | M108: 275 | N108: 162 | O108: 312 | P108: 315 | Q108: 320 | R108: 912
A109: 105 | B109: WEST JORDAN UT | C109: SALT LAKE COUNTY | D109: SALT LAKE | E109: 70000 | F109: 21000 | G109: 35000 | H109: 42000 | I109: 56000 | J109: 70000 | K109: 84000 | L109: 7314 | M109: 5675 | N109: 2518 | O109: 4828 | P109: 4275 | Q109: 3465 | R109: 7659
A110: 106 | B110: WEST POINT UT | C110: DAVIS COUNTY | D110: DAVIS | E110: 68800 | F110: 20640 | G110: 34400 | H110: 41280 | I110: 55040 | J110: 68800 | K110: 82560 | L110: 294 | M110: 236 | N110: 137 | O110: 298 | P110: 370 | Q110: 311 | R110: 850
A111: 107 | B111: WEST VALLEY UT | C111: SALT LAKE COUNTY | D111: SALT LAKE | E111: 70000 | F111: 21000 | G111: 35000 | H111: 42000 | I111: 56000 | J111: 70000 | K111: 84000 | L111: 7500 | M111: 5984 | N111: 2470 | O111: 3865 | P111: 3007 | Q111: 2196 | R111: 3618
A112: 108 | B112: WILLARD UT | C112: BOX ELDER COUNTY | D112: BOX ELDER | E112: 61200 | F112: 18360 | G112: 30600 | H112: 36720 | I112: 48960 | J112: 61200 | K112: 73440 | L112: 178 | M112: 154 | N112: 58 | O112: 105 | P112: 118 | Q112: 101 | R112: 380
A113: 109 | B113: WOODLAND HILLS UT | C113: UTAH COUNTY | D113: UTAH | E113: 65100 | F113: 19530 | G113: 32550 | H113: 39060 | I113: 52080 | J113: 65100 | K113: 78120 | L113: 38 | M113: 26 | N113: 12 | O113: 26 | P113: 26 | Q113: 16 | R113: 159
A114: 110 | B114: WOODS CROSS UT | C114: DAVIS COUNTY | D114: DAVIS | E114: 68800 | F114: 20640 | G114: 34400 | H114: 41280 | I114: 55040 | J114: 68800 | K114: 82560 | L114: 480 | M114: 364 | N114: 178 | O114: 456 | P114: 388 | Q114: 363 | R114: 708
C115: BEAVER COUNTY | D115: BEAVER | E115: 50400 | F115: 15120 | G115: 25200 | H115: 30240 | I115: 40320 | J115: 50400 | K115: 60480 | L115: 157 | M115: 81 | N115: 46 | O115: 62 | P115: 68 | Q115: 44 | R115: 257
C116: BOX ELDER COUNTY | D116: BOX ELDER | E116: 61200 | F116: 18360 | G116: 30600 | H116: 36720 | I116: 48960 | J116: 61200 | K116: 73440 | L116: 2216 | M116: 1673 | N116: 872 | O116: 1505 | P116: 1393 | Q116: 1145 | R116: 3278
C117: CACHE COUNTY | D117: CACHE | E117: 57000 | F117: 17100 | G117: 28500 | H117: 34200 | I117: 45600 | J117: 57000 | K117: 68400 | L117: 6753 | M117: 4551 | N117: 1899 | O117: 3295 | P117: 2588 | Q117: 2119 | R117: 6464
C118: CARBON COUNTY | D118: CARBON | E118: 52600 | F118: 15780 | G118: 26300 | H118: 31560 | I118: 42080 | J118: 52600 | K118: 63120 | L118: 1259 | M118: 733 | N118: 302 | O118: 539 | P118: 536 | Q118: 459 | R118: 1923
C119: DAVIS COUNTY | D119: DAVIS | E119: 68800 | F119: 20640 | G119: 34400 | H119: 41280 | I119: 55040 | J119: 68800 | K119: 82560 | L119: 17133 | M119: 12386 | N119: 5993 | O119: 11696 | P119: 10615 | Q119: 8753 | R119: 26007
C120: DUCHESNE COUNTY | D120: DUCHESNE | E120: 45400 | F120: 13620 | G120: 22700 | H120: 27240 | I120: 36320 | J120: 45400 | K120: 54480 | L120: 388 | M120: 262 | N120: 116 | O120: 238 | P120: 224 | Q120: 235 | R120: 1358
C121: GRAND COUNTY | D121: GRAND | E121: 50300 | F121: 15090 | G121: 25150 | H121: 30180 | I121: 40240 | J121: 50300 | K121: 60360 | L121: 869 | M121: 623 | N121: 237 | O121: 373 | P121: 294 | Q121: 251 | R121: 860
C122: IRON COUNTY | D122: IRON | E122: 47400 | F122: 14220 | G122: 23700 | H122: 28440 | I122: 37920 | J122: 47400 | K122: 56880 | L122: 2856 | M122: 1792 | N122: 757 | O122: 1287 | P122: 1106 | Q122: 890 | R122: 3403
C123: JUAB COUNTY | D123: JUAB | E123: 65100 | F123: 19530 | G123: 32550 | H123: 39060 | I123: 52080 | J123: 65100 | K123: 78120 | L123: 362 | M123: 250 | N123: 121 | O123: 217 | P123: 199 | Q123: 165 | R123: 329
C124: KANE COUNTY | D124: KANE | E124: 51400 | F124: 15420 | G124: 25700 | H124: 30840 | I124: 41120 | J124: 51400 | K124: 61680 | L124: 390 | M124: 250 | N124: 109 | O124: 205 | P124: 179 | Q124: 149 | R124: 444
C125: MILLARD COUNTY | D125: MILLARD | E125: 53800 | F125: 16140 | G125: 26900 | H125: 32280 | I125: 43040 | J125: 53800 | K125: 64560 | L125: 358 | M125: 232 | N125: 104 | O125: 149 | P125: 130 | Q125: 111 | R125: 504
C126: MORGAN COUNTY | D126: MORGAN | E126: 68800 | F126: 20640 | G126: 34400 | H126: 41280 | I126: 55040 | J126: 68800 | K126: 82560 | L126: 369 | M126: 258 | N126: 138 | O126: 259 | P126: 287 | Q126: 277 | R126: 984
C127: SALT LAKE COUNTY | D127: SALT LAKE | E127: 70000 | F127: 21000 | G127: 35000 | H127: 42000 | I127: 56000 | J127: 70000 | K127: 84000 | L127: 89104 | M127: 62463 | N127: 24997 | O127: 41894 | P127: 32743 | Q127: 25636 | R127: 71837
C128: SAN JUAN COUNTY | D128: SAN JUAN | E128: 40700 | F128: 12210 | G128: 20350 | H128: 24420 | I128: 32560 | J128: 40700 | K128: 48840 | L128: 77 | M128: 54 | N128: 37 | O128: 40 | P128: 42 | Q128: 35 | R128: 236
C129: SANPETE COUNTY | D129: SANPETE | E129: 48200 | F129: 14460 | G129: 24100 | H129: 28920 | I129: 38560 | J129: 48200 | K129: 57840 | L129: 238 | M129: 201 | N129: 80 | O129: 137 | P129: 121 | Q129: 80 | R129: 333
C130: SEVIER COUNTY | D130: SEVIER | E130: 51800 | F130: 15540 | G130: 25900 | H130: 31080 | I130: 41440 | J130: 51800 | K130: 62160 | L130: 562 | M130: 355 | N130: 138 | O130: 249 | P130: 228 | Q130: 225 | R130: 661
C131: SUMMIT COUNTY | D131: SUMMIT | E131: 93300 | F131: 27990 | G131: 46650 | H131: 55980 | I131: 74640 | J131: 93300 | K131: 111960 | L131: 4662 | M131: 1894 | N131: 667 | O131: 1092 | P131: 848 | Q131: 709 | R131: 2838
C132: TOOELE COUNTY | D132: TOOELE | E132: 65600 | F132: 19680 | G132: 32800 | H132: 39360 | I132: 52480 | J132: 65600 | K132: 78720 | L132: 2737 | M132: 2180 | N132: 1063 | O132: 2135 | P132: 2043 | Q132: 1722 | R132: 4047
C133: UINTAH COUNTY | D133: UINTAH | E133: 57400 | F133: 17220 | G133: 28700 | H133: 34440 | I133: 45920 | J133: 57400 | K133: 68880 | L133: 1284 | M133: 866 | N133: 451 | O133: 743 | P133: 724 | Q133: 701 | R133: 2680
C134: UTAH COUNTY | D134: UTAH | E134: 65100 | F134: 19530 | G134: 32550 | H134: 39060 | I134: 52080 | J134: 65100 | K134: 78120 | L134: 34244 | M134: 20877 | N134: 9218 | O134: 16036 | P134: 13569 | Q134: 10996 | R134: 31876
C135: WASATCH COUNTY | D135: WASATCH | E135: 66900 | F135: 20070 | G135: 33450 | H135: 40140 | I135: 53520 | J135: 66900 | K135: 80280 | L135: 1400 | M135: 951 | N135: 401 | O135: 728 | P135: 629 | Q135: 542 | R135: 1515
C136: WASHINGTON COUNTY | D136: WASHINGTON | E136: 54900 | F136: 16470 | G136: 27450 | H136: 32940 | I136: 43920 | J136: 54900 | K136: 65880 | L136: 9211 | M136: 6416 | N136: 2710 | O136: 4581 | P136: 3686 | Q136: 2977 | R136: 9320
C137: WEBER COUNTY | D137: WEBER | E137: 68800 | F137: 20640 | G137: 34400 | H137: 41280 | I137: 55040 | J137: 68800 | K137: 82560 | L137: 18583 | M137: 13367 | N137: 5941 | O137: 10186 | P137: 8133 | Q137: 6175 | R137: 15475

Sheet Assessor Data Request
A1: ("fill in the blank" sample data request form for County Assessor's office staff,
A2: which details the specific characteristics of the data needed for the analysis)
A4: Request for Housing Data for Affordability Research | H4: List of County Assessors | M4: Association of Governments Contact List
A5: ="Number of Dwelling Units for " & 'User Input'!E4 -> Number of Dwelling Units for Test City | H5: December, 2010 | M5: February, 2008
A7: Data Year | H7: County | I7: Assessor Name | J7: Phone Number
H9: Beaver | I9: Trent Brown | J9: 435438-6400 | M9: Brian Carver
A10: Market Value | C10: Number of Dwelling Units | H10: Box Elder | I10: Rodney Bennett | J10: 435-734-3389 | M10: Bear River Association of Governments
H11: Cache | I11: Kathleen Howell | J11: 435-716-7100 | M11: 170 North Main
H12: Carbon | I12: Nancy Ferderber | J12: 435-636-3249 | M12: Logan, Utah 84321
A13: Single Family | H13: Daggett | I13: Lesa Asay | J13: 435-784-3222 | M13: 435-752-7242
A14: ='User Input'!AA11:AA17 -> 68000 | H14: Davis | I14: Dennis Warrington | J14: 801-444-2300
A15: 123000 | H15: Duchesne | I15: Gregory Garff | J15: 435738-1110 | M15: LaNiece Dustman
A16: 151000 | H16: Emery | I16: Kris Bell | J16: 435381-5529 | M16: Wasatch Front Regional Council
A17: 205000 | H17: Garfield | I17: Joe Thompson | J17: 435-676-1108 | M17: 295 N. Jimmy Doolittle Rd.
A18: 260000 | H18: Grand | I18: Dorothy Gough | J18: 435-259-1329 | M18: Salt Lake City, Utah 84118
A19: 315000 | H19: Iron | I19: Dennis W. Ayers | J19: 435-477-1080 | M19: 801-363-4250
A20: Greater than $315,000 | H20: Juab | I20: Shirl Nichols | J20: 435-623-3425
H21: Kane | I21: Linda Little | J21: 435-644-2647 | M21: Steve Browne
A22: Multi Family, Mobile Home & Other | H22: Millard | I22: Pat Manis | J22: 435-743-5719 | M22: Mountainland Association of Governments
A23: ='User Input'!AA20:AA26 -> 25000 | H23: Morgan | I23: Gwen D. Rich | J23: 801-845-4000 | M23: 586 East 800 North
A24: 80000 | H24: Piute | I24: Dale Bagley | J24: 435-577-2433 | M24: Orem, Utah 84097
A25: 107000 | H25: Rich | I25: Kim Wilson | J25: 435-793-2410 | M25: 801-229-3800
A26: 162000 | H26: Salt Lake | I26: Lee Garder | J26: 801-468-3050
A27: 217000 | H27: San Juan | I27: Howard Randall | J27: 435-587-3221 | M27: Emery Poleonema
A28: 272000 | H28: Sannpete | I28: Kenneth Bench | J28: 435-835-2111 | M28: Six-County Association of Governments
A29: Greater than $272,000 | H29: Sevier | I29: Gail DeMille | J29: 435-893-0400 | M29: 250 North Main
H30: Summit | I30: Barbara Kressor | J30: 435-336-3248 | M30: Richfield, Utah 84701
H31: Tooele | I31: Wendy Shubert | J31: 435-843-3100 | M31: 435-896-9222
H32: Uintah | I32: Lori Perkins | J32: 435-781-5347
H33: Utah | I33: Kris Poulson | J33: 801-851-8244 | M33: Yankton Johnson
H34: Wasatch | I34: Glen Burgener | J34: 435-657-3181 | M34: Uintah Basin Association of Governments\
H35: Washington | I35: Arthur L. Partridge | J35: 435-634-5703 | M35: 330 East 100 So.
H36: Wayne | I36: Carolyn Moosman | J36: 435-836-1305 | M36: Roosevelt, Utah 84066
H37: Weber | I37: Cheryl V. Madsen | J37: 801-399-8572 | M37: 435-722-4890
M39: Debbie Hatt
M40: Southeastern Utah Association of Local Governments
M41: 375 So. Carbon Ave.
M42: Price, Utah 84501
M43: 435-637-5444
M45: Gary Zabriskie
M46: Five-County Association of Governments
M47: 1070 West 1600 So., Bldg. B
M48: St. George, Utah 84097
M49: 435-673-3548
G57: =MEDIAN(G61:G96) -> 18.5 | H57: =COUNT(G61:G96) -> 36 | I57: =G57*0.8 -> 14.8
G58: =G57*0.8 -> 14.8
G59: =G57*0.3 -> 5.55
F61: 1 | G61: 1 | H61: =COUNT(G$61:G61)/H$57 -> 0.02777777778
F62: 2 | G62: 2 | H62: =COUNT(G$61:G62)/H$57 -> 0.05555555556
F63: 3 | G63: 3 | H63: =COUNT(G$61:G63)/H$57 -> 0.08333333333 | K63: 18250
F64: 4 | G64: 4 | H64: =COUNT(G$61:G64)/H$57 -> 0.1111111111 | K64: =(K$63*L64) -> 9125 | L64: 0.5
F65: 5 | G65: 5 | H65: =COUNT(G$61:G65)/H$57 -> 0.1388888889 | K65: =(K$63*L65) -> 7300 | L65: 0.4
F66: 6 | G66: 6 | H66: =COUNT(G$61:G66)/H$57 -> 0.1666666667 | K66: =(K$63*L66) -> 2737.5 | L66: 0.15
F67: 7 | G67: 7 | H67: =COUNT(G$61:G67)/H$57 -> 0.1944444444
F68: 8 | G68: 8 | H68: =COUNT(G$61:G68)/H$57 -> 0.2222222222
F69: 9 | G69: 9 | H69: =COUNT(G$61:G69)/H$57 -> 0.25
F70: 10 | G70: 10 | H70: =COUNT(G$61:G70)/H$57 -> 0.2777777778
F71: 11 | G71: 11 | H71: =COUNT(G$61:G71)/H$57 -> 0.3055555556
F72: 12 | G72: 12 | H72: =COUNT(G$61:G72)/H$57 -> 0.3333333333
F73: 13 | G73: 13 | H73: =COUNT(G$61:G73)/H$57 -> 0.3611111111
F74: 14 | G74: 14 | H74: =COUNT(G$61:G74)/H$57 -> 0.3888888889
F75: 15 | G75: 15 | H75: =COUNT(G$61:G75)/H$57 -> 0.4166666667
F76: 16 | G76: 16 | H76: =COUNT(G$61:G76)/H$57 -> 0.4444444444
F77: 17 | G77: 17 | H77: =COUNT(G$61:G77)/H$57 -> 0.4722222222
F78: 18 | G78: 18 | H78: =COUNT(G$61:G78)/H$57 -> 0.5
F79: 19 | G79: 19 | H79: =COUNT(G$61:G79)/H$57 -> 0.5277777778
F80: 20 | G80: 20 | H80: =COUNT(G$61:G80)/H$57 -> 0.5555555556
F81: 21 | G81: 21 | H81: =COUNT(G$61:G81)/H$57 -> 0.5833333333
F82: 22 | G82: 22 | H82: =COUNT(G$61:G82)/H$57 -> 0.6111111111
F83: 23 | G83: 23 | H83: =COUNT(G$61:G83)/H$57 -> 0.6388888889
F84: 24 | G84: 24 | H84: =COUNT(G$61:G84)/H$57 -> 0.6666666667
F85: 25 | G85: 25 | H85: =COUNT(G$61:G85)/H$57 -> 0.6944444444
F86: 26 | G86: 26 | H86: =COUNT(G$61:G86)/H$57 -> 0.7222222222
F87: 27 | G87: 27 | H87: =COUNT(G$61:G87)/H$57 -> 0.75
F88: 28 | G88: 28 | H88: =COUNT(G$61:G88)/H$57 -> 0.7777777778
F89: 29 | G89: 29 | H89: =COUNT(G$61:G89)/H$57 -> 0.8055555556
F90: 30 | G90: 30 | H90: =COUNT(G$61:G90)/H$57 -> 0.8333333333
F91: 31 | G91: 31 | H91: =COUNT(G$61:G91)/H$57 -> 0.8611111111
F92: 32 | G92: 32 | H92: =COUNT(G$61:G92)/H$57 -> 0.8888888889
F93: 33 | G93: 33 | H93: =COUNT(G$61:G93)/H$57 -> 0.9166666667
F94: 34 | G94: 34 | H94: =COUNT(G$61:G94)/H$57 -> 0.9444444444
F95: 35 | G95: 35 | H95: =COUNT(G$61:G95)/H$57 -> 0.9722222222
F96: 36 | G96: 36 | H96: =COUNT(G$61:G96)/H$57 -> 1

Sheet Reg (hidden)
H1: Max Rent INCL Utilities | I1: Owner Units
B2: Income Group | C2: Income | D2: Income Rounded | E2: Shelter Cost % of Gross | F2: Gross Shelter Allowance | G2: Utilities | R2: Single Fam | U2: Multi Fam
I3: RE Tax Rate | J3: Mortg Ins | K3: Condo Fees | L3: Down Pmt | M3: Mortg Rate | N3: mortg Term | O3: RE Tax | P3: House Ins | Q3: Mortg Ins | R3: Loan | S3: Market Val | T3: MV Rounded | U3: =R3 -> Loan | V3: =S3 -> Market Val | W3: =T3 -> MV Rounded
A4: =(TEXT(B4,"0%")&" of Median") -> 30% of Median | B4: =TRANSPOSE('#Households by Income Group'!F4:K4) -> 0.3 | C4: ='User Input'!G14*B4:B9 -> 18870 | D4: =ROUND(C4,-3) -> 19000 | E4: ='User Input'!$G$27 -> 0.3 | F4: =C4*E4/12 -> 471.75 | H4: =F4-G4 -> 471.75 | I4: ='User Input'!$G$21 -> 0.0075 | J4: ='User Input'!$G$22 -> 0.0066 | K4: ='User Input'!$G$23 -> 200 | L4: ='User Input'!$G$24 -> 0.1 | M4: ='User Input'!$G$25 -> 0.046 | N4: ='User Input'!$G$26 -> 30 | O4: =S4*I4/12 -> 42.70183461 | P4: ='User Input'!$G$20 -> 80 | Q4: =R4*J4/12 -> 33.81985301 | R4: =IF(ISERROR(-PV(M4/12,N4*12,F4-O4-P4-Q4)),22,-PV(M4/12,N4*12,F4-O4-P4-Q4)) -> 61490.64184 | S4: =R4/(1-L4) -> 68322.93538 | T4: =ROUND(S4,-3) -> 68000 | U4: =-PV(M4/12,N4*12,F4-O4-P4-Q4-K4) -> 22477.24144 | V4: =U4/(1-L4) -> 24974.71271 | W4: =ROUND(V4,-3) -> 25000
A5: 50% of Median | B5: 0.5 | C5: 31450 | D5: 31000 | E5: ='User Input'!$G$27 -> 0.3 | F5: 786.25 | H5: 786.25 | I5: ='User Input'!$G$21 -> 0.0075 | J5: ='User Input'!$G$22 -> 0.0066 | K5: ='User Input'!$G$23 -> 200 | L5: ='User Input'!$G$24 -> 0.1 | M5: ='User Input'!$G$25 -> 0.046 | N5: ='User Input'!$G$26 -> 30 | O5: 76.98320535 | P5: ='User Input'!$G$20 -> 80 | Q5: 60.97069863 | R5: 110855.8157 | S5: 123173.1286 | T5: 123000 | U5: 71842.4153 | V5: 79824.90589 | W5: 80000
A6: 60% of Median | B6: 0.6 | C6: 37740 | D6: 38000 | E6: ='User Input'!$G$27 -> 0.3 | F6: 943.5 | H6: 943.5 | I6: ='User Input'!$G$21 -> 0.0075 | J6: ='User Input'!$G$22 -> 0.0066 | K6: ='User Input'!$G$23 -> 200 | L6: ='User Input'!$G$24 -> 0.1 | M6: ='User Input'!$G$25 -> 0.046 | N6: ='User Input'!$G$26 -> 30 | O6: 94.12389071 | P6: ='User Input'!$G$20 -> 80 | Q6: 74.54612145 | R6: 135538.4026 | S6: 150598.2251 | T6: 151000 | U6: 96525.00223 | V6: 107250.0025 | W6: 107000
A7: 80% of Median | B7: 0.8 | C7: 50320 | D7: 50000 | E7: ='User Input'!$G$27 -> 0.3 | F7: 1258 | H7: 1258 | I7: ='User Input'!$G$21 -> 0.0075 | J7: ='User Input'!$G$22 -> 0.0066 | K7: ='User Input'!$G$23 -> 200 | L7: ='User Input'!$G$24 -> 0.1 | M7: ='User Input'!$G$25 -> 0.046 | N7: ='User Input'!$G$26 -> 30 | O7: 128.4052614 | P7: ='User Input'!$G$20 -> 80 | Q7: 101.6969671 | R7: 184903.5765 | S7: 205448.4183 | T7: 205000 | U7: 145890.1761 | V7: 162100.1957 | W7: 162000
A8: MEDIAN | B8: 1 | C8: 62900 | D8: 63000 | E8: ='User Input'!$G$27 -> 0.3 | F8: 1572.5 | H8: 1572.5 | I8: ='User Input'!$G$21 -> 0.0075 | J8: ='User Input'!$G$22 -> 0.0066 | K8: ='User Input'!$G$23 -> 200 | L8: ='User Input'!$G$24 -> 0.1 | M8: ='User Input'!$G$25 -> 0.046 | N8: ='User Input'!$G$26 -> 30 | O8: 162.6866322 | P8: ='User Input'!$G$20 -> 80 | Q8: 128.8478127 | R8: 234268.7503 | S8: 260298.6115 | T8: 260000 | U8: 195255.3499 | V8: 216950.3888 | W8: 217000
A9: 120% of Median | B9: 1.2 | C9: 75480 | D9: 75000 | E9: ='User Input'!$G$27 -> 0.3 | F9: 1887 | H9: 1887 | I9: ='User Input'!$G$21 -> 0.0075 | J9: ='User Input'!$G$22 -> 0.0066 | K9: ='User Input'!$G$23 -> 200 | L9: ='User Input'!$G$24 -> 0.1 | M9: ='User Input'!$G$25 -> 0.046 | N9: ='User Input'!$G$26 -> 30 | O9: 196.9680029 | P9: ='User Input'!$G$20 -> 80 | Q9: 155.9986583 | R9: 283633.9242 | S9: 315148.8047 | T9: 315000 | U9: 244620.5238 | V9: 271800.582 | W9: 272000
A10: More than 120% | H10: 0
A12: Local Government and Emergency Response Workers
A13: Police Officer | C13: ='User Input'!X10 -> 47084 | E13: ='User Input'!$G$27 -> 0.3 | F13: =C13*E13/12 -> 1177.1 | H13: =F13-G13 -> 1177.1 | I13: ='User Input'!$G$21 -> 0.0075 | J13: ='User Input'!$G$22 -> 0.0066 | K13: ='User Input'!$G$23 -> 200 | L13: ='User Input'!$G$24 -> 0.1 | M13: ='User Input'!$G$25 -> 0.046 | N13: ='User Input'!$G$26 -> 30 | O13: =S13*I13/12 -> 119.5869375 | P13: ='User Input'!$G$20 -> 80 | Q13: =R13*J13/12 -> 94.71285447 | R13: =IF(ISERROR(-PV(M13/12,N13*12,F13-O13-P13-Q13)),22,-PV(M13/12,N13*12,F13-O13-P13-Q13)) -> 172205.19 | S13: =R13/(1-L13) -> 191339.0999 | T13: =ROUND(S13,-3) -> 191000 | U13: =-PV(M13/12,N13*12,F13-O13-P13-Q13-K13) -> 133191.7896 | V13: =U13/(1-L13) -> 147990.8773 | W13: =ROUND(V13,-3) -> 148000
A14: Fire Fighter or EMT | C14: ='User Input'!X11 -> 51008 | E14: ='User Input'!$G$27 -> 0.3 | F14: =C14*E14/12 -> 1275.2 | H14: =F14-G14 -> 1275.2 | I14: ='User Input'!$G$21 -> 0.0075 | J14: ='User Input'!$G$22 -> 0.0066 | K14: ='User Input'!$G$23 -> 200 | L14: ='User Input'!$G$24 -> 0.1 | M14: ='User Input'!$G$25 -> 0.046 | N14: ='User Input'!$G$26 -> 30 | O14: 130.2801091 | P14: ='User Input'!$G$20 -> 80 | Q14: 103.1818464 | R14: 187603.3571 | S14: 208448.1745 | T14: 208000 | U14: 148589.9567 | V14: 165099.9518 | W14: 165000
A15: Public Works (wastewater worker) | C15: ='User Input'!X12 -> 42449 | E15: ='User Input'!$G$27 -> 0.3 | F15: =C15*E15/12 -> 1061.225 | H15: =F15-G15 -> 1061.225 | I15: ='User Input'!$G$21 -> 0.0075 | J15: ='User Input'!$G$22 -> 0.0066 | K15: ='User Input'!$G$23 -> 200 | L15: ='User Input'!$G$24 -> 0.1 | M15: ='User Input'!$G$25 -> 0.046 | N15: ='User Input'!$G$26 -> 30 | O15: 106.9562417 | P15: ='User Input'!$G$20 -> 80 | Q15: 84.70934339 | R15: 154016.988 | S15: 171129.9866 | T15: 171000 | U15: 115003.5876 | V15: 127781.764 | W15: 128000
A16: Local Government Staff - Administrator | C16: ='User Input'!X13 -> 98000 | E16: ='User Input'!$G$27 -> 0.3 | F16: 2450 | H16: 2450 | I16: ='User Input'!$G$21 -> 0.0075 | J16: ='User Input'!$G$22 -> 0.0066 | K16: ='User Input'!$G$23 -> 200 | L16: ='User Input'!$G$24 -> 0.1 | M16: ='User Input'!$G$25 -> 0.046 | N16: ='User Input'!$G$26 -> 30 | O16: 258.3365617 | P16: ='User Input'!$G$20 -> 80 | Q16: 204.6025568 | R16: 372004.6488 | S16: 413338.4987 | T16: 413000 | U16: 332991.2484 | V16: 369990.276 | W16: 370000
A17: Local Government Staff - Executive | C17: ='User Input'!X14 -> 79000 | E17: ='User Input'!$G$27 -> 0.3 | F17: 1975 | H17: 1975 | I17: ='User Input'!$G$21 -> 0.0075 | J17: ='User Input'!$G$22 -> 0.0066 | K17: ='User Input'!$G$23 -> 200 | L17: ='User Input'!$G$24 -> 0.1 | M17: ='User Input'!$G$25 -> 0.046 | N17: ='User Input'!$G$26 -> 30 | O17: 206.5602466 | P17: ='User Input'!$G$20 -> 80 | Q17: 163.5957153 | R17: 297446.755 | S17: 330496.3945 | T17: 330000 | U17: 258433.3546 | V17: 287148.1718 | W17: 287000
A18: Local Government Staff - Clerical | C18: ='User Input'!X15 -> 36904 | E18: ='User Input'!$G$27 -> 0.3 | F18: 922.6 | H18: 922.6 | I18: ='User Input'!$G$21 -> 0.0075 | J18: ='User Input'!$G$22 -> 0.0066 | K18: ='User Input'!$G$23 -> 200 | L18: ='User Input'!$G$24 -> 0.1 | M18: ='User Input'!$G$25 -> 0.046 | N18: ='User Input'!$G$26 -> 30 | O18: 91.84573285 | P18: ='User Input'!$G$20 -> 80 | Q18: 72.74182042 | R18: 132257.8553 | S18: 146953.1726 | T18: 147000 | U18: 93244.4549 | V18: 103604.9499 | W18: 104000
A20: Basic Local Employment
A21: Teacher (public school, entry level) | C21: ='User Input'!X18 -> 26950 | E21: ='User Input'!$G$27 -> 0.3 | F21: 673.75 | H21: 673.75 | I21: ='User Input'!$G$21 -> 0.0075 | J21: ='User Input'!$G$22 -> 0.0066 | K21: ='User Input'!$G$23 -> 200 | L21: ='User Input'!$G$24 -> 0.1 | M21: ='User Input'!$G$25 -> 0.046 | N21: ='User Input'!$G$26 -> 30 | O21: =S21*I21/12 -> 64.72039388 | P21: ='User Input'!$G$20 -> 80 | Q21: =R21*J21/12 -> 51.25855195 | R21: =IF(ISERROR(-PV(M21/12,N21*12,F21-O21-P21-Q21)),22,-PV(M21/12,N21*12,F21-O21-P21-Q21)) -> 93197.36718 | S21: =R21/(1-L21) -> 103552.6302 | T21: =ROUND(S21,-3) -> 104000 | U21: =-PV(M21/12,N21*12,F21-O21-P21-Q21-K21) -> 54183.96678 | V21: =U21/(1-L21) -> 60204.40753 | W21: =ROUND(V21,-3) -> 60000
A22: Social Worker | C22: ='User Input'!X19 -> 32860 | E22: ='User Input'!$G$27 -> 0.3 | F22: 821.5 | H22: 821.5 | I22: ='User Input'!$G$21 -> 0.0075 | J22: ='User Input'!$G$22 -> 0.0066 | K22: ='User Input'!$G$23 -> 200 | L22: ='User Input'!$G$24 -> 0.1 | M22: ='User Input'!$G$25 -> 0.046 | N22: ='User Input'!$G$26 -> 30 | O22: 80.82555294 | P22: ='User Input'!$G$20 -> 80 | Q22: 64.01383793 | R22: 116388.7962 | S22: 129320.8847 | T22: 129000 | U22: 77375.39584 | V22: 85972.66204 | W22: 86000
A23: Nurse (LPN) | C23: ='User Input'!X20 -> 28740 | E23: ='User Input'!$G$27 -> 0.3 | F23: 718.5 | H23: 718.5 | I23: ='User Input'!$G$21 -> 0.0075 | J23: ='User Input'!$G$22 -> 0.0066 | K23: ='User Input'!$G$23 -> 200 | L23: ='User Input'!$G$24 -> 0.1 | M23: ='User Input'!$G$25 -> 0.046 | N23: ='User Input'!$G$26 -> 30 | O23: 69.59826777 | P23: ='User Input'!$G$20 -> 80 | Q23: 55.12182808 | R23: 100221.5056 | S23: 111357.2284 | T23: 111000 | U23: 61208.10519 | V23: 68009.00577 | W23: 68000
A24: Retail (general merchandise) | C24: ='User Input'!X21 -> 15550 | E24: ='User Input'!$G$27 -> 0.3 | F24: 388.75 | H24: 388.75 | I24: ='User Input'!$G$21 -> 0.0075 | J24: ='User Input'!$G$22 -> 0.0066 | K24: ='User Input'!$G$23 -> 200 | L24: ='User Input'!$G$24 -> 0.1 | M24: ='User Input'!$G$25 -> 0.046 | N24: ='User Input'!$G$26 -> 30 | O24: 33.65460482 | P24: ='User Input'!$G$20 -> 80 | Q24: 26.65444701 | R24: 48462.63093 | S24: 53847.3677 | T24: 54000 | U24: 9449.230534 | V24: 10499.14504 | W24: 10000
A25: Housekeeping | C25: ='User Input'!X22 -> 16720 | E25: ='User Input'!$G$27 -> 0.3 | F25: 418 | H25: 418 | I25: ='User Input'!$G$21 -> 0.0075 | J25: ='User Input'!$G$22 -> 0.0066 | K25: ='User Input'!$G$23 -> 200 | L25: ='User Input'!$G$24 -> 0.1 | M25: ='User Input'!$G$25 -> 0.046 | N25: ='User Input'!$G$26 -> 30 | O25: 36.8429358 | P25: ='User Input'!$G$20 -> 80 | Q25: 29.17960515 | R25: 53053.82755 | S25: 58948.69728 | T25: 59000 | U25: 14040.42715 | V25: 15600.47461 | W25: 16000
A26: Food Service (restaurant) | C26: ='User Input'!X23 -> 20020 | E26: ='User Input'!$G$27 -> 0.3 | F26: 500.5 | H26: 500.5 | I26: ='User Input'!$G$21 -> 0.0075 | J26: ='User Input'!$G$22 -> 0.0066 | K26: ='User Input'!$G$23 -> 200 | L26: ='User Input'!$G$24 -> 0.1 | M26: ='User Input'!$G$25 -> 0.046 | N26: ='User Input'!$G$26 -> 30 | O26: 45.83566421 | P26: ='User Input'!$G$20 -> 80 | Q26: 36.30184605 | R26: 66003.35646 | S26: 73337.06274 | T26: 73000 | U26: 26989.95606 | V26: 29988.84007 | W26: 30000
A27: Mid-Level Manager (private sector) | C27: ='User Input'!X24 -> 46120 | E27: ='User Input'!$G$27 -> 0.3 | F27: 1153 | H27: 1153 | I27: ='User Input'!$G$21 -> 0.0075 | J27: ='User Input'!$G$22 -> 0.0066 | K27: ='User Input'!$G$23 -> 200 | L27: ='User Input'!$G$24 -> 0.1 | M27: ='User Input'!$G$25 -> 0.046 | N27: ='User Input'!$G$26 -> 30 | O27: 116.9599707 | P27: ='User Input'!$G$20 -> 80 | Q27: 92.63229683 | R27: 168422.3579 | S27: 187135.9532 | T27: 187000 | U27: 129408.9575 | V27: 143787.7305 | W27: 144000
A28: Agricultural Worker (farming) | C28: ='User Input'!X25 -> 32350 | E28: ='User Input'!$G$27 -> 0.3 | F28: 808.75 | H28: 808.75 | I28: ='User Input'!$G$21 -> 0.0075 | J28: ='User Input'!$G$22 -> 0.0066 | K28: ='User Input'!$G$23 -> 200 | L28: ='User Input'!$G$24 -> 0.1 | M28: ='User Input'!$G$25 -> 0.046 | N28: ='User Input'!$G$26 -> 30 | O28: 79.43576764 | P28: ='User Input'!$G$20 -> 80 | Q28: 62.91312797 | R28: 114387.5054 | S28: 127097.2282 | T28: 127000 | U28: 75374.105 | V28: 83749.00556 | W28: 84000
A29: Construction Worker | C29: ='User Input'!X26 -> 20920 | E29: ='User Input'!$G$27 -> 0.3 | F29: =C29*E29/12 -> 523 | H29: =F29-G29 -> 523 | I29: ='User Input'!$G$21 -> 0.0075 | J29: ='User Input'!$G$22 -> 0.0066 | K29: ='User Input'!$G$23 -> 200 | L29: ='User Input'!$G$24 -> 0.1 | M29: ='User Input'!$G$25 -> 0.046 | N29: ='User Input'!$G$26 -> 30 | O29: 48.2882265 | P29: ='User Input'!$G$20 -> 80 | Q29: 38.24427539 | R29: 69535.04617 | S29: 77261.16241 | T29: 77000 | U29: 30521.64577 | V29: 33912.93974 | W29: 34000
A31: 1 | C31: =Summary!L43 -> 77105.25421 | E31: ='User Input'!$G$27 -> 0.3 | F31: =C31*E31/12 -> 1927.631355 | H31: =F31-G31 -> 1927.631355 | I31: ='User Input'!$G$21 -> 0.0075 | J31: ='User Input'!$G$22 -> 0.0066 | K31: ='User Input'!$G$23 -> 200 | L31: ='User Input'!$G$24 -> 0.1 | M31: ='User Input'!$G$25 -> 0.046 | N31: ='User Input'!$G$26 -> 30 | O31: =S31*I31/12 -> 201.3969331 | P31: ='User Input'!$G$20 -> 80 | Q31: =R31*J31/12 -> 159.506371 | R31: 290011.5837 | S31: =R31/(1-L31) -> 322235.093 | T31: =ROUND(S31,-3) -> 322000 | U31: =-PV(M31/12,N31*12,F31-O31-P31-Q31-K31) -> 250998.1833 | V31: =U31/(1-L31) -> 278886.8703 | W31: =ROUND(V31,-3) -> 279000
A32: 2 | C32: =Summary!L44 -> 52529.744 | E32: ='User Input'!$G$27 -> 0.3 | F32: 1313.2436 | H32: 1313.2436 | I32: ='User Input'!$G$21 -> 0.0075 | J32: ='User Input'!$G$22 -> 0.0066 | K32: ='User Input'!$G$23 -> 200 | L32: ='User Input'!$G$24 -> 0.1 | M32: ='User Input'!$G$25 -> 0.046 | N32: ='User Input'!$G$26 -> 30 | O32: 134.4269668 | P32: ='User Input'!$G$20 -> 80 | Q32: 106.4661577 | R32: 193574.8322 | S32: 215083.1469 | T32: 215000 | U32: 154561.4318 | V32: 171734.9242 | W32: 172000
A33: 3 | C33: =Summary!L45 -> 75648.11135 | E33: ='User Input'!$G$27 -> 0.3 | F33: 1891.202784 | H33: 1891.202784 | I33: ='User Input'!$G$21 -> 0.0075 | J33: ='User Input'!$G$22 -> 0.0066 | K33: ='User Input'!$G$23 -> 200 | L33: ='User Input'!$G$24 -> 0.1 | M33: ='User Input'!$G$25 -> 0.046 | N33: ='User Input'!$G$26 -> 30 | O33: 197.426118 | P33: ='User Input'!$G$20 -> 80 | Q33: 156.3614854 | R33: 284293.6099 | S33: 315881.7888 | T33: 316000 | U33: 245280.2095 | V33: 272533.5661 | W33: 273000
A34: 4 | C34: =Summary!L46 -> 90403.21339 | E34: ='User Input'!$G$27 -> 0.3 | F34: 2260.080335 | H34: 2260.080335 | I34: ='User Input'!$G$21 -> 0.0075 | J34: ='User Input'!$G$22 -> 0.0066 | K34: ='User Input'!$G$23 -> 200 | L34: ='User Input'!$G$24 -> 0.1 | M34: ='User Input'!$G$25 -> 0.046 | N34: ='User Input'!$G$26 -> 30 | O34: 237.6347923 | P34: ='User Input'!$G$20 -> 80 | Q34: 188.2067555 | R34: 342194.101 | S34: 380215.6677 | T34: 380000 | U34: 303180.7006 | V34: 336867.4451 | W34: 337000
A35: 5 | C35: =Summary!L47 -> 69464.43788 | E35: ='User Input'!$G$27 -> 0.3 | F35: 1736.610947 | H35: 1736.610947 | I35: ='User Input'!$G$21 -> 0.0075 | J35: ='User Input'!$G$22 -> 0.0066 | K35: ='User Input'!$G$23 -> 200 | L35: ='User Input'!$G$24 -> 0.1 | M35: ='User Input'!$G$25 -> 0.046 | N35: ='User Input'!$G$26 -> 30 | O35: 180.5751798 | P35: ='User Input'!$G$20 -> 80 | Q35: 143.0155424 | R35: 260028.2589 | S35: 288920.2876 | T35: 289000 | U35: 221014.8585 | V35: 245572.065 | W35: 246000
A36: 6 | C36: =Summary!L48 -> 83937.90727 | E36: ='User Input'!$G$27 -> 0.3 | F36: 2098.447682 | H36: 2098.447682 | I36: ='User Input'!$G$21 -> 0.0075 | J36: ='User Input'!$G$22 -> 0.0066 | K36: ='User Input'!$G$23 -> 200 | L36: ='User Input'!$G$24 -> 0.1 | M36: ='User Input'!$G$25 -> 0.046 | N36: ='User Input'!$G$26 -> 30 | O36: 220.0163856 | P36: ='User Input'!$G$20 -> 80 | Q36: 174.2529774 | R36: 316823.5953 | S36: 352026.217 | T36: 352000 | U36: 277810.1949 | V36: 308677.9944 | W36: 309000
A37: 7 | C37: =Summary!L49 -> 59619.53992 | E37: ='User Input'!$G$27 -> 0.3 | F37: 1490.488498 | H37: 1490.488498 | I37: ='User Input'!$G$21 -> 0.0075 | J37: ='User Input'!$G$22 -> 0.0066 | K37: ='User Input'!$G$23 -> 200 | L37: ='User Input'!$G$24 -> 0.1 | M37: ='User Input'!$G$25 -> 0.046 | N37: ='User Input'!$G$26 -> 30 | O37: 153.7471514 | P37: ='User Input'!$G$20 -> 80 | Q37: 121.7677439 | R37: 221395.898 | S37: 245995.4423 | T37: 246000 | U37: 182382.4976 | V37: 202647.2196 | W37: 203000
A38: 8 | C38: =Summary!L50 -> 76639.94808 | E38: ='User Input'!$G$27 -> 0.3 | F38: 1915.998702 | H38: 1915.998702 | I38: ='User Input'!$G$21 -> 0.0075 | J38: ='User Input'!$G$22 -> 0.0066 | K38: ='User Input'!$G$23 -> 200 | L38: ='User Input'!$G$24 -> 0.1 | M38: ='User Input'!$G$25 -> 0.046 | N38: ='User Input'!$G$26 -> 30 | O38: 200.1289417 | P38: ='User Input'!$G$20 -> 80 | Q38: 158.5021219 | R38: 288185.6761 | S38: 320206.3068 | T38: 320000 | U38: 249172.2757 | V38: 276858.0841 | W38: 277000
A39: 9 | C39: =Summary!L51 -> 75831.78482 | E39: ='User Input'!$G$27 -> 0.3 | F39: 1895.79462 | H39: 1895.79462 | I39: ='User Input'!$G$21 -> 0.0075 | J39: ='User Input'!$G$22 -> 0.0066 | K39: ='User Input'!$G$23 -> 200 | L39: ='User Input'!$G$24 -> 0.1 | M39: ='User Input'!$G$25 -> 0.046 | N39: ='User Input'!$G$26 -> 30 | O39: 197.9266409 | P39: ='User Input'!$G$20 -> 80 | Q39: 156.7578996 | R39: 285014.3629 | S39: 316682.6254 | T39: 317000 | U39: 246000.9625 | V39: 273334.4028 | W39: 273000
A40: 10 | C40: =Summary!L52 -> 62337.90727 | E40: ='User Input'!$G$27 -> 0.3 | F40: 1558.447682 | H40: 1558.447682 | I40: ='User Input'!$G$21 -> 0.0075 | J40: ='User Input'!$G$22 -> 0.0066 | K40: ='User Input'!$G$23 -> 200 | L40: ='User Input'!$G$24 -> 0.1 | M40: ='User Input'!$G$25 -> 0.046 | N40: ='User Input'!$G$26 -> 30 | O40: 161.1548906 | P40: ='User Input'!$G$20 -> 80 | Q40: 127.6346733 | R40: 232063.0424 | S40: 257847.8249 | T40: 258000 | U40: 193049.642 | V40: 214499.6023 | W40: 214000
A41: 11 | C41: =Summary!L53 -> 79799.13176 | E41: ='User Input'!$G$27 -> 0.3 | F41: 1994.978294 | H41: 1994.978294 | I41: ='User Input'!$G$21 -> 0.0075 | J41: ='User Input'!$G$22 -> 0.0066 | K41: ='User Input'!$G$23 -> 200 | L41: ='User Input'!$G$24 -> 0.1 | M41: ='User Input'!$G$25 -> 0.046 | N41: ='User Input'!$G$26 -> 30 | O41: 208.7379359 | P41: ='User Input'!$G$20 -> 80 | Q41: 165.3204452 | R41: 300582.6277 | S41: 333980.6975 | T41: 334000 | U41: 261569.2273 | V41: 290632.4748 | W41: 291000
A42: 12 | C42: =Summary!L54 -> 59386.88686 | E42: ='User Input'!$G$27 -> 0.3 | F42: 1484.672172 | H42: 1484.672172 | I42: ='User Input'!$G$21 -> 0.0075 | J42: ='User Input'!$G$22 -> 0.0066 | K42: ='User Input'!$G$23 -> 200 | L42: ='User Input'!$G$24 -> 0.1 | M42: ='User Input'!$G$25 -> 0.046 | N42: ='User Input'!$G$26 -> 30 | O42: 153.1131557 | P42: ='User Input'!$G$20 -> 80 | Q42: 121.2656193 | R42: 220482.9442 | S42: 244981.0491 | T42: 245000 | U42: 181469.5438 | V42: 201632.8265 | W42: 202000
A43: 13 | C43: =Summary!L55 -> 74362.39706 | E43: ='User Input'!$G$27 -> 0.3 | F43: 1859.059927 | H43: 1859.059927 | I43: ='User Input'!$G$21 -> 0.0075 | J43: ='User Input'!$G$22 -> 0.0066 | K43: ='User Input'!$G$23 -> 200 | L43: ='User Input'!$G$24 -> 0.1 | M43: ='User Input'!$G$25 -> 0.046 | N43: ='User Input'!$G$26 -> 30 | O43: 193.9224576 | P43: ='User Input'!$G$20 -> 80 | Q43: 153.5865864 | R43: 279248.3389 | S43: 310275.9321 | T43: 310000 | U43: 240234.9385 | V43: 266927.7094 | W43: 267000
A44: 14 | C44: =Summary!L56 -> 82248.11135 | E44: ='User Input'!$G$27 -> 0.3 | F44: 2056.202784 | H44: 2056.202784 | I44: ='User Input'!$G$21 -> 0.0075 | J44: ='User Input'!$G$22 -> 0.0066 | K44: ='User Input'!$G$23 -> 200 | L44: ='User Input'!$G$24 -> 0.1 | M44: ='User Input'!$G$25 -> 0.046 | N44: ='User Input'!$G$26 -> 30 | O44: 215.4115748 | P44: ='User Input'!$G$20 -> 80 | Q44: 170.6059672 | R44: 310192.6677 | S44: 344658.5197 | T44: 345000 | U44: 271179.2673 | V44: 301310.297 | W44: 301000
A45: 15 | C45: =Summary!L57 -> 85150.15217 | E45: ='User Input'!$G$27 -> 0.3 | F45: 2128.753804 | H45: 2128.753804 | I45: ='User Input'!$G$21 -> 0.0075 | J45: ='User Input'!$G$22 -> 0.0066 | K45: ='User Input'!$G$23 -> 200 | L45: ='User Input'!$G$24 -> 0.1 | M45: ='User Input'!$G$25 -> 0.046 | N45: ='User Input'!$G$26 -> 30 | O45: 223.3198369 | P45: ='User Input'!$G$20 -> 80 | Q45: 176.8693108 | R45: 321580.5651 | S45: 357311.739 | T45: 357000 | U45: 282567.1647 | V45: 313963.5164 | W45: 314000
A46: 16 | C46: =Summary!L58 -> 55284.84604 | E46: ='User Input'!$G$27 -> 0.3 | F46: 1382.121151 | H46: 1382.121151 | I46: ='User Input'!$G$21 -> 0.0075 | J46: ='User Input'!$G$22 -> 0.0066 | K46: ='User Input'!$G$23 -> 200 | L46: ='User Input'!$G$24 -> 0.1 | M46: ='User Input'!$G$25 -> 0.046 | N46: ='User Input'!$G$26 -> 30 | O46: 141.9348106 | P46: ='User Input'!$G$20 -> 80 | Q46: 112.41237 | R46: 204386.1272 | S46: 227095.6969 | T46: 227000 | U46: 165372.7268 | V46: 183747.4742 | W46: 184000
A47: 17 | C47: =Summary!L59 -> 79848.11135 | E47: ='User Input'!$G$27 -> 0.3 | F47: =C47*E47/12 -> 1996.202784 | H47: =F47-G47 -> 1996.202784 | I47: ='User Input'!$G$21 -> 0.0075 | J47: ='User Input'!$G$22 -> 0.0066 | K47: ='User Input'!$G$23 -> 200 | L47: ='User Input'!$G$24 -> 0.1 | M47: ='User Input'!$G$25 -> 0.046 | N47: ='User Input'!$G$26 -> 30 | O47: =S47*I47/12 -> 208.8714087 | P47: ='User Input'!$G$20 -> 80 | Q47: =R47*J47/12 -> 165.4261557 | R47: 300774.8285 | S47: =R47/(1-L47) -> 334194.2539 | T47: 334000 | U47: =-PV(M47/12,N47*12,F47-O47-P47-Q47-K47) -> 261761.4281 | V47: =U47/(1-L47) -> 290846.0312 | W47: 291000
A48: 18 | C48: =Summary!L60 -> 70811.37666 | E48: ='User Input'!$G$27 -> 0.3 | F48: 1770.284416 | H48: 1770.284416 | I48: ='User Input'!$G$21 -> 0.0075 | J48: ='User Input'!$G$22 -> 0.0066 | K48: ='User Input'!$G$23 -> 200 | L48: ='User Input'!$G$24 -> 0.1 | M48: ='User Input'!$G$25 -> 0.046 | N48: ='User Input'!$G$26 -> 30 | O48: 184.2456812 | P48: ='User Input'!$G$20 -> 80 | Q48: 145.9225795 | R48: 265313.7809 | S48: 294793.0899 | T48: 295000 | U48: 226300.3805 | V48: 251444.8672 | W48: 251000
A49: 19 | C49: =Summary!L61 -> 78378.7236 | E49: ='User Input'!$G$27 -> 0.3 | F49: 1959.46809 | H49: 1959.46809 | I49: ='User Input'!$G$21 -> 0.0075 | J49: ='User Input'!$G$22 -> 0.0066 | K49: ='User Input'!$G$23 -> 200 | L49: ='User Input'!$G$24 -> 0.1 | M49: ='User Input'!$G$25 -> 0.046 | N49: ='User Input'!$G$26 -> 30 | O49: 204.8672254 | P49: ='User Input'!$G$20 -> 80 | Q49: 162.2548425 | R49: 295008.8045 | S49: 327787.5606 | T49: 328000 | U49: 255995.4041 | V49: 284439.3379 | W49: 284000
A50: 20 | C50: =Summary!L62 -> 86778.7236 | E50: ='User Input'!$G$27 -> 0.3 | F50: 2169.46809 | H50: 2169.46809 | I50: ='User Input'!$G$21 -> 0.0075 | J50: ='User Input'!$G$22 -> 0.0066 | K50: ='User Input'!$G$23 -> 200 | L50: ='User Input'!$G$24 -> 0.1 | M50: ='User Input'!$G$25 -> 0.046 | N50: ='User Input'!$G$26 -> 30 | O50: 227.7578068 | P50: ='User Input'!$G$20 -> 80 | Q50: 180.384183 | R50: 327971.2417 | S50: 364412.4908 | T50: 364000 | U50: 288957.8413 | V50: 321064.2682 | W50: 321000
A51: 21 | C51: =Summary!L63 -> 68203.21339 | E51: ='User Input'!$G$27 -> 0.3 | F51: 1705.080335 | H51: 1705.080335 | I51: ='User Input'!$G$21 -> 0.0075 | J51: ='User Input'!$G$22 -> 0.0066 | K51: ='User Input'!$G$23 -> 200 | L51: ='User Input'!$G$24 -> 0.1 | M51: ='User Input'!$G$25 -> 0.046 | N51: ='User Input'!$G$26 -> 30 | O51: 177.1382557 | P51: ='User Input'!$G$20 -> 80 | Q51: 140.2934985 | R51: 255079.0883 | S51: 283421.2092 | T51: 283000 | U51: 216065.6879 | V51: 240072.9865 | W51: 240000
A52: 22 | C52: =Summary!L64 -> 86386.88686 | E52: ='User Input'!$G$27 -> 0.3 | F52: 2159.672172 | H52: 2159.672172 | I52: ='User Input'!$G$21 -> 0.0075 | J52: ='User Input'!$G$22 -> 0.0066 | K52: ='User Input'!$G$23 -> 200 | L52: ='User Input'!$G$24 -> 0.1 | M52: ='User Input'!$G$25 -> 0.046 | N52: ='User Input'!$G$26 -> 30 | O52: 226.6900245 | P52: ='User Input'!$G$20 -> 80 | Q52: 179.5384994 | R52: 326433.6353 | S52: 362704.0393 | T52: 363000 | U52: 287420.2349 | V52: 319355.8166 | W52: 319000
A53: 23 | C53: =Summary!L65 -> 70921.58074 | E53: ='User Input'!$G$27 -> 0.3 | F53: 1773.039518 | H53: 1773.039518 | I53: ='User Input'!$G$21 -> 0.0075 | J53: ='User Input'!$G$22 -> 0.0066 | K53: ='User Input'!$G$23 -> 200 | L53: ='User Input'!$G$24 -> 0.1 | M53: ='User Input'!$G$25 -> 0.046 | N53: ='User Input'!$G$26 -> 30 | O53: 184.5459949 | P53: ='User Input'!$G$20 -> 80 | Q53: 146.160428 | R53: 265746.2327 | S53: 295273.5919 | T53: 295000 | U53: 226732.8323 | V53: 251925.3692 | W53: 252000
A54: 24 | C54: =Summary!L66 -> 94211.37666 | E54: ='User Input'!$G$27 -> 0.3 | F54: 2355.284416 | H54: 2355.284416 | I54: ='User Input'!$G$21 -> 0.0075 | J54: ='User Input'!$G$22 -> 0.0066 | K54: ='User Input'!$G$23 -> 200 | L54: ='User Input'!$G$24 -> 0.1 | M54: ='User Input'!$G$25 -> 0.046 | N54: ='User Input'!$G$26 -> 30 | O54: 248.0123008 | P54: ='User Input'!$G$20 -> 80 | Q54: 196.4257422 | R54: 357137.7132 | S54: 396819.6813 | T54: 397000 | U54: 318124.3128 | V54: 353471.4586 | W54: 353000
A55: 25 | C55: =Summary!L67 -> 55627.70319 | E55: ='User Input'!$G$27 -> 0.3 | F55: 1390.69258 | H55: 1390.69258 | I55: ='User Input'!$G$21 -> 0.0075 | J55: ='User Input'!$G$22 -> 0.0066 | K55: ='User Input'!$G$23 -> 200 | L55: ='User Input'!$G$24 -> 0.1 | M55: ='User Input'!$G$25 -> 0.046 | N55: ='User Input'!$G$26 -> 30 | O55: 142.86912 | P55: ='User Input'!$G$20 -> 80 | Q55: 113.152343 | R55: 205731.5328 | S55: 228590.592 | T55: 229000 | U55: 166718.1324 | V55: 185242.3694 | W55: 185000
A56: 26 | C56: =Summary!L68 -> 57390.96849 | E56: ='User Input'!$G$27 -> 0.3 | F56: 1434.774212 | H56: 1434.774212 | I56: ='User Input'!$G$21 -> 0.0075 | J56: ='User Input'!$G$22 -> 0.0066 | K56: ='User Input'!$G$23 -> 200 | L56: ='User Input'!$G$24 -> 0.1 | M56: ='User Input'!$G$25 -> 0.046 | N56: ='User Input'!$G$26 -> 30 | O56: 147.67414 | P56: ='User Input'!$G$20 -> 80 | Q56: 116.9579189 | R56: 212650.7616 | S56: 236278.624 | T56: 236000 | U56: 173637.3612 | V56: 192930.4014 | W56: 193000
A57: 27 | C57: =Summary!L69 -> 74301.17257 | E57: ='User Input'!$G$27 -> 0.3 | F57: 1857.529314 | H57: 1857.529314 | I57: ='User Input'!$G$21 -> 0.0075 | J57: ='User Input'!$G$22 -> 0.0066 | K57: ='User Input'!$G$23 -> 200 | L57: ='User Input'!$G$24 -> 0.1 | M57: ='User Input'!$G$25 -> 0.046 | N57: ='User Input'!$G$26 -> 30 | O57: 193.7556166 | P57: ='User Input'!$G$20 -> 80 | Q57: 153.4544483 | R57: 279008.0879 | S57: 310008.9865 | T57: 310000 | U57: 239994.6875 | V57: 266660.7639 | W57: 267000
A58: 28 | C58: =Summary!L70 -> 76015.45829 | E58: ='User Input'!$G$27 -> 0.3 | F58: 1900.386457 | H58: 1900.386457 | I58: ='User Input'!$G$21 -> 0.0075 | J58: ='User Input'!$G$22 -> 0.0066 | K58: ='User Input'!$G$23 -> 200 | L58: ='User Input'!$G$24 -> 0.1 | M58: ='User Input'!$G$25 -> 0.046 | N58: ='User Input'!$G$26 -> 30 | O58: 198.4271638 | P58: ='User Input'!$G$20 -> 80 | Q58: 157.1543137 | R58: 285735.1159 | S58: 317483.4621 | T58: 317000 | U58: 246721.7155 | V58: 274135.2394 | W58: 274000
A59: 29 | C59: =Summary!L71 -> 55235.86645 | E59: ='User Input'!$G$27 -> 0.3 | F59: 1380.896661 | H59: 1380.896661 | I59: ='User Input'!$G$21 -> 0.0075 | J59: ='User Input'!$G$22 -> 0.0066 | K59: ='User Input'!$G$23 -> 200 | L59: ='User Input'!$G$24 -> 0.1 | M59: ='User Input'!$G$25 -> 0.046 | N59: ='User Input'!$G$26 -> 30 | O59: 141.8013378 | P59: ='User Input'!$G$20 -> 80 | Q59: 112.3066595 | R59: 204193.9264 | S59: 226882.1405 | T59: 227000 | U59: 165180.526 | V59: 183533.9178 | W59: 184000
A60: 30 | C60: =Summary!L72 -> 78084.84604 | E60: ='User Input'!$G$27 -> 0.3 | F60: 1952.121151 | H60: 1952.121151 | I60: ='User Input'!$G$21 -> 0.0075 | J60: ='User Input'!$G$22 -> 0.0066 | K60: ='User Input'!$G$23 -> 200 | L60: ='User Input'!$G$24 -> 0.1 | M60: ='User Input'!$G$25 -> 0.046 | N60: ='User Input'!$G$26 -> 30 | O60: 204.0663887 | P60: ='User Input'!$G$20 -> 80 | Q60: 161.6205798 | R60: 293855.5997 | S60: 326506.2219 | T60: 327000 | U60: 254842.1993 | V60: 283157.9992 | W60: 283000
A61: 31 | C61: =Summary!L73 -> 58137.90727 | E61: ='User Input'!$G$27 -> 0.3 | F61: 1453.447682 | H61: 1453.447682 | I61: ='User Input'!$G$21 -> 0.0075 | J61: ='User Input'!$G$22 -> 0.0066 | K61: ='User Input'!$G$23 -> 200 | L61: ='User Input'!$G$24 -> 0.1 | M61: ='User Input'!$G$25 -> 0.046 | N61: ='User Input'!$G$26 -> 30 | O61: 149.7095999 | P61: ='User Input'!$G$20 -> 80 | Q61: 118.5700031 | R61: 215581.8238 | S61: 239535.3598 | T61: 240000 | U61: 176568.4234 | V61: 196187.1371 | W61: 196000
A62: 32 | C62: =Summary!L74 -> 57207.29502 | E62: ='User Input'!$G$27 -> 0.3 | F62: 1430.182376 | H62: 1430.182376 | I62: ='User Input'!$G$21 -> 0.0075 | J62: ='User Input'!$G$22 -> 0.0066 | K62: ='User Input'!$G$23 -> 200 | L62: ='User Input'!$G$24 -> 0.1 | M62: ='User Input'!$G$25 -> 0.046 | N62: ='User Input'!$G$26 -> 30 | O62: 147.1736171 | P62: ='User Input'!$G$20 -> 80 | Q62: 116.5615047 | R62: 211930.0086 | S62: 235477.7874 | T62: 235000 | U62: 172916.6082 | V62: 192129.5647 | W62: 192000
A63: 33 | C63: =Summary!L75 -> 87672.60115 | E63: ='User Input'!$G$27 -> 0.3 | F63: 2191.815029 | H63: 2191.815029 | I63: ='User Input'!$G$21 -> 0.0075 | J63: ='User Input'!$G$22 -> 0.0066 | K63: ='User Input'!$G$23 -> 200 | L63: ='User Input'!$G$24 -> 0.1 | M63: ='User Input'!$G$25 -> 0.046 | N63: ='User Input'!$G$26 -> 30 | O63: 230.193685 | P63: ='User Input'!$G$20 -> 80 | Q63: 182.3133985 | R63: 331478.9063 | S63: 368309.8959 | T63: 368000 | U63: 292465.5059 | V63: 324961.6733 | W63: 325000
A64: 34 | C64: =Summary!L76 -> 88137.90727 | E64: ='User Input'!$G$27 -> 0.3 | F64: 2203.447682 | H64: 2203.447682 | I64: ='User Input'!$G$21 -> 0.0075 | J64: ='User Input'!$G$22 -> 0.0066 | K64: ='User Input'!$G$23 -> 200 | L64: ='User Input'!$G$24 -> 0.1 | M64: ='User Input'!$G$25 -> 0.046 | N64: ='User Input'!$G$26 -> 30 | O64: 231.4616764 | P64: ='User Input'!$G$20 -> 80 | Q64: 183.3176477 | R64: 333304.814 | S64: 370338.6822 | T64: 370000 | U64: 294291.4135 | V64: 326990.4595 | W64: 327000
A65: 35 | C65: =Summary!L77 -> 81403.21339 | E65: ='User Input'!$G$27 -> 0.3 | F65: 2035.080335 | H65: 2035.080335 | I65: ='User Input'!$G$21 -> 0.0075 | J65: ='User Input'!$G$22 -> 0.0066 | K65: ='User Input'!$G$23 -> 200 | L65: ='User Input'!$G$24 -> 0.1 | M65: ='User Input'!$G$25 -> 0.046 | N65: ='User Input'!$G$26 -> 30 | O65: 213.1091694 | P65: ='User Input'!$G$20 -> 80 | Q65: 168.7824622 | R65: 306877.2039 | S65: 340974.671 | T65: 341000 | U65: 267863.8035 | V65: 297626.4484 | W65: 298000
A66: 36 | C66: =Summary!L78 -> 59803.21339 | E66: ='User Input'!$G$27 -> 0.3 | F66: 1495.080335 | H66: 1495.080335 | I66: ='User Input'!$G$21 -> 0.0075 | J66: ='User Input'!$G$22 -> 0.0066 | K66: ='User Input'!$G$23 -> 200 | L66: ='User Input'!$G$24 -> 0.1 | M66: ='User Input'!$G$25 -> 0.046 | N66: ='User Input'!$G$26 -> 30 | O66: 154.2476743 | P66: ='User Input'!$G$20 -> 80 | Q66: 122.1641581 | R66: 222116.651 | S66: 246796.2789 | T66: 247000 | U66: 183103.2506 | V66: 203448.0563 | W66: 203000
A67: 37 | C67: =Summary!L79 -> 72231.78482 | E67: ='User Input'!$G$27 -> 0.3 | F67: 1805.79462 | H67: 1805.79462 | I67: ='User Input'!$G$21 -> 0.0075 | J67: ='User Input'!$G$22 -> 0.0066 | K67: ='User Input'!$G$23 -> 200 | L67: ='User Input'!$G$24 -> 0.1 | M67: ='User Input'!$G$25 -> 0.046 | N67: ='User Input'!$G$26 -> 30 | O67: 188.1163917 | P67: ='User Input'!$G$20 -> 80 | Q67: 148.9881822 | R67: 270887.6041 | S67: 300986.2268 | T67: 301000 | U67: 231874.2037 | V67: 257638.0041 | W67: 258000
A68: 38 | C68: =Summary!L80 -> 70186.88686 | E68: ='User Input'!$G$27 -> 0.3 | F68: 1754.672172 | H68: 1754.672172 | I68: ='User Input'!$G$21 -> 0.0075 | J68: ='User Input'!$G$22 -> 0.0066 | K68: ='User Input'!$G$23 -> 200 | L68: ='User Input'!$G$24 -> 0.1 | M68: ='User Input'!$G$25 -> 0.046 | N68: ='User Input'!$G$26 -> 30 | O68: 182.5439032 | P68: ='User Input'!$G$20 -> 80 | Q68: 144.5747714 | R68: 262863.2207 | S68: 292070.2452 | T68: 292000 | U68: 223849.8203 | V68: 248722.0225 | W68: 249000
A69: 39 | C69: =Summary!L81 -> 88701.17257 | E69: ='User Input'!$G$27 -> 0.3 | F69: 2217.529314 | H69: 2217.529314 | I69: ='User Input'!$G$21 -> 0.0075 | J69: ='User Input'!$G$22 -> 0.0066 | K69: ='User Input'!$G$23 -> 200 | L69: ='User Input'!$G$24 -> 0.1 | M69: ='User Input'!$G$25 -> 0.046 | N69: ='User Input'!$G$26 -> 30 | O69: 232.9966133 | P69: ='User Input'!$G$20 -> 80 | Q69: 184.5333177 | R69: 335515.1232 | S69: 372794.5813 | T69: 373000 | U69: 296501.7228 | V69: 329446.3586 | W69: 329000
A70: 40 | C70: =Summary!L82 -> 77325.66237 | E70: ='User Input'!$G$27 -> 0.3 | F70: 1933.141559 | H70: 1933.141559 | I70: ='User Input'!$G$21 -> 0.0075 | J70: ='User Input'!$G$22 -> 0.0066 | K70: ='User Input'!$G$23 -> 200 | L70: ='User Input'!$G$24 -> 0.1 | M70: ='User Input'!$G$25 -> 0.046 | N70: ='User Input'!$G$26 -> 30 | O70: 201.9975606 | P70: ='User Input'!$G$20 -> 80 | Q70: 159.982068 | R70: 290876.4873 | S70: 323196.097 | T70: 323000 | U70: 251863.0869 | V70: 279847.8743 | W70: 280000
A71: 41 | C71: =Summary!L83 -> 74007.29502 | E71: ='User Input'!$G$27 -> 0.3 | F71: 1850.182376 | H71: 1850.182376 | I71: ='User Input'!$G$21 -> 0.0075 | J71: ='User Input'!$G$22 -> 0.0066 | K71: ='User Input'!$G$23 -> 200 | L71: ='User Input'!$G$24 -> 0.1 | M71: ='User Input'!$G$25 -> 0.046 | N71: ='User Input'!$G$26 -> 30 | O71: 192.9547799 | P71: ='User Input'!$G$20 -> 80 | Q71: 152.8201857 | R71: 277854.8831 | S71: 308727.6479 | T71: 309000 | U71: 238841.4827 | V71: 265379.4252 | W71: 265000
A72: 42 | C72: =Summary!L84 -> 111562.3971 | E72: ='User Input'!$G$27 -> 0.3 | F72: 2789.059927 | H72: 2789.059927 | I72: ='User Input'!$G$21 -> 0.0075 | J72: ='User Input'!$G$22 -> 0.0066 | K72: ='User Input'!$G$23 -> 200 | L72: ='User Input'!$G$24 -> 0.1 | M72: ='User Input'!$G$25 -> 0.046 | N72: ='User Input'!$G$26 -> 30 | O72: 295.2950324 | P72: ='User Input'!$G$20 -> 80 | Q72: 233.8736657 | R72: 425224.8466 | S72: 472472.0518 | T72: 472000 | U72: 386211.4462 | V72: 429123.8292 | W72: 429000
A73: 43 | C73: =Summary!L85 -> 75954.2338 | E73: ='User Input'!$G$27 -> 0.3 | F73: 1898.855845 | H73: 1898.855845 | I73: ='User Input'!$G$21 -> 0.0075 | J73: ='User Input'!$G$22 -> 0.0066 | K73: ='User Input'!$G$23 -> 200 | L73: ='User Input'!$G$24 -> 0.1 | M73: ='User Input'!$G$25 -> 0.046 | N73: ='User Input'!$G$26 -> 30 | O73: 198.2603228 | P73: ='User Input'!$G$20 -> 80 | Q73: 157.0221757 | R73: 285494.8649 | S73: 317216.5166 | T73: 317000 | U73: 246481.4645 | V73: 273868.2939 | W73: 274000
A74: 44 | C74: =Summary!L86 -> 75525.66237 | E74: ='User Input'!$G$27 -> 0.3 | F74: 1888.141559 | H74: 1888.141559 | I74: ='User Input'!$G$21 -> 0.0075 | J74: ='User Input'!$G$22 -> 0.0066 | K74: ='User Input'!$G$23 -> 200 | L74: ='User Input'!$G$24 -> 0.1 | M74: ='User Input'!$G$25 -> 0.046 | N74: ='User Input'!$G$26 -> 30 | O74: 197.092436 | P74: ='User Input'!$G$20 -> 80 | Q74: 156.0972093 | R74: 283813.1079 | S74: 315347.8977 | T74: 315000 | U74: 244799.7075 | V74: 271999.675 | W74: 272000
A75: 45 | C75: =Summary!L87 -> 109921.5807 | E75: ='User Input'!$G$27 -> 0.3 | F75: 2748.039518 | H75: 2748.039518 | I75: ='User Input'!$G$21 -> 0.0075 | J75: ='User Input'!$G$22 -> 0.0066 | K75: ='User Input'!$G$23 -> 200 | L75: ='User Input'!$G$24 -> 0.1 | M75: ='User Input'!$G$25 -> 0.046 | N75: ='User Input'!$G$26 -> 30 | O75: 290.8236943 | P75: ='User Input'!$G$20 -> 80 | Q75: 230.3323659 | R75: 418786.1198 | S75: 465317.9109 | T75: 465000 | U75: 379772.7194 | V75: 421969.6883 | W75: 422000
A76: 46 | C76: =Summary!L88 -> 56350.15217 | E76: ='User Input'!$G$27 -> 0.3 | F76: 1408.753804 | H76: 1408.753804 | I76: ='User Input'!$G$21 -> 0.0075 | J76: ='User Input'!$G$22 -> 0.0066 | K76: ='User Input'!$G$23 -> 200 | L76: ='User Input'!$G$24 -> 0.1 | M76: ='User Input'!$G$25 -> 0.046 | N76: ='User Input'!$G$26 -> 30 | O76: 144.8378435 | P76: ='User Input'!$G$20 -> 80 | Q76: 114.711572 | R76: 208566.4946 | S76: 231740.5496 | T76: 232000 | U76: 169553.0942 | V76: 188392.3269 | W76: 188000
A77: 47 | C77: =Summary!L89 -> 67823.62155 | E77: ='User Input'!$G$27 -> 0.3 | F77: 1695.590539 | H77: 1695.590539 | I77: ='User Input'!$G$21 -> 0.0075 | J77: ='User Input'!$G$22 -> 0.0066 | K77: ='User Input'!$G$23 -> 200 | L77: ='User Input'!$G$24 -> 0.1 | M77: ='User Input'!$G$25 -> 0.046 | N77: ='User Input'!$G$26 -> 30 | O77: 176.1038417 | P77: ='User Input'!$G$20 -> 80 | Q77: 139.4742426 | R77: 253589.5321 | S77: 281766.1467 | T77: 282000 | U77: 214576.1317 | V77: 238417.9241 | W77: 238000
A78: 48 | C78: =Summary!L90 -> 67174.64196 | E78: ='User Input'!$G$27 -> 0.3 | F78: 1679.366049 | H78: 1679.366049 | I78: ='User Input'!$G$21 -> 0.0075 | J78: ='User Input'!$G$22 -> 0.0066 | K78: ='User Input'!$G$23 -> 200 | L78: ='User Input'!$G$24 -> 0.1 | M78: ='User Input'!$G$25 -> 0.046 | N78: ='User Input'!$G$26 -> 30 | O78: 174.3353274 | P78: ='User Input'!$G$20 -> 80 | Q78: 138.0735793 | R78: 251042.8715 | S78: 278936.5238 | T78: 279000 | U78: 212029.4711 | V78: 235588.3012 | W78: 236000
A79: 49 | C79: =Summary!L91 -> 92313.41747 | E79: ='User Input'!$G$27 -> 0.3 | F79: 2307.835437 | H79: 2307.835437 | I79: ='User Input'!$G$21 -> 0.0075 | J79: ='User Input'!$G$22 -> 0.0066 | K79: ='User Input'!$G$23 -> 200 | L79: ='User Input'!$G$24 -> 0.1 | M79: ='User Input'!$G$25 -> 0.046 | N79: ='User Input'!$G$26 -> 30 | O79: 242.8402307 | P79: ='User Input'!$G$20 -> 80 | Q79: 192.3294627 | R79: 349689.9322 | S79: 388544.3691 | T79: 389000 | U79: 310676.5318 | V79: 345196.1464 | W79: 345000
A80: 50 | C80: =Summary!L92 -> 75341.9889 | E80: ='User Input'!$G$27 -> 0.3 | F80: 1883.549723 | H80: 1883.549723 | I80: ='User Input'!$G$21 -> 0.0075 | J80: ='User Input'!$G$22 -> 0.0066 | K80: ='User Input'!$G$23 -> 200 | L80: ='User Input'!$G$24 -> 0.1 | M80: ='User Input'!$G$25 -> 0.046 | N80: ='User Input'!$G$26 -> 30 | O80: 196.5919131 | P80: ='User Input'!$G$20 -> 80 | Q80: 155.7007952 | R80: 283092.3549 | S80: 314547.061 | T80: 315000 | U80: 244078.9545 | V80: 271198.8383 | W80: 271000
A81: 51 | C81: =Summary!L93 -> 78280.76441 | E81: ='User Input'!$G$27 -> 0.3 | F81: 1957.01911 | H81: 1957.01911 | I81: ='User Input'!$G$21 -> 0.0075 | J81: ='User Input'!$G$22 -> 0.0066 | K81: ='User Input'!$G$23 -> 200 | L81: ='User Input'!$G$24 -> 0.1 | M81: ='User Input'!$G$25 -> 0.046 | N81: ='User Input'!$G$26 -> 30 | O81: 204.6002798 | P81: ='User Input'!$G$20 -> 80 | Q81: 162.0434216 | R81: 294624.4029 | S81: 327360.4477 | T81: 327000 | U81: 255611.0025 | V81: 284012.225 | W81: 284000
A82: 52 | C82: =Summary!L94 -> 62888.92768 | E82: ='User Input'!$G$27 -> 0.3 | F82: 1572.223192 | H82: 1572.223192 | I82: ='User Input'!$G$21 -> 0.0075 | J82: ='User Input'!$G$22 -> 0.0066 | K82: ='User Input'!$G$23 -> 200 | L82: ='User Input'!$G$24 -> 0.1 | M82: ='User Input'!$G$25 -> 0.046 | N82: ='User Input'!$G$26 -> 30 | O82: 162.6564593 | P82: ='User Input'!$G$20 -> 80 | Q82: 128.8239158 | R82: 234225.3014 | S82: 260250.3349 | T82: 260000 | U82: 195211.901 | V82: 216902.1123 | W82: 217000
A83: 53 | C83: =Summary!L95 -> 102146.0705 | E83: ='User Input'!$G$27 -> 0.3 | F83: 2553.651763 | H83: 2553.651763 | I83: ='User Input'!$G$21 -> 0.0075 | J83: ='User Input'!$G$22 -> 0.0066 | K83: ='User Input'!$G$23 -> 200 | L83: ='User Input'!$G$24 -> 0.1 | M83: ='User Input'!$G$25 -> 0.046 | N83: ='User Input'!$G$26 -> 30 | O83: 269.6348908 | P83: ='User Input'!$G$20 -> 80 | Q83: 213.5508335 | R83: 388274.2428 | S83: 431415.8253 | T83: 431000 | U83: 349260.8424 | V83: 388067.6027 | W83: 388000
A84: 54 | C84: =Summary!L96 -> 63537.90727 | E84: ='User Input'!$G$27 -> 0.3 | F84: 1588.447682 | H84: 1588.447682 | I84: ='User Input'!$G$21 -> 0.0075 | J84: ='User Input'!$G$22 -> 0.0066 | K84: ='User Input'!$G$23 -> 200 | L84: ='User Input'!$G$24 -> 0.1 | M84: ='User Input'!$G$25 -> 0.046 | N84: ='User Input'!$G$26 -> 30 | O84: 164.4249736 | P84: ='User Input'!$G$20 -> 80 | Q84: 130.2245791 | R84: 236771.962 | S84: 263079.9578 | T84: 263000 | U84: 197758.5616 | V84: 219731.7352 | W84: 220000
A85: 55 | C85: =Summary!L97 -> 90831.78482 | E85: ='User Input'!$G$27 -> 0.3 | F85: 2270.79462 | H85: 2270.79462 | I85: ='User Input'!$G$21 -> 0.0075 | J85: ='User Input'!$G$22 -> 0.0066 | K85: ='User Input'!$G$23 -> 200 | L85: ='User Input'!$G$24 -> 0.1 | M85: ='User Input'!$G$25 -> 0.046 | N85: ='User Input'!$G$26 -> 30 | O85: 238.8026791 | P85: ='User Input'!$G$20 -> 80 | Q85: 189.1317219 | R85: =IF(ISERROR(-PV(M85/12,N85*12,F85-O85-P85-Q85)),22,-PV(M85/12,N85*12,F85-O85-P85-Q85)) -> 343875.858 | S85: 382084.2866 | T85: 382000 | U85: 304862.4576 | V85: 338736.064 | W85: 339000
A86: 56 | C86: =Summary!L98 -> 81684.84604 | E86: ='User Input'!$G$27 -> 0.3 | F86: 2042.121151 | H86: 2042.121151 | I86: ='User Input'!$G$21 -> 0.0075 | J86: ='User Input'!$G$22 -> 0.0066 | K86: ='User Input'!$G$23 -> 200 | L86: ='User Input'!$G$24 -> 0.1 | M86: ='User Input'!$G$25 -> 0.046 | N86: ='User Input'!$G$26 -> 30 | O86: 213.8766379 | P86: ='User Input'!$G$20 -> 80 | Q86: 169.3902972 | R86: 307982.3585 | S86: 342202.6206 | T86: 342000 | U86: 268968.9581 | V86: 298854.3979 | W86: 299000
A87: 57 | C87: =Summary!L99 -> 100468.5195 | E87: ='User Input'!$G$27 -> 0.3 | F87: 2511.712988 | H87: 2511.712988 | I87: ='User Input'!$G$21 -> 0.0075 | J87: ='User Input'!$G$22 -> 0.0066 | K87: ='User Input'!$G$23 -> 200 | L87: ='User Input'!$G$24 -> 0.1 | M87: ='User Input'!$G$25 -> 0.046 | N87: ='User Input'!$G$26 -> 30 | O87: 265.0634482 | P87: ='User Input'!$G$20 -> 80 | Q87: 209.930251 | R87: 381691.3654 | S87: 424101.5171 | T87: 424000 | U87: 342677.965 | V87: 380753.2944 | W87: 381000
A88: 58 | C88: =Summary!L100 -> 75525.66237 | E88: ='User Input'!$G$27 -> 0.3 | F88: 1888.141559 | H88: 1888.141559 | I88: ='User Input'!$G$21 -> 0.0075 | J88: ='User Input'!$G$22 -> 0.0066 | K88: ='User Input'!$G$23 -> 200 | L88: ='User Input'!$G$24 -> 0.1 | M88: ='User Input'!$G$25 -> 0.046 | N88: ='User Input'!$G$26 -> 30 | O88: 197.092436 | P88: ='User Input'!$G$20 -> 80 | Q88: 156.0972093 | R88: 283813.1079 | S88: 315347.8977 | T88: 315000 | U88: 244799.7075 | V88: 271999.675 | W88: 272000
A89: 59 | C89: =Summary!L101 -> 124517.4991 | E89: ='User Input'!$G$27 -> 0.3 | F89: 3112.937478 | H89: 3112.937478 | I89: ='User Input'!$G$21 -> 0.0075 | J89: ='User Input'!$G$22 -> 0.0066 | K89: ='User Input'!$G$23 -> 200 | L89: ='User Input'!$G$24 -> 0.1 | M89: ='User Input'!$G$25 -> 0.046 | N89: ='User Input'!$G$26 -> 30 | O89: 330.5985822 | P89: ='User Input'!$G$20 -> 80 | Q89: 261.8340771 | R89: 476061.9583 | S89: 528957.7314 | T89: 529000 | U89: 437048.5579 | V89: 485609.5088 | W89: 486000
A90: 60 | C90: =Summary!L102 -> 58860.35625 | E90: ='User Input'!$G$27 -> 0.3 | F90: 1471.508906 | H90: 1471.508906 | I90: ='User Input'!$G$21 -> 0.0075 | J90: ='User Input'!$G$22 -> 0.0066 | K90: ='User Input'!$G$23 -> 200 | L90: ='User Input'!$G$24 -> 0.1 | M90: ='User Input'!$G$25 -> 0.046 | N90: ='User Input'!$G$26 -> 30 | O90: 151.6783234 | P90: ='User Input'!$G$20 -> 80 | Q90: 120.1292321 | R90: 218416.7856 | S90: 242685.3174 | T90: 243000 | U90: 179403.3852 | V90: 199337.0947 | W90: 199000
A91: 61 | C91: =Summary!L103 -> 114354.2338 | E91: ='User Input'!$G$27 -> 0.3 | F91: 2858.855845 | H91: 2858.855845 | I91: ='User Input'!$G$21 -> 0.0075 | J91: ='User Input'!$G$22 -> 0.0066 | K91: ='User Input'!$G$23 -> 200 | L91: ='User Input'!$G$24 -> 0.1 | M91: ='User Input'!$G$25 -> 0.046 | N91: ='User Input'!$G$26 -> 30 | O91: 302.9029807 | P91: ='User Input'!$G$20 -> 80 | Q91: 239.8991607 | R91: 436180.2923 | S91: 484644.7692 | T91: 485000 | U91: 397166.8919 | V91: 441296.5465 | W91: 441000
A92: 62 | C92: =Summary!L104 -> 67284.84604 | E92: ='User Input'!$G$27 -> 0.3 | F92: 1682.121151 | H92: 1682.121151 | I92: ='User Input'!$G$21 -> 0.0075 | J92: ='User Input'!$G$22 -> 0.0066 | K92: ='User Input'!$G$23 -> 200 | L92: ='User Input'!$G$24 -> 0.1 | M92: ='User Input'!$G$25 -> 0.046 | N92: ='User Input'!$G$26 -> 30 | O92: 174.6356412 | P92: ='User Input'!$G$20 -> 80 | Q92: 138.3114278 | R92: 251475.3233 | S92: 279417.0258 | T92: 279000 | U92: 212461.9229 | V92: 236068.8032 | W92: 236000
A93: 63 | C93: =Summary!L105 -> 69097.09094 | E93: ='User Input'!$G$27 -> 0.3 | F93: 1727.427274 | H93: 1727.427274 | I93: ='User Input'!$G$21 -> 0.0075 | J93: ='User Input'!$G$22 -> 0.0066 | K93: ='User Input'!$G$23 -> 200 | L93: ='User Input'!$G$24 -> 0.1 | M93: ='User Input'!$G$25 -> 0.046 | N93: ='User Input'!$G$26 -> 30 | O93: 179.5741339 | P93: ='User Input'!$G$20 -> 80 | Q93: 142.2227141 | R93: 258586.7529 | S93: 287318.6143 | T93: 287000 | U93: 219573.3525 | V93: 243970.3916 | W93: 244000
A94: 64 | C94: =Summary!L106 -> 71374.64196 | E94: ='User Input'!$G$27 -> 0.3 | F94: 1784.366049 | H94: 1784.366049 | I94: ='User Input'!$G$21 -> 0.0075 | J94: ='User Input'!$G$22 -> 0.0066 | K94: ='User Input'!$G$23 -> 200 | L94: ='User Input'!$G$24 -> 0.1 | M94: ='User Input'!$G$25 -> 0.046 | N94: ='User Input'!$G$26 -> 30 | O94: 185.7806181 | P94: ='User Input'!$G$20 -> 80 | Q94: 147.1382495 | R94: 267524.0901 | S94: 297248.989 | T94: 297000 | U94: 228510.6897 | V94: 253900.7663 | W94: 254000
A95: 65 | C95: =Summary!L107 -> 65509.33584 | E95: ='User Input'!$G$27 -> 0.3 | F95: 1637.733396 | H95: 1637.733396 | I95: ='User Input'!$G$21 -> 0.0075 | J95: ='User Input'!$G$22 -> 0.0066 | K95: ='User Input'!$G$23 -> 200 | L95: ='User Input'!$G$24 -> 0.1 | M95: ='User Input'!$G$25 -> 0.046 | N95: ='User Input'!$G$26 -> 30 | O95: 169.797253 | P95: ='User Input'!$G$20 -> 80 | Q95: 134.4794243 | R95: 244508.0443 | S95: 271675.6047 | T95: =ROUND(S95,-3) -> 272000 | U95: 205494.6439 | V95: 228327.3821 | W95: =ROUND(V95,-3) -> 228000
A96: 66 | C96: =Summary!L108 -> 55480.76441 | E96: ='User Input'!$G$27 -> 0.3 | F96: 1387.01911 | H96: 1387.01911 | I96: ='User Input'!$G$21 -> 0.0075 | J96: ='User Input'!$G$22 -> 0.0066 | K96: ='User Input'!$G$23 -> 200 | L96: ='User Input'!$G$24 -> 0.1 | M96: ='User Input'!$G$25 -> 0.046 | N96: ='User Input'!$G$26 -> 30 | O96: 142.4687017 | P96: ='User Input'!$G$20 -> 80 | Q96: 112.8352117 | R96: 205154.9304 | S96: 227949.9227 | T96: 228000 | U96: 166141.53 | V96: 184601.7 | W96: 185000
A97: 67 | C97: =Summary!L109 -> 81011.37666 | E97: ='User Input'!$G$27 -> 0.3 | F97: 2025.284416 | H97: 2025.284416 | I97: ='User Input'!$G$21 -> 0.0075 | J97: ='User Input'!$G$22 -> 0.0066 | K97: ='User Input'!$G$23 -> 200 | L97: ='User Input'!$G$24 -> 0.1 | M97: ='User Input'!$G$25 -> 0.046 | N97: ='User Input'!$G$26 -> 30 | O97: 212.0413872 | P97: ='User Input'!$G$20 -> 80 | Q97: 167.9367786 | R97: 305339.5975 | S97: 339266.2195 | T97: 339000 | U97: 266326.1971 | V97: 295917.9968 | W97: 296000
A98: 68 | C98: =Summary!L110 -> 89644.02972 | E98: ='User Input'!$G$27 -> 0.3 | F98: 2241.100743 | H98: 2241.100743 | I98: ='User Input'!$G$21 -> 0.0075 | J98: ='User Input'!$G$22 -> 0.0066 | K98: ='User Input'!$G$23 -> 200 | L98: ='User Input'!$G$24 -> 0.1 | M98: ='User Input'!$G$25 -> 0.046 | N98: ='User Input'!$G$26 -> 30 | O98: 235.5659643 | P98: ='User Input'!$G$20 -> 80 | Q98: 186.5682437 | R98: 339214.9886 | S98: 376905.5428 | T98: 377000 | U98: 300201.5882 | V98: 333557.3202 | W98: 334000
A99: 69 | C99: =Summary!L111 -> 60807.29502 | E99: ='User Input'!$G$27 -> 0.3 | F99: 1520.182376 | H99: 1520.182376 | I99: ='User Input'!$G$21 -> 0.0075 | J99: ='User Input'!$G$22 -> 0.0066 | K99: ='User Input'!$G$23 -> 200 | L99: ='User Input'!$G$24 -> 0.1 | M99: ='User Input'!$G$25 -> 0.046 | N99: ='User Input'!$G$26 -> 30 | O99: 156.9838663 | P99: ='User Input'!$G$20 -> 80 | Q99: 124.3312221 | R99: 226056.7674 | S99: 251174.186 | T99: 251000 | U99: 187043.367 | V99: 207825.9634 | W99: 208000
A100: 70 | C100: =Summary!L112 -> 88750.15217 | E100: ='User Input'!$G$27 -> 0.3 | F100: 2218.753804 | H100: 2218.753804 | I100: ='User Input'!$G$21 -> 0.0075 | J100: ='User Input'!$G$22 -> 0.0066 | K100: ='User Input'!$G$23 -> 200 | L100: ='User Input'!$G$24 -> 0.1 | M100: ='User Input'!$G$25 -> 0.046 | N100: ='User Input'!$G$26 -> 30 | O100: 233.1300861 | P100: ='User Input'!$G$20 -> 80 | Q100: 184.6390282 | R100: 335707.324 | S100: 373008.1377 | T100: 373000 | U100: 296693.9236 | V100: 329659.9151 | W100: 330000
A101: 71 | C101: =Summary!L113 -> 85676.68278 | E101: ='User Input'!$G$27 -> 0.3 | F101: 2141.917069 | H101: 2141.917069 | I101: ='User Input'!$G$21 -> 0.0075 | J101: ='User Input'!$G$22 -> 0.0066 | K101: ='User Input'!$G$23 -> 200 | L101: ='User Input'!$G$24 -> 0.1 | M101: ='User Input'!$G$25 -> 0.046 | N101: ='User Input'!$G$26 -> 30 | O101: 224.7546693 | P101: ='User Input'!$G$20 -> 80 | Q101: 178.0056981 | R101: 323646.7237 | S101: 359607.4708 | T101: 360000 | U101: 284633.3233 | V101: 316259.2482 | W101: 316000
A102: 72 | C102: =Summary!L114 -> 90121.58074 | E102: ='User Input'!$G$27 -> 0.3 | F102: 2253.039518 | H102: 2253.039518 | I102: ='User Input'!$G$21 -> 0.0075 | J102: ='User Input'!$G$22 -> 0.0066 | K102: ='User Input'!$G$23 -> 200 | L102: ='User Input'!$G$24 -> 0.1 | M102: ='User Input'!$G$25 -> 0.046 | N102: ='User Input'!$G$26 -> 30 | O102: 236.8673239 | P102: ='User Input'!$G$20 -> 80 | Q102: 187.5989205 | R102: 341088.9464 | S102: 378987.7182 | T102: 379000 | U102: 302075.546 | V102: 335639.4955 | W102: 336000
A103: 73 | C103: =Summary!L115 -> 69905.25421 | E103: ='User Input'!$G$27 -> 0.3 | F103: 1747.631355 | H103: 1747.631355 | I103: ='User Input'!$G$21 -> 0.0075 | J103: ='User Input'!$G$22 -> 0.0066 | K103: ='User Input'!$G$23 -> 200 | L103: ='User Input'!$G$24 -> 0.1 | M103: ='User Input'!$G$25 -> 0.046 | N103: ='User Input'!$G$26 -> 30 | O103: 181.7764348 | P103: ='User Input'!$G$20 -> 80 | Q103: 143.9669363 | R103: 261758.0661 | S103: 290842.2956 | T103: 291000 | U103: 222744.6657 | V103: 247494.073 | W103: 247000
A104: 74 | C104: =Summary!L116 -> 75648.11135 | E104: ='User Input'!$G$27 -> 0.3 | F104: 1891.202784 | H104: 1891.202784 | I104: ='User Input'!$G$21 -> 0.0075 | J104: ='User Input'!$G$22 -> 0.0066 | K104: ='User Input'!$G$23 -> 200 | L104: ='User Input'!$G$24 -> 0.1 | M104: ='User Input'!$G$25 -> 0.046 | N104: ='User Input'!$G$26 -> 30 | O104: 197.426118 | P104: ='User Input'!$G$20 -> 80 | Q104: 156.3614854 | R104: 284293.6099 | S104: 315881.7888 | T104: 316000 | U104: 245280.2095 | V104: 272533.5661 | W104: 273000
A105: 75 | C105: =Summary!L117 -> 45317.49911 | E105: ='User Input'!$G$27 -> 0.3 | F105: 1132.937478 | H105: 1132.937478 | I105: ='User Input'!$G$21 -> 0.0075 | J105: ='User Input'!$G$22 -> 0.0066 | K105: ='User Input'!$G$23 -> 200 | L105: ='User Input'!$G$24 -> 0.1 | M105: ='User Input'!$G$25 -> 0.046 | N105: ='User Input'!$G$26 -> 30 | O105: 114.7731003 | P105: ='User Input'!$G$20 -> 80 | Q105: 90.90029541 | R105: 165273.2644 | S105: 183636.9604 | T105: 184000 | U105: 126259.864 | V105: 140288.7377 | W105: 140000
A106: 76 | C106: =Summary!L118 ->  | E106: ='User Input'!$G$27 -> 0.3 | I106: ='User Input'!$G$21 -> 0.0075 | J106: ='User Input'!$G$22 -> 0.0066 | K106: ='User Input'!$G$23 -> 200 | L106: ='User Input'!$G$24 -> 0.1 | M106: ='User Input'!$G$25 -> 0.046 | N106: ='User Input'!$G$26 -> 30 | O106: 0.01527777778 | P106: ='User Input'!$G$20 -> 80 | Q106: 0.0121 | R106: 22 | S106: 24.44444444 | T106: 0
A107: 77 | C107: =Summary!L119 ->  | E107: ='User Input'!$G$27 -> 0.3 | I107: ='User Input'!$G$21 -> 0.0075 | J107: ='User Input'!$G$22 -> 0.0066 | K107: ='User Input'!$G$23 -> 200 | L107: ='User Input'!$G$24 -> 0.1 | M107: ='User Input'!$G$25 -> 0.046 | N107: ='User Input'!$G$26 -> 30 | O107: 0.01527777778 | P107: ='User Input'!$G$20 -> 80 | Q107: 0.0121 | R107: 22 | S107: 24.44444444 | T107: 0
A108: 78 | C108: =Summary!L120 ->  | E108: ='User Input'!$G$27 -> 0.3 | I108: ='User Input'!$G$21 -> 0.0075 | J108: ='User Input'!$G$22 -> 0.0066 | K108: ='User Input'!$G$23 -> 200 | L108: ='User Input'!$G$24 -> 0.1 | M108: ='User Input'!$G$25 -> 0.046 | N108: ='User Input'!$G$26 -> 30 | O108: 0.01527777778 | P108: ='User Input'!$G$20 -> 80 | Q108: 0.0121 | R108: 22 | S108: 24.44444444 | T108: 0
A109: 79 | C109: =Summary!L121 ->  | E109: ='User Input'!$G$27 -> 0.3 | I109: ='User Input'!$G$21 -> 0.0075 | J109: ='User Input'!$G$22 -> 0.0066 | K109: ='User Input'!$G$23 -> 200 | L109: ='User Input'!$G$24 -> 0.1 | M109: ='User Input'!$G$25 -> 0.046 | N109: ='User Input'!$G$26 -> 30 | O109: 0.01527777778 | P109: ='User Input'!$G$20 -> 80 | Q109: 0.0121 | R109: 22 | S109: 24.44444444 | T109: 0
A110: 80 | C110: =Summary!L122 ->  | E110: ='User Input'!$G$27 -> 0.3 | I110: ='User Input'!$G$21 -> 0.0075 | J110: ='User Input'!$G$22 -> 0.0066 | K110: ='User Input'!$G$23 -> 200 | L110: ='User Input'!$G$24 -> 0.1 | M110: ='User Input'!$G$25 -> 0.046 | N110: ='User Input'!$G$26 -> 30 | O110: 0.01527777778 | P110: ='User Input'!$G$20 -> 80 | Q110: 0.0121 | R110: 22 | S110: 24.44444444 | T110: 0
A111: 81 | C111: =Summary!L123 ->  | E111: ='User Input'!$G$27 -> 0.3 | F111: =C111*E111/12 ->  | H111: =F111-G111 ->  | I111: ='User Input'!$G$21 -> 0.0075 | J111: ='User Input'!$G$22 -> 0.0066 | K111: ='User Input'!$G$23 -> 200 | L111: ='User Input'!$G$24 -> 0.1 | M111: ='User Input'!$G$25 -> 0.046 | N111: ='User Input'!$G$26 -> 30 | O111: =S111*I111/12 -> 0.01527777778 | P111: ='User Input'!$G$20 -> 80 | Q111: =R111*J111/12 -> 0.0121 | R111: 22 | S111: =R111/(1-L111) -> 24.44444444 | T111: 0 | U111: =-PV(M111/12,N111*12,F111-O111-P111-Q111-K111) ->  | V111: =U111/(1-L111) -> 
A112: 82 | C112: =Summary!L124 ->  | E112: ='User Input'!$G$27 -> 0.3 | I112: ='User Input'!$G$21 -> 0.0075 | J112: ='User Input'!$G$22 -> 0.0066 | K112: ='User Input'!$G$23 -> 200 | L112: ='User Input'!$G$24 -> 0.1 | M112: ='User Input'!$G$25 -> 0.046 | N112: ='User Input'!$G$26 -> 30 | O112: 0.01527777778 | P112: ='User Input'!$G$20 -> 80 | Q112: 0.0121 | R112: 22 | S112: 24.44444444 | T112: 0
A113: 83 | C113: =Summary!L125 ->  | E113: ='User Input'!$G$27 -> 0.3 | I113: ='User Input'!$G$21 -> 0.0075 | J113: ='User Input'!$G$22 -> 0.0066 | K113: ='User Input'!$G$23 -> 200 | L113: ='User Input'!$G$24 -> 0.1 | M113: ='User Input'!$G$25 -> 0.046 | N113: ='User Input'!$G$26 -> 30 | O113: 0.01527777778 | P113: ='User Input'!$G$20 -> 80 | Q113: 0.0121 | R113: 22 | S113: 24.44444444 | T113: 0
A114: 84 | C114: =Summary!L126 ->  | E114: ='User Input'!$G$27 -> 0.3 | I114: ='User Input'!$G$21 -> 0.0075 | J114: ='User Input'!$G$22 -> 0.0066 | K114: ='User Input'!$G$23 -> 200 | L114: ='User Input'!$G$24 -> 0.1 | M114: ='User Input'!$G$25 -> 0.046 | N114: ='User Input'!$G$26 -> 30 | O114: 0.01527777778 | P114: ='User Input'!$G$20 -> 80 | Q114: 0.0121 | R114: 22 | S114: 24.44444444 | T114: 0
A115: 85 | C115: =Summary!L127 ->  | E115: ='User Input'!$G$27 -> 0.3 | I115: ='User Input'!$G$21 -> 0.0075 | J115: ='User Input'!$G$22 -> 0.0066 | K115: ='User Input'!$G$23 -> 200 | L115: ='User Input'!$G$24 -> 0.1 | M115: ='User Input'!$G$25 -> 0.046 | N115: ='User Input'!$G$26 -> 30 | O115: 0.01527777778 | P115: ='User Input'!$G$20 -> 80 | Q115: 0.0121 | R115: 22 | S115: 24.44444444 | T115: 0
A116: 86 | C116: =Summary!L128 ->  | E116: ='User Input'!$G$27 -> 0.3 | I116: ='User Input'!$G$21 -> 0.0075 | J116: ='User Input'!$G$22 -> 0.0066 | K116: ='User Input'!$G$23 -> 200 | L116: ='User Input'!$G$24 -> 0.1 | M116: ='User Input'!$G$25 -> 0.046 | N116: ='User Input'!$G$26 -> 30 | O116: 0.01527777778 | P116: ='User Input'!$G$20 -> 80 | Q116: 0.0121 | R116: 22 | S116: 24.44444444 | T116: 0
A117: 87 | C117: =Summary!L129 ->  | E117: ='User Input'!$G$27 -> 0.3 | I117: ='User Input'!$G$21 -> 0.0075 | J117: ='User Input'!$G$22 -> 0.0066 | K117: ='User Input'!$G$23 -> 200 | L117: ='User Input'!$G$24 -> 0.1 | M117: ='User Input'!$G$25 -> 0.046 | N117: ='User Input'!$G$26 -> 30 | O117: 0.01527777778 | P117: ='User Input'!$G$20 -> 80 | Q117: 0.0121 | R117: 22 | S117: 24.44444444 | T117: 0
A118: 88 | C118: =Summary!L130 ->  | E118: ='User Input'!$G$27 -> 0.3 | I118: ='User Input'!$G$21 -> 0.0075 | J118: ='User Input'!$G$22 -> 0.0066 | K118: ='User Input'!$G$23 -> 200 | L118: ='User Input'!$G$24 -> 0.1 | M118: ='User Input'!$G$25 -> 0.046 | N118: ='User Input'!$G$26 -> 30 | O118: 0.01527777778 | P118: ='User Input'!$G$20 -> 80 | Q118: 0.0121 | R118: 22 | S118: 24.44444444 | T118: 0
A119: 89 | C119: =Summary!L131 ->  | E119: ='User Input'!$G$27 -> 0.3 | I119: ='User Input'!$G$21 -> 0.0075 | J119: ='User Input'!$G$22 -> 0.0066 | K119: ='User Input'!$G$23 -> 200 | L119: ='User Input'!$G$24 -> 0.1 | M119: ='User Input'!$G$25 -> 0.046 | N119: ='User Input'!$G$26 -> 30 | O119: 0.01527777778 | P119: ='User Input'!$G$20 -> 80 | Q119: 0.0121 | R119: 22 | S119: 24.44444444 | T119: 0
A120: 90 | C120: =Summary!L132 ->  | E120: ='User Input'!$G$27 -> 0.3 | I120: ='User Input'!$G$21 -> 0.0075 | J120: ='User Input'!$G$22 -> 0.0066 | K120: ='User Input'!$G$23 -> 200 | L120: ='User Input'!$G$24 -> 0.1 | M120: ='User Input'!$G$25 -> 0.046 | N120: ='User Input'!$G$26 -> 30 | O120: 0.01527777778 | P120: ='User Input'!$G$20 -> 80 | Q120: 0.0121 | R120: 22 | S120: 24.44444444 | T120: 0
R121: 0
R122: 0
R123: 0
R124: 0

Sheet Reg2 (hidden)
A1: households | H1: County | I1: County | N1: TRUE | O1: versionTest | W1: grpah 1 , Summary1
G2: AARC | H2: ='User Input'!F100 -> 0.03533850354 | I2: ='User Input'!F101 -> 0.03533850354 | W2: =TEXT(Reg!C4,"$0,0") &" income "&"("&LOWER(Reg!A4)&")"&" " &TEXT(Reg!T4,"$0,0")&" purchase "& TEXT(Reg!H4,"$0,0") & " rent" -> $18,870 income (30% of median) $68,000 purchase $472 rent | AK2: 7999 | AM2: ='User Input'!G92 -> 31314.28571 | AN2: 1202
E3: Tax Comission # Hoseholds | G3: ='User Input'!G92 -> 31314.28571 | W3: =TEXT(Reg!C5,"$0,0") &" income "&"("&LOWER(Reg!A5)&")"&" " &TEXT(Reg!T5,"$0,0")&" purchase "& TEXT(Reg!H5,"$0,0") & " rent" -> $31,450 income (50% of median) $123,000 purchase $786 rent | AM3: POP | AN3: DU
G4: Calculated | H4: Calculated | I4: Calculated | W4: =TEXT(Reg!C6,"$0,0") &" income "&"("&LOWER(Reg!A6)&")"&" " &TEXT(Reg!T6,"$0,0")&" purchase "& TEXT(Reg!H6,"$0,0") & " rent" -> $37,740 income (60% of median) $151,000 purchase $944 rent | AH4: =Summary!A6 -> 30% of Median | AJ4: =C4:C9 -> 0 | AK4: 2140.405199 | AL4: =AK4:AK10/AK2 -> 0.2675840979 | AM4: =AL4:AL10*AM2 -> 8379.204893 | AN4: =AN2*AO4:AO10 -> 381.7360856 | AO4: =AL4+0.05 -> 0.3175840979
E5: ='User Input'!G108 -> 2010 | F5: =E5 -> 2010 | G5: =F5 -> 2010 | H5: =G5+5 -> 2015 | I5: =H5+5 -> 2020 | W5: =TEXT(Reg!C7,"$0,0") &" income "&"("&LOWER(Reg!A7)&")"&" " &TEXT(Reg!T7,"$0,0")&" purchase "& TEXT(Reg!H7,"$0,0") & " rent" -> $50,320 income (80% of median) $205,000 purchase $1,258 rent | AH5: =Summary!A7 -> 50% of Median | AJ5: 0 | AK5: 996.8172783 | AL5: 0.124617737 | AM5: 3902.315422 | AN5: 197.8705199 | AO5: =AL5+0.04 -> 0.164617737
W6: =TEXT(Reg!C8,"$0,0") &" income "&"("&LOWER(Reg!A8)&")"&" " &TEXT(Reg!T8,"$0,0")&" purchase "& TEXT(Reg!H8,"$0,0") & " rent" -> $62,900 income (median) $260,000 purchase $1,573 rent | AH6: =Summary!A8 -> 60% of Median | AJ6: 0 | AK6: 379.1574924 | AL6: 0.04740061162 | AM6: 1484.316295 | AN6: 105.0555352 | AO6: =AL6+0.04 -> 0.08740061162
A7: ='User Input'!A110 -> Up to $18,870 | E7: ='User Input'!G110:G116 -> 10508 | F7: =E7:E13/E14 -> 0.3586348123 | G7: =G3*F7:F13 -> 11230.39298 | H7: =FV(H$2,H$5-G$5,0,-G7) -> 13360.00992 | I7: =FV(I$2,I$5-H$5,0,-H7) -> 15893.46566 | W7: =TEXT(Reg!C9,"$0,0") &" income "&"("&LOWER(Reg!A9)&")"&" " &TEXT(Reg!T9,"$0,0")&" purchase "& TEXT(Reg!H9,"$0,0") & " rent" -> $75,480 income (120% of median) $315,000 purchase $1,887 rent | AH7: =Summary!A9 -> 80% of Median | AJ7: 0 | AK7: 709.3914373 | AL7: 0.08868501529 | AM7: 2777.107907 | AN7: 130.6393884 | AO7: =AL7+0.02 -> 0.1086850153
A8: ='User Input'!A111 -> Between $18,870 and $31,450 | E8: 5512 | F8: 0.1881228669 | G8: 5890.933203 | H8: =FV(H$2,H$5-G$5,0,-G8) -> 7008.029567 | I8: 8336.960669 | W8: ="Income more than "&TEXT(Reg!C9,"$0,0") -> Income more than $75,480 | AH8: =Summary!A10 -> MEDIAN | AJ8: 0 | AK8: 716.5261213 | AL8: 0.08957696228 | AM8: 2805.03859 | AN8: 131.7115087 | AO8: =AL8+0.02 -> 0.1095769623
A9: ='User Input'!A112 -> Between $31,450 and $37,740 | E9: 2054 | F9: 0.07010238908 | G9: 2195.206241 | H9: 2611.482716 | I9: 3106.697608 | W9: =UPPER('User Input'!E4) & " - NUMBER OF HOUSEHOLDS & AFFORDABLE DWELLING UNITS - "&YEAR('User Input'!E6) -> TEST CITY - NUMBER OF HOUSEHOLDS & AFFORDABLE DWELLING UNITS - 2011 | AH9: =Summary!A11 -> 120% of Median | AJ9: 0 | AK9: 1590.015291 | AL9: 0.1987767584 | AM9: 6224.552206 | AN9: 238.9296636 | AO9: =AL9 -> 0.1987767584
A10: ='User Input'!A113 -> Between $37,740 and $50,320 | E10: 2952 | F10: 0.1007508532 | G10: 3154.941004 | H10: 3753.211771 | I10: 4464.932492 | V10: Graph 2 | W10: =UPPER('User Input'!E4) & " - TREND IN AFFORDABLE HOUSING SUPPLY" -> TEST CITY - TREND IN AFFORDABLE HOUSING SUPPLY | AH10: =Summary!A12 -> More than 120% | AK10: 1466.687181 | AL10: 0.1833588175 | AM10: 5741.7504 | AN10: 16.05729867 | AO10: =1-SUM(AO4:AO9) -> 0.01335881753
A11: ='User Input'!A114 -> Between $50,320 and $62,900 (median) | E11: 2025 | F11: 0.06911262799 | G11: 2164.212579 | H11: 2574.611733 | I11: 3062.834789 | V11: Graph 2 | W11: =G5 -> 2010 | X11: =IF(N36,"Not Projected",W11+5) -> 2015 | Y11: =IF(N48,"Not Projected",X11+5) -> 2020 | AN11: =SUM(AN4:AN10) -> 1202
A12: ='User Input'!A115 -> Between $62,900 and $75,480 | E12: 1464 | F12: 0.04996587031 | G12: 1564.645539 | H12: 1861.348927 | I12: 2214.316114 | W12: ="Up to "&TEXT(Reg!C4,"$0,0") -> Up to $18,870
A13: ='User Input'!A116 -> More than $75,480 | E13: 4785 | F13: 0.1633105802 | G13: 5113.954169 | H13: 6083.71217 | I13: 7237.365167 | W13: ="Between "&TEXT(Reg!C4,"$0,0") & " and " & TEXT(Reg!C5,"$0,0") -> Between $18,870 and $31,450 | AH13: income thoughts
E14: =SUM(E7:E13) -> 29300 | G14: =SUM(G7:G13) -> 31314.28571 | H14: =SUM(H7:H13) -> 37252.40681 | I14: =SUM(I7:I13) -> 44316.5725 | W14: ="Between "&TEXT(Reg!C5,"$0,0") & " and " & TEXT(Reg!C6,"$0,0") -> Between $31,450 and $37,740 | AI14: 4754
W15: ="Between "&TEXT(Reg!C6,"$0,0") & " and " & TEXT(Reg!C7,"$0,0") -> Between $37,740 and $50,320
W16: ="Between "&TEXT(Reg!C7,"$0,0") & " and " & TEXT(Reg!C8,"$0,0") &" (median)" -> Between $50,320 and $62,900 (median) | AH16: =AK16/AI16 -> 58520.09674 | AI16: 4135 | AJ16: =AK16 -> 241980600 | AK16: 241980600 | AM16: Earnings | AO16: p58 | AP16: p67
W17: ="Between "&TEXT(Reg!C8,"$0,0") & " and " & TEXT(Reg!C9,"$0,0") -> Between $62,900 and $75,480
W18: ="More than "&TEXT(Reg!C9,"$0,0") -> More than $75,480 | AH18: =AK18/AI18 -> 54420.64289 | AI18: 3982 | AK18: 216703000 | AM18: Wage Or Salary Income | AO18: p59 | AP18: p68
AH19: =AK19/AI19 -> 27565.5398 | AI19: 917 | AJ19: =SUM(AK18:AK19) -> 241980600 | AK19: 25277600 | AM19: Self Employment Income | AO19: p60 | AP19: p69
A21: ="Dwelling Units - " & 'User Input'!AC5 -> Dwelling Units - 2007 | O21: Net Supply | W21: HUD Median Income Lookup Table | AK21: 21721100 | AL21: =AK21:AK26/AJ19 -> 0.08976380751 | AM21: Interest, Dividends Net Rental Income | AO21: p61 | AP21: p70
E22: SF | F22: MF | G22: Mkt Rental | H22: Subdz Rental | I22: Total | J22: Households | S22: =G5 -> 2010 | T22: =H5 -> 2015 | U22: =I5 -> 2020 | W22: select - "Data for Section 8 Income Limits in MS EXCEL" | AK22: 12935000 | AL22: 0.05345469843 | AM22: Social Security | AO22: p62 | AP22: p71
W23: http://www.huduser.org/DATASETS/il/il07/index.html | AH23: 0.3 | AK23: 640900 | AL23: 0.00264855943 | AM23: Supplemental Security Income | AO23: p63 | AP23: p72
A24: 1 | E24: ='User Input'!AE11:AE17 -> 39 | F24: ='User Input'!AE20:AE26 -> 162 | G24: =J24:J30*'User Input'!AD29 -> 0 | H24: =J24:J30*'User Input'!AE29 -> 283.3215017 | I24: =SUM(E24:H24) -> 484.3215017 | J24: =F7:F13 -> 0.3586348123 | O24: 1 | S24: =I24-G7 -> -10746.07148 | T24: =IF($N$36,NA(),I36-H7) -> -12825.27985 | U24: =IF($N$48,NA(),I48-I7) -> -15303.08045 | W24: HUD AMI | AH24: 0.5 | AK24: 285700 | AL24: 0.001180673161 | AM24: Pubilc Assistance | AO24: p64 | AP24: p73
A25: 2 | E25: 1230 | F25: 663 | G25: 0 | H25: 148.6170648 | I25: =SUM(E25:H25) -> 2041.617065 | J25: 0.1881228669 | O25: 2 | S25: =I25-G8 -> -3849.316138 | T25: =IF($N$36,NA(),I37-H8) -> -4753.919359 | U25: =IF($N$48,NA(),I49-I8) -> -5848.240859 | W25: LookupName | X25: County_Name | Y25: median2007 | AH25: 0.6 | AK25: 13842200 | AL25: 0.05720375931 | AM25: Retirement Income | AO25: p65 | AP25: p74
A26: 3 | E26: 6813 | F26: 857 | G26: 0 | H26: 55.38088737 | I26: 7725.380887 | J26: 0.07010238908 | O26: 3 | S26: 5530.174647 | T26: 5917.962019 | U26: 6310.498586 | W26: =TRIM(LEFT(X26,SEARCH("county",X26,1)-1)) -> Beaver | X26: Beaver County | Y26: 44800 | AH26: 0.8 | AK26: 5314700 | AL26: 0.02196333094 | AM26: Other Income | AO26: p66 | AP26: p75
A27: 4 | E27: 31034 | F27: 7794 | G27: 0 | H27: 79.59317406 | I27: 38907.59317 | J27: 0.1007508532 | O27: 4 | S27: 35752.65217 | T27: 39203.91495 | U27: 42963.20648 | W27: Box Elder | X27: Box Elder County | Y27: 55500 | AH27: 1 | AL27: =SUM(AL21:AL26) -> 0.2262148288
A28: 5 | E28: 24938 | F28: 6659 | G28: 0 | H28: 54.59897611 | I28: 31651.59898 | J28: 0.06911262799 | O28: 5 | S28: 29487.3864 | T28: 32371.31109 | U28: 35520.28775 | W28: Cache | X28: Cache County | Y28: 48800 | AH28: 1.2
A29: 6 | E29: 12460 | F29: 2022 | G29: 0 | H29: 39.47303754 | I29: 14521.47304 | J29: 0.04996587031 | O29: 6 | S29: 12956.8275 | T29: 14171.53069 | U29: 15487.27849 | W29: Carbon | X29: Carbon County | Y29: 46200
A30: 7 | E30: 20035 | F30: 1027 | G30: 0 | H30: 129.0153584 | I30: 21191.01536 | J30: 0.1633105802 | O30: 7 | S30: 16077.06119 | T30: 17312.88109 | U30: 18594.36431 | W30: Daggett | X30: Daggett County | Y30: 46300
A31: Total | E31: =SUM(E24:E30) -> 96549 | F31: =SUM(F24:F30) -> 19184 | G31: =SUM(G24:G30) -> 0 | H31: =SUM(H24:H30) -> 790 | I31: =SUM(I24:I30) -> 116523 | O31: Total | S31: =SUM(S24:S30) -> 85208.71429 | T31: =SUM(T24:T30) -> 91398.40062 | U31: =SUM(U24:U30) -> 97724.31431 | W31: Davis | X31: Davis County | Y31: 62600
W32: Duchesne | X32: Duchesne County | Y32: 40800
A33: ="Dwelling Units - " & H5 -> Dwelling Units - 2015 | J33: Grwoth Rate | W33: Emery | X33: Emery County | Y33: 49300
E34: =E22:I22 -> SF | F34: MF | G34: Mkt Rental | H34: Subdz Rental | I34: Total | J34: =E22:H22 -> SF | K34: MF | L34: Mkt Rental | M34: Subdz Rental | W34: Garfield | X34: Garfield County | Y34: 45500
W35: Grand | X35: Grand County | Y35: 44400
A36: 1 | E36: =FV(J36,$H$5-$G$5,0,-E24,) -> 43.05915132 | F36: =FV(K36,$H$5-$G$5,0,-F24,) -> 178.8610901 | G36: =FV(L36,$H$5-$G$5,0,-G24,) -> 0 | H36: =FV(M36,$H$5-$G$5,0,-H24,) -> 312.8098312 | I36: =SUM(E36:H36) -> 534.7300726 | J36: ='User Input'!AE54 -> 0.02 | K36: =J36 -> 0.02 | L36: ='User Input'!AE63 -> 0.02 | M36: ='User Input'!AE72 -> 0.02 | N36: =J36:M42=0 -> FALSE | W36: Iron | X36: Iron County | Y36: 41900
A37: 2 | E37: =FV(J37,$H$5-$G$5,0,-E25,) -> 1358.019388 | F37: =FV(K37,$H$5-$G$5,0,-F25,) -> 732.0055725 | G37: =FV(L37,$H$5-$G$5,0,-G25,) -> 0 | H37: =FV(M37,$H$5-$G$5,0,-H25,) -> 164.0852483 | I37: =SUM(E37:H37) -> 2254.110209 | J37: ='User Input'!AE55 -> 0.02 | K37: =J37 -> 0.02 | L37: ='User Input'!AE64 -> 0.02 | M37: ='User Input'!AE73 -> 0.02 | W37: Juab | X37: Juab County | Y37: 55100
A38: 3 | E38: 7522.102512 | F38: 946.1972483 | G38: 0 | H38: 61.14497461 | I38: 8529.444735 | J38: ='User Input'!AE56 -> 0.02 | K38: 0.02 | L38: ='User Input'!AE65 -> 0.02 | M38: ='User Input'!AE74 -> 0.02 | W38: Kane | X38: Kane County | Y38: 45900
A39: 4 | E39: 34264.04365 | F39: 8605.20578 | G39: 0 | H39: 87.87729555 | I39: 42957.12672 | J39: ='User Input'!AE57 -> 0.02 | K39: 0.02 | L39: ='User Input'!AE66 -> 0.02 | M39: ='User Input'!AE75 -> 0.02 | W39: Millard | X39: Millard County | Y39: 47400
A40: 5 | E40: 27533.56707 | F40: 7352.074069 | G40: 0 | H40: 60.2816814 | I40: 34945.92282 | J40: ='User Input'!AE58 -> 0.02 | K40: 0.02 | L40: ='User Input'!AE67 -> 0.02 | M40: ='User Input'!AE76 -> 0.02 | W40: Morgan | X40: Morgan County | Y40: 62600
A41: 6 | E41: 13756.84681 | F41: 2232.451384 | G41: 0 | H41: 43.58142299 | I41: 16032.87961 | J41: ='User Input'!AE59 -> 0.02 | K41: 0.02 | L41: ='User Input'!AE68 -> 0.02 | M41: ='User Input'!AE77 -> 0.02 | W41: Piute | X41: Piute County | Y41: 39300
A42: 7 | E42: 22120.25889 | F42: 1133.890985 | G42: 0 | H42: 142.4433805 | I42: 23396.59326 | J42: ='User Input'!AE60 -> 0.02 | K42: 0.02 | L42: ='User Input'!AE69 -> 0.02 | M42: ='User Input'!AE78 -> 0.02 | W42: Rich | X42: Rich County | Y42: 51300
A43: Total | E43: =SUM(E36:E42) -> 106597.8975 | F43: =SUM(F36:F42) -> 21180.68613 | G43: =SUM(G36:G42) -> 0 | H43: =SUM(H36:H42) -> 872.2238345 | I43: =SUM(I36:I42) -> 128650.8074 | W43: Salt Lake | X43: Salt Lake County | Y43: 60100
W44: San Juan | X44: San Juan County | Y44: 35500
A45: ="Dwelling Units - " & I5 -> Dwelling Units - 2020 | J45: Growth Rate | W45: Sanpete | X45: Sanpete County | Y45: 42800
E46: =E34:I34 -> SF | F46: MF | G46: Mkt Rental | H46: Subdz Rental | I46: Total | J46: =J34:M34 -> SF | K46: MF | L46: Mkt Rental | M46: Subdz Rental | W46: Sevier | X46: Sevier County | Y46: 45200
W47: Summit | X47: Summit County | Y47: 82200
A48: 1 | E48: =FV(J48,$H$5-$G$5,0,-E36,) -> 47.54078238 | F48: =FV(K48,$H$5-$G$5,0,-F36,) -> 197.477096 | G48: =FV(L48,$H$5-$G$5,0,-G36,) -> 0 | H48: =FV(M48,$H$5-$G$5,0,-H36,) -> 345.3673296 | I48: =SUM(E48:H48) -> 590.3852081 | J48: ='User Input'!AF54 -> 0.02 | K48: =J48 -> 0.02 | L48: ='User Input'!AF63 -> 0.02 | M48: ='User Input'!AF72 -> 0.02 | N48: =J48:M54=0 -> FALSE | W48: Tooele | X48: Tooele County | Y48: 56900
A49: 2 | E49: =FV(J49,$H$5-$G$5,0,-E37,) -> 1499.363137 | F49: =FV(K49,$H$5-$G$5,0,-F37,) -> 808.1933005 | G49: =FV(L49,$H$5-$G$5,0,-G37,) -> 0 | H49: =FV(M49,$H$5-$G$5,0,-H37,) -> 181.1633728 | I49: =SUM(E49:H49) -> 2488.71981 | J49: ='User Input'!AF55 -> 0.02 | K49: =J49 -> 0.02 | L49: ='User Input'!AF64 -> 0.02 | M49: ='User Input'!AF73 -> 0.02 | W49: Uintah | X49: Uintah County | Y49: 45500
A50: 3 | E50: 8305.008983 | F50: 1044.678218 | G50: 0 | H50: 67.50899268 | I50: 9417.196194 | J50: ='User Input'!AF56 -> 0.02 | K50: 0.02 | L50: ='User Input'!AF65 -> 0.02 | M50: ='User Input'!AF74 -> 0.02 | W50: Utah | X50: Utah County | Y50: 55100
A51: 4 | E51: 37830.27283 | F51: 9500.842509 | G51: 0 | H51: 97.02363505 | I51: 47428.13897 | J51: ='User Input'!AF57 -> 0.02 | K51: 0.02 | L51: ='User Input'!AF66 -> 0.02 | M51: ='User Input'!AF75 -> 0.02 | W51: Wasatch | X51: Wasatch County | Y51: 59700
A52: 5 | E52: 30399.28285 | F52: 8117.283843 | G52: 0 | H52: 66.55584721 | I52: 38583.12254 | J52: ='User Input'!AF58 -> 0.02 | K52: 0.02 | L52: ='User Input'!AF67 -> 0.02 | M52: ='User Input'!AF76 -> 0.02 | W52: Washington | X52: Washington County | Y52: 49600
A53: 6 | E53: 15188.67047 | F53: 2464.806717 | G53: 0 | H53: 48.1174125 | I53: 17701.5946 | J53: ='User Input'!AF59 -> 0.02 | K53: 0.02 | L53: ='User Input'!AF68 -> 0.02 | M53: ='User Input'!AF77 -> 0.02 | W53: Wayne | X53: Wayne County | Y53: 42600
A54: 7 | E54: 24422.5532 | F54: 1251.907269 | G54: 0 | H54: 157.2690019 | I54: 25831.72948 | J54: ='User Input'!AF60 -> 0.02 | K54: 0.02 | L54: ='User Input'!AF69 -> 0.02 | M54: ='User Input'!AF78 -> 0.02 | W54: Weber | X54: Weber County | Y54: 62600
A55: Total | E55: =SUM(E48:E54) -> 117692.6923 | F55: =SUM(F48:F54) -> 23385.18895 | G55: =SUM(G48:G54) -> 0 | H55: =SUM(H48:H54) -> 963.0055918 | I55: =SUM(E55:H55) -> 142040.8868
W57: GRAPH - Potential Overcrowding
W59: 1940 to 1990 T30 - Pop & Housing units 1940 to 1990
W60: http://www.census.gov/prod/cen1990/cph2/cph-2-1-1.pdf
W61: 1990 Census of Pop and Housing - Pop and Housing Unit Counts | AE61: http://www.census.gov/population/www/censusdata/hiscendata.html
W62: 1940 to 1990 T30 - Pop & Housing units 1940 to 1990
W64: 2000 Census
W65: http://www.census.gov/
W66: http://factfinder.census.gov/home/saff/main.html?_lang=en
W67: http://factfinder.census.gov/home/saff/main.html?_lang=en
W68: http://factfinder.census.gov/servlet/DatasetMainPageServlet?_program=DEC&_submenuId=&_lang=en&_ts=
A69: temp | W69: p1
D70: DU | E70: HH | F70: HH | W70: H1
D71: ='User Input'!G92 -> 31314.28571
A72: 0.1428571429 | B72: -0.05 | C72: =SUM(A72:B72) -> 0.09285714286 | D72: =D71*C72:C78 -> 2907.755102 | E72: -0.25 | F72: =D72+(E72*D72) -> 2180.816327 | W72: 2002 to 2006
A73: 0.1428571429 | B73: -0.03 | C73: 0.1128571429 | D73: 3534.040816 | E73: -0.15 | F73: 3003.934694 | W73: American Community Survey (use factfinder
A74: 0.1428571429 | B74: -0.02 | C74: 0.1228571429 | D74: 3847.183673 | E74: -0.09 | F74: 3500.937143 | W74: http://www.census.gov/
A75: 0.1428571429 | B75: 0.05 | C75: 0.1928571429 | D75: 6039.183673 | E75: -0.05 | F75: 5737.22449 | W75: http://factfinder.census.gov/home/saff/main.html?_lang=en
A76: 0.1428571429 | B76: 0.03 | C76: 0.1728571429 | D76: 5412.897959 | E76: -0.03 | F76: 5250.51102 | X76: Wasatch | AA76: State
A77: 0.1428571429 | B77: 0.03 | C77: 0.1728571429 | D77: 5412.897959 | E77: 0.16 | F77: 6278.961633 | X77: Pop | Y77: DU | Z77: P/DU | AA77: Pop | AB77: DU | AC77: P/DU
A78: =1-SUM(A72:A77) -> 0.1428571429 | C78: =1-SUM(C72:C77) -> 0.1328571429 | D78: 4160.326531 | E78: 0.29 | F78: 5366.821224 | W78: 1940 | X78: 5754 | Y78: 1456 | Z78: =X78/Y78 -> 3.951923077 | AA78: 550310 | AB78: 147291 | AC78: =AA78/AB78 -> 3.736209273
A79: =SUM(A72:A78) -> 1 | C79: =SUM(C72:C78) -> 1 | F79: =SUM(F72:F78) -> 31319.20653 | W79: 1950 | X79: 5574 | Y79: 1557 | Z79: 3.579961464 | AA79: 688862 | AB79: 200554 | AC79: 3.434795616
W80: 1960 | X80: 5308 | Y80: 1677 | Z80: 3.165175909 | AA80: 890627 | AB80: 262670 | AC80: 3.3906689
W81: 1970 | X81: 5863 | Y81: 2447 | Z81: 2.395995096 | AA81: 1059273 | AB81: 315765 | AC81: 3.354624483
W82: 1980 | X82: 8523 | Y82: 4472 | Z82: 1.905858676 | AA82: 1461037 | AB82: 490006 | AC82: 2.981671653
W83: 1990 | X83: 10089 | Y83: 4465 | Z83: 2.259574468 | AA83: 1722850 | AB83: 598388 | AC83: 2.879151988
W84: 2000 | X84: 15215 | Y84: 6564 | Z84: 2.317946374 | AA84: 2233169 | AB84: 768594 | AC84: 2.905524894
W85: 2001 | AA85: =(AA86-AA84)/2+AA84 -> 2254515 | AB85: =(AB86-AB84)/2+AB84 -> 788593.5 | AC85: 2.858906395 | AD85: rnr est
W86: 2002 | AA86: 2275861 | AB86: 808593 | AC86: 2.814593992
W87: 2003 | AA87: 2309555 | AB87: 826551 | AC87: 2.794207496
W88: 2004 | AA88: 2349472 | AB88: 848737 | AC88: 2.768197922
W89: 2005 | AA89: 2427350 | AB89: 873097 | AC89: =AA89/AB89 -> 2.780160738
W90: 2006 | AA90: 2550063 | AB90: 901322 | AC90: =AA90/AB90 -> 2.829247483
W91: 2007
W92: 2008
W93: 2009
W94: 2010
W97: GRAPH - Trend in Population
W98: Population Projections for Utah's Cities and Unincorporated Areas - June 2000 - GOPB
W99: http://www.governor.utah.gov/dea/LTProjectionsDocumentation.html
X100: ='User Input'!E4 -> Test City | Y100: ='User Input'!E7 -> Test County | AA100: =X100 -> Test City | AB100: Test County
W101: 2000 | X101: 2548 | Y101: 14111 | Z101: 2000 | AA101: 2548 | AB101: 14111
W102: 2001 | X102: 2797 | Y102: 15438 | Z102: 2001 | AA102: 2797 | AB102: 15438
W103: 2002 | X103: 2722 | Y103: 14980 | Z103: 2002 | AA103: 2722 | AB103: 14980
W104: 2003 | X104: 2819 | Y104: 15464 | Z104: 2003 | AA104: 2819 | AB104: 15464
W105: 2004 | X105: 2926 | Y105: 15997 | Z105: 2004 | AA105: 2926 | AB105: 15997
W106: 2005 | X106: 3048 | Y106: 16615 | Z106: 2005 | AA106: 3048 | AB106: 16615
W107: 2010 | X107: 3681 | Y107: 19758 | Z107: 2006 | AA107: =AA106+(X$107-X$106)/5 -> 3174.6 | AB107: 17243.6
W108: 2020 | X108: 4755 | Y108: 24806 | Z108: 2007 | AA108: 3301.2 | AB108: 17872.2
Z109: 2008 | AA109: 3427.8 | AB109: 18500.8
Z110: 2009 | AA110: 3554.4 | AB110: 19129.4
Z111: 2010 | AA111: 3681 | AB111: 19758
Z112: 2011 | AA112: =AA111+(X$108-X$107)/10 -> 3788.4 | AB112: =AB111+(Y$108-Y$107)/10 -> 20262.8
Z113: 2012 | AA113: 3895.8 | AB113: 20767.6
Z114: 2013 | AA114: 4003.2 | AB114: 21272.4
Z115: 2014 | AA115: 4110.6 | AB115: 21777.2
Z116: 2015 | AA116: 4218 | AB116: 22282
Z117: 2016 | AA117: 4325.4 | AB117: 22786.8
Z118: 2017 | AA118: 4432.8 | AB118: 23291.6
Z119: 2018 | AA119: 4540.2 | AB119: 23796.4
Z120: 2019 | AA120: 4647.6 | AB120: 24301.2
Z121: 2020 | AA121: 4755 | AB121: 24806

Sheet Cover
A7: Lotus Community Development Housing Estimating Model Model
A16: ='User Input'!E4 -> Test City
A34: ="Prepared by "&'User Input'!E5 -> Prepared by Analyst
A36: =TEXT('User Input'!E6,"MMM D, YYY") -> Oct 1, 2011
